{"text_format":"1","workbook":"xlsx","n_sheets":10,"sheets":["INICIO","SERVICIOSPUBLICOS","ASEOYCAFETERIA","SUE","SEGUROS","PROPUESTA CCP GASTOS SUE","BYSAUXILIARES","SOPERATIVOS","IMPUESTOS","PAPELERIA"],"not_rendered":{"charts":0,"images":12,"macros":1,"external_links":1,"defined_names":3,"comments":0,"pivot_tables":0},"unopened":[],"bounds":{"document_bytes":16777216,"sheet_cells":100000,"rows_first":2000,"rows_last":500,"rows_between":2000,"halvings":0,"cell_chars":16384,"cell_head_chars":4096},"cells_cut":0,"cells_raw":0,"read":"whole","date_system":"1900"}

{"sheet":"INICIO","index":0,"n_rows":3,"n_cols":2,"rows_kept":3,"cut":false,"hidden":false,"merged":[[1,0,1,8],[2,1,7,7]]}
[]
["CASOS COMUNES DE CLASIFICACIÓN PARA LAS INSTITUCIONES DE EDUCACIÓN SUPERIOR"]
[null,"Este documento contiene los casos comunes de clasificación que se presentan en las IES durante la ejecución del presupuesto, con su respectiva clasificación conforme a la estructura establecida en el Catálogo de Clasificación Presupuestal (CCP).\n\nLos casos comunes se encuentra dividos por categorías en lo siguientes botones, cada una de las hojas contiene el objeto de gasto junto con el respectivo código y el nombre de la cuenta o rubro presupuestal. En algunos casos en específico se encuentra una columna de observaciones para aquellos casos de clasificación que requieren explicación adicional para su correcta clasificación."]

{"sheet":"SERVICIOSPUBLICOS","index":1,"n_rows":15,"n_cols":6,"rows_kept":15,"cut":false,"hidden":false,"merged":[[0,1,0,4],[3,1,4,1],[3,4,4,4],[5,1,6,1],[5,4,6,4],[1,1,1,5],[3,5,4,5],[5,5,6,5],[7,5,8,5],[13,5,14,5],[11,5,12,5],[13,4,14,4],[13,1,14,1],[7,4,8,4],[7,1,8,1],[9,1,10,1],[9,4,10,4],[11,1,12,1],[11,4,12,4]]}
[]
[null,"SERVICIOS PÚBLICOS "]
[null,"OBJETO DEL GASTO","CÓDIGO CCP ","CUENTA","NOMBRE DE LA CUENTA (subordinal)","MAXIMO NIVEL DE DESAGREGACIÓN"]
[null,"Acueducto, alcantarillado y aseo ","02-02-02-09-04","ADQUISICIÓN DE BIENES  Y SERVICIOS","SERVICIOS DE ALCANTARILLADO, RECOLECCIÓN, TRATAMIENTO Y DISPOSICIÓN DE DESECHOS Y OTROS SERVICIOS DE SANEAMIENTO AMBIENTAL","Servicios de alcantarillado, servicios de limpieza, tratamiento de aguas residuales y tanques sépticos"]
[null,null,"05-01-02-09-04","GASTOS DE COMERCIALIZACIÓN Y PRODUCCIÓN"]
[null,"Servicio de energía ","02-02-02-06-09","ADQUISICIÓN DE BIENES  Y SERVICIOS","SERVICIOS DE DISTRIBUCIÓN DE ELECTRICIDAD, GAS Y AGUA (POR CUENTA PROPIA)","Servicios de distribución de electricidad, y servicios de distribución de gas (por cuenta propia) "]
[null,null,"05-01-02-06-09","GASTOS DE COMERCIALIZACIÓN Y PRODUCCIÓN"]
[null,"Servicio de gas natural ","02-02-02-06-09","ADQUISICIÓN DE BIENES  Y SERVICIOS","SERVICIOS DE DISTRIBUCIÓN DE ELECTRICIDAD, GAS Y AGUA (POR CUENTA PROPIA)","Servicios de distribución de electricidad, y servicios de distribución de gas (por cuenta propia)"]
[null,null,"05-01-02-06-09","GASTOS DE COMERCIALIZACIÓN Y PRODUCCIÓN"]
[null,"Servicio de internet\nTelefonía fija \nTelefonía móvil ","02-02-02-08-04","ADQUISICIÓN DE BIENES  Y SERVICIOS","SERVICIOS DE TELECOMUNICACIONES, TRANSMISIÓN Y SUMINISTRO DE INFORMACIÓN","Servicios de telecomunicaciones a través de Internet"]
[null,null,"05-01-02-08-04","GASTOS DE COMERCIALIZACIÓN Y PRODUCCIÓN",null,"Servicios de telefonía y otras telecomunicaciones"]
[null,"Servicio postal y de mensajería ","02-02-02-06-08","ADQUISICIÓN DE BIENES  Y SERVICIOS","SERVICIOS POSTALES Y DE MENSAJERÍA","No aplica"]
[null,null,"05-01-02-06-08","GASTOS DE COMERCIALIZACIÓN Y PRODUCCIÓN"]
[null,"Televisión","02-02-02-08-04","ADQUISICIÓN DE BIENES  Y SERVICIOS","SERVICIOS DE TELECOMUNICACIONES, TRANSMISIÓN Y SUMINISTRO DE INFORMACIÓN","Servicios de programación, distribución y transmisión de programas"]
[null,null,"05-01-02-08-04","GASTOS DE COMERCIALIZACIÓN Y PRODUCCIÓN"]

{"sheet":"ASEOYCAFETERIA","index":2,"n_rows":59,"n_cols":7,"rows_kept":59,"cut":false,"hidden":false,"merged":[[57,1,58,1],[57,4,58,4],[57,5,58,5],[57,6,58,6],[49,6,50,6],[51,6,52,6],[53,6,54,6],[55,6,56,6],[39,6,40,6],[41,6,42,6],[43,6,44,6],[45,6,46,6],[47,6,48,6],[41,1,42,1],[41,4,42,4],[41,5,42,5],[43,1,44,1],[43,4,44,4],[43,5,44,5],[45,1,46,1],[45,4,46,4],[45,5,46,5],[47,1,48,1],[47,4,48,4],[27,6,28,6],[29,6,30,6],[33,6,34,6],[35,6,36,6],[37,6,38,6],[15,1,16,1],[15,4,16,4],[17,1,18,1],[17,5,18,5],[25,6,26,6],[19,6,24,6],[17,6,18,6],[15,6,16,6],[19,3,21,3],[22,3,24,3],[29,4,30,4],[29,5,30,5],[29,1,30,1],[31,4,32,4],[31,5,32,5],[31,1,32,1],[33,4,34,4],[33,5,34,5],[33,1,34,1],[5,1,6,1],[5,4,6,4],[5,6,6,6],[7,4,12,4],[7,2,9,2],[10,2,12,2],[5,5,6,5],[7,1,12,1],[7,6,12,6],[7,3,9,3],[10,3,12,3],[0,1,0,4],[1,1,1,6],[3,1,4,1],[3,4,4,4],[3,6,4,6],[3,5,4,5],[27,1,28,1],[27,4,28,4],[27,5,28,5],[13,5,14,5],[7,5,12,5],[17,4,18,4],[19,5,24,5],[25,5,26,5],[15,5,16,5],[25,1,26,1],[25,4,26,4],[19,4,24,4],[19,2,21,2],[22,2,24,2],[13,1,14,1],[19,1,24,1],[13,6,14,6],[13,4,14,4],[35,4,36,4],[35,5,36,5],[35,1,36,1],[37,4,38,4],[37,5,38,5],[37,1,38,1],[39,1,40,1],[39,5,40,5],[39,4,40,4],[55,1,56,1],[55,4,56,4],[55,5,56,5],[47,5,48,5],[49,1,50,1],[49,4,50,4],[49,5,50,5],[51,4,52,4],[51,5,52,5],[51,1,52,1],[53,4,54,4],[53,5,54,5],[53,1,54,1]]}
[]
[null,"INSUMOS DE ASEO Y CAFETERÍA"]
[null,"OBJETO DEL GASTO","CÓDIGO CCP ","CUENTA","NOMBRE DE LA CUENTA (subordinal)","MAXIMO NIVEL DE DESAGREGACIÓN","OBSERVACIONES"]
[null,"Servicio de aseo","02-02-02-08-05","ADQUISICIÓN DE BIENES  Y SERVICIOS","SERVICIOS DE SOPORTE","Servicios de limpieza","En cuanto a los insumos para la prestación del servicio, sólo se tendrá que hacer la distinción presupuestal en los casos en que existan contratos diferentes para el servicio y los suministros. En cuyo caso, para realizar la clasificación de los suministros, por favor, revisar \"Instrumento - Lista de suministros Colombia Compra Eficiente\" en la hoja Aseo y cafetería."]
[null,null,"05-01-02-08-05","GASTOS DE COMERCIALIZACIÓN Y PRODUCCIÓN"]
[null,"Servicio de cafetería","02-02-02-06-03","ADQUISICIÓN DE BIENES  Y SERVICIOS","ALOJAMIENTO; SERVICIOS DE SUMINISTROS DE COMIDAS Y BEBIDAS","Servicios de suministros de comidas ","En cuanto a los insumos utilizados para el suministro de comidas, sólo se tendrá que hacer distinción presupuestal en los casos en que existan contratos diferentes para el servicio y los suministros. En cuyo caso, para realizar la clasificación de los suministros, por favor, revisar \"Instrumento - Lista de suministros Colombia Compra Eficiente\" en la hoja de Aseo y Cafetería."]
[null,null,"05-01-02-06-03","GASTOS DE COMERCIALIZACIÓN Y PRODUCCIÓN"]
[null,"Detergentes en polvo, Preparaciones para limpiar vidrios, Preparaciones desengrasantes para pisos,Champú para alfombras, Detergentes líquidos,Productos blanqueadores y desmanchadores","02-02-01-03-05 ","ADQUISICIÓN DE BIENES  Y SERVICIOS","OTROS PRODUCTOS QUÍMICOS; FIBRAS ARTIFICIALES (O FIBRAS INDUSTRIALES HECHAS POR EL HOMBRE)","Jabón, preparados para la limpieza, perfumes y preparados de tocador","-"]
[]
[]
[null,null,"05-01-01-03-05","GASTOS DE COMERCIALIZACIÓN Y PRODUCCIÓN"]
[]
[]
[null,"Alcohol Industrial","02-02-01-03-04","ADQUISICIÓN DE BIENES  Y SERVICIOS","QUÍMICOS BÁSICOS","Químicos organicos básicos","-"]
[null,null,"05-01-01-03-04","GASTOS DE COMERCIALIZACIÓN Y PRODUCCIÓN"]
[null,"Esponjas y esponjillas metálicas","02-02-01-04-02","ADQUISICIÓN DE BIENES  Y SERVICIOS","PRODUCTOS METÁLICOS ELABORADOS (EXCEPTO MAQUINARIA Y EQUIPO)","No aplica","-"]
[null,null,"05-01-01-04-02","GASTOS DE COMERCIALIZACIÓN Y PRODUCCIÓN"]
[null,"Esponjas y similares de plástico ","02-02-01-03-06","ADQUISICIÓN DE BIENES  Y SERVICIOS","PRODUCTOS DE CAUCHO Y PLÁSTICO","Otros productos plásticos","-"]
[null,null,"05-01-01-03-06","GASTOS DE COMERCIALIZACIÓN Y PRODUCCIÓN"]
[null,"Cepillos para brilladora, Escobas, Cepillos industriales, Trapeadores,  Plumeros","02-02-01-03-08","ADQUISICIÓN DE BIENES  Y SERVICIOS","MUEBLES; OTROS BIENES TRANSPORTABLES N.C.P","Otros artículos manufacturados N.C.P","-"]
[]
[]
[null,null,"05-01-01-03-08","GASTOS DE COMERCIALIZACIÓN Y PRODUCCIÓN"]
[]
[]
[null,"Paños absorbentes","02-02-01-03-07","ADQUISICIÓN DE BIENES  Y SERVICIOS","VIDRIO Y PRODUCTOS DE VIDRIO Y OTROS PRODUCTOS NO METÁLICOS N.C.P.","Otros productos minerales no metálicos N.C.P","-"]
[null,null,"05-01-01-03-07","GASTOS DE COMERCIALIZACIÓN Y PRODUCCIÓN"]
[null,"Cepillo para baño ","02-02-01-03-08","ADQUISICIÓN DE BIENES  Y SERVICIOS","MUEBLES; OTROS BIENES TRANSPORTABLES N.C.P.","Otros artículos manufacturados N.C.P","-"]
[null,null,"05-01-01-03-08","GASTOS DE COMERCIALIZACIÓN Y PRODUCCIÓN"]
[null,"Tapacobas","02-02-01-02-07","ADQUISICIÓN DE BIENES  Y SERVICIOS","ARTÍCULOS TEXTILES (EXCEPTO PRENDAS DE VESTIR)","No aplica","-"]
[null,null,"05-01-01-02-07","GASTOS DE COMERCIALIZACIÓN Y PRODUCCIÓN"]
[null,"Guantes de caucho, jarras de plástico, canecas para la basura plásticas","02-02-01-03-06","ADQUISICIÓN DE BIENES  Y SERVICIOS","PRODUCTOS DE CAUCHO Y PLÁSTICO","Otros productos plásticos","-"]
[null,null,"05-01-01-03-06","GASTOS DE COMERCIALIZACIÓN Y PRODUCCIÓN",null,null,"-"]
[null,"Jarras y platones de aluminio ","02-02-01-04-02","ADQUISICIÓN DE BIENES  Y SERVICIOS","PRODUCTOS METÁLICOS ELABORADOS (EXCEPTO MAQUINARIA Y EQUIPO)","No aplica","-"]
[null,null,"05-01-01-04-02","GASTOS DE COMERCIALIZACIÓN Y PRODUCCIÓN"]
[null,"Platos plásticos desechables","02-02-01-03-06","ADQUISICIÓN DE BIENES  Y SERVICIOS","PRODUCTOS DE CAUCHO Y PLÁSTICO","Otros productos plásticos","-"]
[null,null,"05-01-01-03-06","GASTOS DE COMERCIALIZACIÓN Y PRODUCCIÓN"]
[null,"Jarras de vidrio, vasos de vidrio","02-02-01-03-07","ADQUISICIÓN DE BIENES  Y SERVICIOS","VIDRIO Y PRODUCTOS DE VIDRIO Y OTROS PRODUCTOS NO METÁLICOS N.C.P.","Vidrio y productos de vidrio","-"]
[null,null,"05-01-01-03-07","GASTOS DE COMERCIALIZACIÓN Y PRODUCCIÓN"]
[null,"Vasos de papel o cartón","02-02-01-03-02","ADQUISICIÓN DE BIENES  Y SERVICIOS","PASTA O PULPA, PAPEL Y PRODUCTOS DE PAPEL; IMPRESOS Y ARTÍCULOS RELACIONADOS","Pasta de papel, papel y cartón","-"]
[null,null,"05-01-01-03-02","GASTOS DE COMERCIALIZACIÓN Y PRODUCCIÓN"]
[null,"Grecas, Partes y accesorios para grecas","02-01-01-04-04","ADQUISICIÓN DE BIENES  Y SERVICIOS","MAQUINARIA PARA USOS ESPECIALES","Aparatos de uso doméstico y sus partes y piezas","-"]
[null,null,"05-01-01-04-04","GASTOS DE COMERCIALIZACIÓN Y PRODUCCIÓN"]
[null,"Café","02-02-01-02-03","ADQUISICIÓN DE BIENES  Y SERVICIOS","PRODUCTOS DE MOLINERÍA, ALMIDONES Y PRODUCTOS DERIVADOS DEL ALMIDÓN; OTROS PRODUCTOS ALIMENTICIOS","Productos del café","-"]
[null,null,"05-01-01-02-03","GASTOS DE COMERCIALIZACIÓN Y PRODUCCIÓN"]
[null,"Azúcar, Panela ","02-02-01-02-03","ADQUISICIÓN DE BIENES  Y SERVICIOS","PRODUCTOS DE MOLINERÍA, ALMIDONES Y PRODUCTOS DERIVADOS DEL ALMIDÓN; OTROS PRODUCTOS ALIMENTICIOS","Azúcar","-"]
[null,null,"05-01-01-02-03","GASTOS DE COMERCIALIZACIÓN Y PRODUCCIÓN"]
[null,"Sal","02-02-01-01-06","ADQUISICIÓN DE BIENES  Y SERVICIOS","OTROS MINERALES","Cloruro de sodio puro y sus sales, agua de mar","-"]
[null,null,"05-01-01-01-06","GASTOS DE COMERCIALIZACIÓN Y PRODUCCIÓN"]
[null,"Acoples y boquillas para mangueras de plástico","02-02-01-03-06","ADQUISICIÓN DE BIENES  Y SERVICIOS","PRODUCTOS DE CAUCHO Y PLÁSTICO","Semimanufacturas de plástico","-"]
[null,null,"05-01-01-03-06","GASTOS DE COMERCIALIZACIÓN Y PRODUCCIÓN"]
[null,"Mangueras de caucho ","02-02-01-03-06","ADQUISICIÓN DE BIENES  Y SERVICIOS","PRODUCTOS DE CAUCHO Y PLÁSTICO","Otros productos de caucho","-"]
[null,null,"05-01-01-03-06","GASTOS DE COMERCIALIZACIÓN Y PRODUCCIÓN"]
[null,"Atomizadores manuales","02-02-01-03-08","ADQUISICIÓN DE BIENES  Y SERVICIOS","OTROS BIENES TRANSPORTABLES N.C.P.(no clasificados en otra parte)","Otros artículos manufacturados N.C.P","-"]
[null,null,"05-01-01-03-08","GASTOS DE COMERCIALIZACIÓN Y PRODUCCIÓN"]
[null,"Utensilios de loza para mesa y cocina en cerámica","02-02-01-03-07","ADQUISICIÓN DE BIENES  Y SERVICIOS","VIDRIO Y PRODUCTOS DE VIDRIO Y OTROS PRODUCTOS NO METÁLICOS N.C.P.","Artículos de cerámica no estructural","-"]
[null,null,"05-01-01-03-07","GASTOS DE COMERCIALIZACIÓN Y PRODUCCIÓN"]
[null,"Caneca para la basura de metal","02-02-01-04-02","ADQUISICIÓN DE BIENES  Y SERVICIOS","PRODUCTOS METÁLICOS ELABORADOS (EXCEPTO MAQUINARIA Y EQUIPO)","No aplica","-"]
[null,null,"05-01-01-04-02","GASTOS DE COMERCIALIZACIÓN Y PRODUCCIÓN"]

{"sheet":"SUE","index":3,"n_rows":16,"n_cols":7,"rows_kept":16,"cut":false,"hidden":false,"merged":[[0,2,0,4],[1,2,1,5],[8,1,9,1],[14,1,15,1],[14,4,15,4],[14,5,15,5]]}
[]
[]
[null,"OBJETO DEL GASTO","CÓDIGO CCP ","CUENTA","NOMBRE DE LA CUENTA (subordinal)","MAXIMO NIVEL DE DESAGREGACIÓN","OBSERVACIONES"]
[null,"Pago a los estudiantes por apoyo en actividades académico-administrativas","02-02-02-11-01","ADQUISICIÓN DE BIENES  Y SERVICIOS","SERVICIOS PRESTADOS POR ESTUDIANTES","No aplica","Reconocimiento económico a los estudiantes de las universidades por apoyo a labores académico-administrativas"]
[null,"Apoyo alimentario estudiantil ","03-12-01-01-01","TRANSFERENCIAS CORRIENTES","APOYOS SOCIOECONOMICOS A ESTUDIANTES","No aplica","Recursos económicos otorgados directamente a los estudiantes con el fin de garantizar su permanencia académica "]
[null,"Tarjetas de regalo para administrativos por el dia del trabajador","03-09-01-01-01","TRANSFERENCIAS CORRIENTES","BONO DE BENEFICIOS A COMUNIDAD UNIVERSITARIA ","No aplica","Corresponde a las transferencias que realizan las IES a un productor de mercado con el fin de garantizar la entrega de bienes y servicios de consumo final a la comunidad universitaria."]
[null,"Becas para estudios de idioma extranjero","03-08-01-01-01","TRANSFERENCIAS CORRIENTES","BENEFICIOS EDUCATIVOS A LA COMUNIDAD UNIVERSITARIA","No aplica","Otorgamiento de las becas  que realizan las IES  a favor de los miembros de la comunidad universitaria de acuerdo con la normatividad vigente de cada institución."]
[null,"Auxilio educativo a hijos del personal academico-administrativo","03-04-02-09-01","TRANSFERENCIAS CORRIENTES","AUXILIO EDUCATIVO","No aplica","Corresponde al pago del auxilio educativo que se realiza a favor del empleado o sus dependientes con derecho a este,  definido por la normativa de la Institución de Educación Superior."]
[null,null,"01-01-01-02-05","PLANTA DE PERSONAL PERMANENTE","BONIFICACIÓN BIENESTAR UNIVERSITARIO","No aplica","Planta permanente"]
[null,null,"01-02-01-02-05","PERSONAL SUPERNUMERARIO Y PLANTA TEMPORAL","BONIFICACIÓN BIENESTAR UNIVERSITARIO","No aplica","Planta temporal"]
[null,"Creditos otorgados por la oficina de bienestar al personal academico-administrativo","06-01-04-01-01","ADQUISICIÓN DE ACTIVOS FINANCIEROS","PRESTAMOS A COMUNIDAD UNIVERSITARIA","No aplica","Comprende los recursos financieros concedidos por las IES a miembros de la comunidad universitaria, en   calidad de préstamo, para solventar necesidades de financiamiento de este.  Incluye: Préstamos a empleados, prestamos a estudiantes."]
[null,"Convenios interadministrativos con entidades territoriales","03-03-02-01-01","TRANSFERENCIAS CORRIENTES","TRANSFERENCIAS DE UNIVERSIDADES A ENTIDADES TERRITORIALES","No aplica","Corresponde a  transferencias que realizan las universidades a entidades territoriales (municipios o departamentos) con el fin de aportar en el desarrollo de actividades de docencia, investigación o extensión,  asi mismo, por ejemplo,  la distribución de utilidades, o la financiación de proyectos, contrapartidas."]
[null,"Convenios de investigacion entre Instituciones del SUE","03-03-04-01-01","TRANSFERENCIAS CORRIENTES","TRANSFERENCIAS ENTRE INSTITUCIONES DE EDUCACIÓN SUPERIOR","No aplica","Corresponde a las transferencias entre universidades en el desarrollo de compromisos para el desarrollo de actividades de docencia, investigacion, extension, EJM: Premio Otto de Greiff, distribución de excedentes, contrapartidas."]
[null,"Creación de un video para presentar el plan de desarrollo de la universidad realizado por la facultad de cine y televisión","03-13-01-01-01","TRANSFERENCIAS CORRIENTES","TRANSFERENCIAS INTERNAS","No aplica","Corresponde al gasto ejecutado por las distintas dependencias de las IES por operaciones intrauniversitarias."]
[null,"Prestación de servicios profesionales de apoyo a la gestión, en aspectos financieros","02-02-02-08-03","ADQUISICIÓN DE BIENES  Y SERVICIOS","OTROS SERVICIOS PROFESIONALES, CIENTÍFICOS Y TÉCNICOS","Servicios de consultoría en administración y servicios de gestión"]
[null,null,"05-01-02-08-03","GASTOS DE COMERCIALIZACIÓN Y PRODUCCIÓN"]

{"sheet":"SEGUROS","index":4,"n_rows":23,"n_cols":6,"rows_kept":23,"cut":false,"hidden":false,"merged":[[15,5,16,5],[15,1,16,1],[3,4,16,4],[9,1,10,1],[9,5,10,5],[11,1,12,1],[11,5,12,5],[5,1,6,1],[5,5,6,5],[7,1,8,1],[7,5,8,5],[0,1,0,5],[1,1,1,5],[3,5,4,5],[3,1,4,1],[13,1,14,1],[13,5,14,5]]}
[]
[null,"SEGUROS "]
[null,"OBJETO DEL GASTO","CÓDIGO CCP ","CUENTA","NOMBRE DE LA CUENTA (subordinal)","MAXIMO NIVEL DE DESAGREGACIÓN"]
[null,"ARL de pasantes y estudiantes","02-02-02-07-01","ADQUISICIÓN DE BIENES  Y SERVICIOS","SERVICIOS FINANCIEROS Y SERVICIOS CONEXOS","Servicios de seguros sociales de salud y riesgos laborales"]
[null,null,"05-01-02-07-01","GASTOS DE COMERCIALIZACIÓN Y PRODUCCIÓN"]
[null,"ARL de contratistas","02-02-02-07-01","ADQUISICIÓN DE BIENES  Y SERVICIOS",null,"Servicios de seguros sociales de salud y riesgos laborales"]
[null,null,"05-01-02-07-01","GASTOS DE COMERCIALIZACIÓN Y PRODUCCIÓN"]
[null,"Póliza de infidelidad y riesgos financieros ","02-02-02-07-01","ADQUISICIÓN DE BIENES  Y SERVICIOS",null,"Seguro de infidelidad y riesgos financieros "]
[null,null,"05-01-02-07-01","GASTOS DE COMERCIALIZACIÓN Y PRODUCCIÓN"]
[null,"Póliza de responsabilidad civil extracontractual ","02-02-02-07-01","ADQUISICIÓN DE BIENES  Y SERVICIOS",null,"Servicios de seguros generales de responsabilidad civil "]
[null,null,"05-01-02-07-01","GASTOS DE COMERCIALIZACIÓN Y PRODUCCIÓN"]
[null,"Póliza responsabilidad civil servidores públicos ","02-02-02-07-01","ADQUISICIÓN DE BIENES  Y SERVICIOS",null,"Servicios de seguros generales de responsabilidad civil "]
[null,null,"05-01-02-07-01","GASTOS DE COMERCIALIZACIÓN Y PRODUCCIÓN"]
[null,"Póliza todo riesgo daños materiales combinados ","02-02-02-07-01","ADQUISICIÓN DE BIENES  Y SERVICIOS",null,"Servicio de seguros contra incendio, terremoto o sustracción "]
[null,null,"05-01-02-07-01","GASTOS DE COMERCIALIZACIÓN Y PRODUCCIÓN"]
[null,"SOAT","02-02-02-07-01","ADQUISICIÓN DE BIENES  Y SERVICIOS",null,"Servicios de seguro obligatorio de accidente de tránsito (SOAT)"]
[null,null,"05-01-02-07-01","GASTOS DE COMERCIALIZACIÓN Y PRODUCCIÓN"]
[null,"Contribución de valorización municipal","11-4-7",null,"Contribución de valorización municipal","-"]
[null,"Contribución sector eléctrico ","11-4-8",null,"Contribución sector eléctrico ","-"]
[null,"Contribución Superintendencia de Puertos y Transporte ","11-4-9",null,"Contribución Superintendencia de Puertos y Transporte ","-"]
[null,"Pago de Sentencias ","3-10-1",null,"Sentencias ","-"]
[null,"Pago de Conciliaciones ","3-10-2",null,"Conciliaciones ","-"]
[null,"Laudos arbitrales","3-10-3",null,"Laudos arbitrales","-"]

{"sheet":"PROPUESTA CCP GASTOS SUE","index":5,"n_rows":1296,"n_cols":18,"rows_kept":1296,"cut":false,"hidden":false,"merged":[[0,2,0,4],[0,5,0,11],[1,2,1,11]]}
[null,null,"SE ACORDÓ DETALLAR HASTA EL NIVEL SUBORDINAL (COLUMNA SEÑALADA CON COLOR GRIS), CADA UNIVERSIDAD SERA AUTONOMA DE CLASIFICAR A UN MAYOR DE DESAGREGACION ACORDES  A LAS NECESIDADES",null,null,"PROPUESTA DE CLASIFICADORES PRESUPUESTALES PARA LAS UNIVERSIDADES PUBLICAS "]
[null,null,"CATALOGO DE CLASIFICACIÓN PRESUPUESTAL GASTOS"]
["CONCATENAR ","LARGO","Cuenta","Subcuenta","Objeto","Ordinal","Subordinal","Ítem","Subítem 1","Subítem 2","Subítem 3","GASTOS","DEFINICIÓN CCP SUE","OBSERVACIONES",null,"APROPIACIÓN PRESUPUESTO","EJECUCION DEL GASTO","CUENTA ACTUAL PREUPUESTO 202\nHOMOLOGABLE"]
[{"$f":"CONCATENATE(C4,D4,E4,F4,G4,H4,I4,J4,K4)","v":"01"},{"$f":"LEN(A4)","v":2},"01",null,null,null,null,null,null,null,null,"GASTOS DE PERSONAL","Son los gastos asociados con el personal vinculado laboralmente con las IES . Entiéndase como personal vinculado laboralmente con el Estado a los servidores públicos –en estricto sentido- que\nprestan servicios personales remunerados en los organismos y entidades de la administración pública a través de una relación legal/reglamentaria o de una relación contractual laboral (Ley 909 de 2004, Art.1). Según el Artículo 123 de la Constitución Política, son servidores públicos: los miembros de las corporaciones públicas, los empleados públicos y los trabajadores oficiales del Estado y de sus entidades descentralizadas territorialmente y por servicios."]
[{"$f":"CONCATENATE(C5,D5,E5,F5,G5,H5,I5,J5,K5)","v":"0101"},{"$f":"LEN(A5)","v":4},"01","01",null,null,null,null,null,null,null,"PLANTA DE PERSONAL PERMANENTE","Comprende la remuneración por los servicios laborales prestados por servidores públicos vinculados a la planta de personal aprobada para cada Institución de Educación Superior. La planta de personal es el conjunto de empleos requeridos para el cumplimiento de los objetivos y funciones asignadas a una institución, identificados y ordenados jerárquicamente, acorde con un sistema de nomenclatura y clasificación vigente y aplicable a la respectiva institución.","Son los empleados públicos que tienen una vinculación laboral permanente, ejm: carrera especial docente (primaria, secundaria y universitaria), trabajadores oficiales, carrera administrativa, libre nombramiento y remoción, provisionales)"]
["010101",6,"01","01","01",null,null,null,null,null,null,"SALARIO","Son las remuneraciones pagadas en efectivo o en especie a los empleados vinculados laboralmente a las Instituciones de Educación Superior, como contraprestación por los servicios prestados. El salario se compone por un sueldo básico y por los demás pagos que tienen como particularidad remunerar el trabajo del empleado. De acuerdo con el Artículo 127 del Código Sustantivo del Trabajo"]
["01010101",8,"01","01","01","01",null,null,null,null,null,"FACTORES SALARIALES COMUNES","Corresponde a los componentes del salario que son comunes a todo el personal vinculado laboralmente con las Instituciones de Educación Superior (empleados públicos y trabajadores oficiales)."]
["0101010101",10,"01","01","01","01","01",null,null,null,null,"SUELDO BÁSICO","Corresponde a la parte del salario que se mantiene fija y se paga periódicamente, de acuerdo con las funciones y responsabilidades, los requisitos de conocimientos, la experiencia requerida para su ejercicio, la denominación y el grado establecidos en la nomenclatura, y la escala del respectivo nivel (Decreto 1042 de 1978, Art. 13). El sueldo básico se paga sin tener en cuenta adicional de horas extras, primas y otros factores eventuales o fijos que aumentan sus ingresos.Corresponde a la parte del salario que se mantiene fija y se paga periódicamente, de acuerdo con las funciones y responsabilidades, los requisitos de conocimientos, la experiencia requerida para su ejercicio, la denominación y el grado establecidos en la nomenclatura, y la escala del respectivo nivel (Decreto 1042 de 1978, Art. 13). El sueldo básico se paga sin tener en cuenta adicional de horas extras, primas y otros factores eventuales o fijos que aumentan sus ingresos.","Incluye periodos de comisión de estudios, años sabaticos, comisión de servicios,ademas de,  incapacidades asumidas por el patrono (caso UTP), por este rubro tambien se registran los gastos de representación de los docentes,  (Univ Nacional:  Solo aplica para el estamento docente, por el beneficio de exención tributaria  (Ley 2010 de 2019, artículo 32, numeral 9  Vacaciones)   Cada universidad discrimina internamente los objetos de gasto relacionados con el sueldo basico a nivel item y subitem."]
["0101010102",10,"01","01","01","01","02",null,null,null,null,"GASTOS DE REPRESENTACIÓN","Corresponde a la asignación complementaria del sueldo, que se reconoce excepcional y restrictivamente a empleados de alto nivel jerárquico por el cumplimiento de sus funciones (Corte Constitucional, Sentencia C-461/2004).\nLos gastos de representación tienen por finalidad que los empleados de nivel directivo desempeñen sus funciones de acuerdo con la importancia de la representación que ostentan. Asimismo, se caracterizan por ser un beneficio personal en gracia de la posición, jerarquía, dignidad y responsabilidades señaladas al cargo.","APLICA SOLO SI GENERA UN EFECTO DE PAGO ADICIONAL A SU SUELDO PARA CARGOS DIRECTIVOS (según norma interna de la universidad)"]
["0101010103",{"$f":"LEN(A10)","v":10},"01","01","01","01","03",null,null,null,null,"PRIMA TÉCNICA SALARIAL","Es un reconocimiento económico a servidores públicos que desempeñen cargos altamente calificados cuyas funciones demanden la aplicación de conocimientos técnicos o científicos, o la realización de labores de dirección o de especial responsabilidad. Asimismo, la prima técnica reconoce el desempeño de los servidores en su cargo. (Departamento Administrativo de la Función Pública, 2015)\n\nSe considera como factor salarial, la prima técnica por formación avanzada y experiencia altamente calificada, también conocida como prima técnica por estudio y experiencia, la cual se otorga a los empleados que acrediten estudios de formación avanzada o cinco años de experiencia calificada, en los siguientes cargos:\n Nivel directivo.\n Jefes de oficina asesora.\n Nivel asesor."]
["0101010104",10,"01","01","01","01","04",null,null,null,null,"SUBSIDIO DE ALIMENTACIÓN","Corresponde al pago habitual y periódico de una suma de dinero, fijada por Decreto Nacional, y destinada a la provisión de alimento de los empleados públicos, y según lo contratado, de los trabajadores oficiales de determinados niveles salariales (Departamento Administrativo de la Función Pública, 2010).\nNo se tiene derecho a este subsidio cuando el funcionario está disfrutando de vacaciones, se encuentra en uso de licencia, suspendido o cuando la entidad suministra el servicio (Decreto 229 de 2016, Art. 12)."]
["0101010105",10,"01","01","01","01","05",null,null,null,null,"AUXILIO DE TRANSPORTE","Corresponde al pago que se les hace a los servidores públicos que devenguen un sueldo mensual básico de hasta dos (2) veces el salario mínimo legal vigente (Decreto 2732 del 2014). Este auxilio tiene como fin el traslado del trabajador desde el sector de su residencia hasta el sitio de su trabajo y viceversa, y se paga por los empleadores en todos los lugares del país donde se preste el servicio público de transporte."]
["0101010106",10,"01","01","01","01","06",null,null,null,null,"PRIMA DE SERVICIO","Corresponde al pago equivalente a quince (15) días de remuneración que se le reconoce al servidor público por cada año laborado, o proporcionalmente si el funcionario laboró como mínimo por seis meses en la entidad (Decreto 1042 de 1978, Art.58). Esta prima se paga los primeros quince días del mes de julio de cada año y se liquida sobre los siguientes factores de salario: El sueldo básico fijado por la ley para el respectivo cargo, Los incrementos salariales por antigüedad, Los gastos de representación, Los auxilios de alimentación y transporte, la bonificación por servicios prestados."]
["0101010107",10,"01","01","01","01","07",null,null,null,null,"BONIFICACIÓN POR SERVICIOS PRESTADOS","Reconocimiento que se hace al empleado cada vez que cumpla un año continúo de labor en una misma entidad, equivalente al 50% del valor conjunto de la asignación básica mensual determinada por la ley para el respectivo cargo, sumada a los incrementos por antigüedad y los gastos de representación. Se paga en un plazo de veinte días después del cumplimiento de los requisitos para recibir la bonificación (Decreto 1042 de 1978, Art. 45,47 y 48)"]
["0101010108",10,"01","01","01","01","08",null,null,null,null,"HORAS EXTRAS, DOMINICALES, FESTIVOS Y RECARGOS","Corresponde a la remuneración al trabajo suplementario o realizado en horas adicionales a la jornada ordinaria establecida. Su reconocimiento y pago están sujetos a las limitaciones de las disposiciones\nlegales vigentes.\nIncluye: Horas extras diurnas, Horas extras nocturnas, Trabajo ordinario u ocasional en días dominicales y festivos."]
["0101010109",10,"01","01","01","01","09",null,null,null,null,"PRIMA DE NAVIDAD","Reconocimiento que otorga la ley a los empleados públicos y los trabajadores oficiales por haber servido durante todo el año civil. Esta prima es equivalente a un mes del salario que corresponda al cargo desempeñado en treinta de noviembre de cada año y se paga en la primera quincena del mes de diciembre. Cuando el empleado público o trabajador oficial no ha servido durante todo el año, tiene derecho a la mencionada prima de navidad en proporción al tiempo laborado, a razón de una doceava parte por cada mes completo de servicios, que se liquida y paga con base en el último salario devengado, o en el último promedio mensual, si fuere variable equivalente a un mes de remuneración liquidado o un porcentaje proporcional al tiempo laborado (Decreto 1045 de 1978, Art. 32)."]
["0101010110",10,"01","01","01","01","10",null,null,null,null,"PRIMA DE VACACIONES","Reconocimiento que otorga la ley a los empleados públicos y los trabajadores oficiales, con el fin de brindarles mayores recursos económicos para gozar del periodo de vacaciones. Esta prima es equivalente a quince (15) días de salario por cada año trabajado y debe pagarse dentro de los cinco (5) días hábiles anteriores a la fecha señalada para la iniciación del descanso remunerado, salvo lo que se disponga en normas o estipulaciones especiales. la prima de vacaciones no se perderá en los casos en que se autorizare el pago de vacaciones en dinero (Decreto 1045 de 1978, arts. 24 a 29)."]
["0101010111",10,"01","01","01","01","11",null,null,null,null,"VIÁTICOS DE LOS FUNCIONARIOS EN COMISIÓN","Son los pagos que reciben los funcionarios y trabajadores en comisión, para alojamiento, manutención y transporte, cuando: a) deban desempeñar sus funciones en un lugar diferente a su sede habitual de trabajo, ya sea dentro o fuera del país, o b) deba atender transitoriamente actividades oficiales distintas a las inherentes al empleo de que es titular (Departamento Administrativo de la Función Pública).\nLos viáticos de los funcionarios en comisión constituyen factor salarial común siempre y cuando se hayan percibido por un término no inferior a 180 días  (continuos o discontinuos) en el último año de servicio, de acuerdo con lo consagrado en el Artículo 45 del Decreto 1045 de 1978. NE1: Los viáticos de los funcionarios en comisión que sean por un término inferior a 180 días se clasifican como la adquisición de un servicio en la cuenta 02-02-02-010 Viáticos de los funcionarios en comisión.","Los viáticos de los funcionarios en comisión constituyen factor salarial común siempre y cuando se hayan percibido por un término no inferior a 180 días en el último año de servicio, de acuerdo con lo consagrado en el Artículo 45 del Decreto 1045 de 1978. PUEDEN SER 181 DIAS CONTINUOS O DISCONTINUOS."]
["01010102",8,"01","01","01","02","",null,null,null,null,"FACTORES SALARIALES ESPECIALES","Corresponde a los componentes del salario de los sistemas especiales de remuneración, legalmente aprobados, y que se rigen por disposiciones particulares para determinados regímenes laborales y por tanto no son comunes a todas las Instituciones de Educación Superior.","Se va a evaluar con las areas de personal de cada universidad, de forma que se tengan pleno conocimiento de cuales clasificadores aplican. Para ese trabajo se hace necesario citar la norma (base legal) que la regula. Tener en cuenta el caso UIS y UDEA que no aportan  a caja de compensación "]
["0101010201",10,"01","01","01","02","01","",null,null,null,"PRIMA DE ANTIGÜEDAD","Corresponde al pago por los incrementos de salario por antigüedad que aplica a todos los servidores públicos que fueron vinculados con anterioridad  a la expedición del decreto  Ley 1042 de 1978, art 49.","Aplica para servidores públicos de la Universidad Nacional que ingresaron antes de junio de 1978.  (Art. 49 Decreto Ley 1042 de 1978)"]
["0101010202",10,"01","01","01","02","02",null,null,null,null,"QUINQUENIOS","Recursos destinados al pago a que tienen derecho los empleados públicos al cumplirse cinco años de antigüedad de servicios prestados en un trabajo, según lo estipulado en la ley. de acuerdo con la entidad y régimen salarial que rija para el mismo. “El quinquenio es un beneficio laboral que se reconoce con ocasión de la prestación del servicio por un lapso determinado, sin que manera alguna cubra riesgo o necesidad alguno del empleado. (Concepto 11547 de 2002 Departamento Administrativo de la Función Pública)","Aplica siempre y cuando se considere factor salarial para la universidad"]
["0101010203",10,"01","01","01","02","03",null,null,null,null,"PRIMA DE CARESTÍA","Reconocimiento que se hace en el mes de abril de cada año a los trabajadores oficiales vinculados a 31 de diciembre del año inmediatamente anterior de una prima de carestía, de conformidad con lo previsto en la convención colectiva de trabajo vigente.cada año a los trabajadores oficiales vinculados a 31 de diciembre del año inmediatamente anterior de una prima de carestía, de conformidad con lo previsto en la convención colectiva de trabajo vigente. NE : Concepto exclusivo Universidad Nacional de Colombia","Univ Nacional:  Trabajadores oficiales (Convención Colectiva de Trabajo 1991 Art. 3o.)"]
["0101010204",10,"01","01","01","02","04","",null,null,null,"BONIFICACIÓN CARGO ACADÉMICO ADMINISTRATIVO","Reconocimiento de bonificación mensual a los docentes que por acto administrativo desempeñan  cargos académico administrativos en funciones directivas.","Aplica por ejercer cargos directivos de Sede y de Facultad, Acuerdo 134 de 2013 CSU de la Universidad Nacional"]
["0101010205",10,"01","01","01","02","05",null,null,null,null,"BONIFICACIÓN BIENESTAR UNIVERSITARIO","Corresponde al pago a los servidores públicos según Acuerdo  CSU 005 de 1998, aplica para docentes de carrera universitaria. \nNE: Aplica para la Universidad Nacional de Colombia. "]
["010102",6,"01","01","02","","","",null,null,null,"CONTRIBUCIONES INHERENTES A LA NÓMINA","Corresponde a las contribuciones legales que debe hacer una entidad como empleadora, a entidades\ndel sector privado y público, tales como: Cajas de Compensación Familiar, SENA, ICBF, ESAP, Fondo\nNacional de Ahorro, Fondos Administradores de Cesantías y Pensiones, Empresas Promotoras de\nSalud privadas y públicas, así como, las administradoras públicas y privadas de aportes que se\ndestinan para accidentes de trabajo y enfermedad profesional (Ministerio de Hacienda y Crédito\nPúblico, 2011)."]
["01010201",8,"01","01","02","01","","",null,null,null,"PENSIONES","Es la contribución social a pagar por los empleadores a los fondos de seguridad social en pensiones. Este pago se realiza en virtud de la Ley 100 de 1993, por medio de la cual se creó el Sistema de Seguridad Social de Pensiones, y se estableció la obligatoriedad de la afiliación de todos los empleados al sistema."]
["0101020101",10,"01","01","02","01","01",null,null,null,null,"PENSIONES"]
["01010202",8,"01","01","02","02","","",null,null,null,"SALUD","Es la contribución social a pagar por los empleadores a las Entidades Promotoras en Salud - EPS para el cubrimiento de riesgos de salud de sus empleados. Este pago se realiza en virtud de la Ley 100 de 1993, la cual creó el Sistema de Seguridad Social en Salud y estableció como deberes del empleado y el empleador, realizar cumplidamente los aportes correspondientes (Ley 100 de 1993, Art. 161)."]
["0101020201",10,"01","01","02","02","01",null,null,null,null,"SALUD"]
["01010203",8,"01","01","02","03","","",null,null,null,"AUXILIO DE CESANTÍAS ","Es la contribución que se recauda a favor de un fondo administrador de cesantías, que el empleador está obligado a pagar en razón de un mes de sueldo o jornal por cada año de servicio de su empleado, proporcionalmente fraccionado; con el fin de cubrir o prever las necesidades que se originan al trabajador al momento de quedar cesante (Corte Constitucional, Sentencia C-823/2006)."]
["0101020301",10,"01","01","02","03","01",null,null,null,null,"AUXILIO DE CESANTÍAS "]
["01010204",8,"01","01","02","04","","",null,null,null,"CAJAS DE COMPENSACIÓN FAMILIAR","Es la contribución a pagar por los empleadores a una Caja de Compensación Familiar por concepto de los aportes para el subsidio familiar, los aportes al SENA y los demás aportes con destinación especial, en caso de que estos no puedan realizarse directamente a las entidades respectivas. Cuando esta situación se presente, dichos aportes se harán por conducto de una Caja de Compensación Familiar que funcione dentro de la ciudad o localidad donde se causen los salarios o de la Caja más próxima dentro de los límites de los respectivos departamentos, intendencias o comisarías (Ley 21 de 1982, Art. 15)."]
["0101020401",10,"01","01","02","04","01",null,null,null,null,"CAJAS DE COMPENSACIÓN FAMILIAR",null,"No aplica para las universides que no realizan aportes a la caja de compensación"]
["01010205",8,"01","01","02","05","","",null,null,null,"APORTES GENERALES AL SISTEMA DE RIESGOS LABORALES","Es la contribución a pagar por los empleadores a una Caja de Compensación Familiar por concepto de los aportes para el subsidio familiar, los aportes al SENA y los demás aportes con destinación especial, en caso de que estos no puedan realizarse directamente a las entidades respectivas. Cuando esta situación se presente, dichos aportes se harán por conducto de una Caja de Compensación Familiar que funcione dentro de la ciudad o localidad donde se causen los salarios o de la Caja más próxima dentro de los límites de los respectivos departamentos, intendencias o comisarías (Ley 21 de 1982, Art. 15)."]
["0101020501",10,"01","01","02","05","01","",null,null,null,"APORTES GENERALES AL SISTEMA DE RIESGOS LABORALES"]
["01010206",8,"01","01","02","06","","",null,null,null,"APORTES AL ICBF","Es la contribución a pagar por los empleadores a una Caja de Compensación Familiar por concepto de los aportes para el subsidio familiar, los aportes al SENA y los demás aportes con destinación especial, en caso de que estos no puedan realizarse directamente a las entidades respectivas. Cuando esta situación se presente, dichos aportes se harán por conducto de una Caja de Compensación Familiar que funcione dentro de la ciudad o localidad donde se causen los salarios o de la Caja más próxima dentro de los límites de los respectivos departamentos, intendencias o comisarías (Ley 21 de 1982, Art. 15)."]
["0101020601",10,"01","01","02","06","01","",null,null,null,"APORTES AL ICBF"]
["010103",6,"01","01","03","","","",null,null,null,"REMUNERACIONES NO CONSTITUTIVAS DE FACTOR SALARIAL","Corresponde a los gastos del personal vinculado laboralmente con el Estado que la ley no reconoce como constitutivos de factor salarial. Estos pagos no forman parte de la base para el cálculo y pago de las prestaciones sociales, aportes parafiscales y seguridad social, aunque sí forman parte de la base de retención en la fuente, por ingresos laborales."]
["01010301",8,"01","01","03","01","","",null,null,null,"PRESTACIONES SOCIALES SEGÚN DEFINICIÓN LEGAL","Corresponde a las prestaciones sociales que la ley reconoce a los servidores públicos con el fin de cubrir riesgos o necesidades del trabajador en relación o con motivo de su trabajo. Estas prestaciones no retribuyen directamente los servicios prestados por los trabajadores."]
["0101030101",10,"01","01","03","01","01","",null,null,null,"SUELDO DE VACACIONES","Reconocimiento en tiempo libre y en dinero al que tiene derecho todo empleado público o trabajador oficial por haberle servido a la administración pública durante un (1) año. El valor correspondiente será establecido según normativa vigente.\nNE: La sentencia de la Honorable Corte Constitucional C-059/96 establece que el sueldo de vacaciones NO tiene carácter salarial en tanto no constituye un servicio prestado. Es por ello, que para efectos del CCP, este objeto de gasto se clasifica como remuneración no constitutiva de factor salarial.","NE: La sentencia de la Honorable Corte Constitucional C-059/96 establece que el sueldo de vacaciones NO tiene carácter salarial en tanto no constituye un servicio prestado. Es por ello, que para efectos del CCP, este objeto de gasto se clasifica como remuneración no constitutiva de factor salarial."]
["0101030102",10,"01","01","03","01","02","",null,null,null,"INDEMNIZACIÓN POR VACACIONES","Corresponde a la compensación en dinero a la que tiene derecho el empleado público o trabajador oficial por vacaciones causadas, pero no disfrutadas. "]
["0101030103",10,"01","01","03","01","03","",null,null,null,"BONIFICACIÓN ESPECIAL DE RECREACIÓN","Corresponde al pago que se les hace a los empleados públicos por cada período de vacaciones, en cuantía equivalente a dos (2) días de la asignación básica mensual que les corresponda en el momento de iniciar el disfrute del respectivo período vacacional. Igualmente, habrá lugar a esta bonificación cuando las vacaciones se compensen en dinero."]
["0101030104",10,"01","01","03","01","04",null,null,null,null,"INDEMNIZACION COMPENSATORIO HORAS EXTRA ","Reconocimiento en dinero de los días compensatorios que se\nhubieren causado hasta la fecha de publicación del Decreto emitido por el DAFP , a favor de cada empleado público, siempre que exista disponibilidad presupuestal y no se afecten los recursos para el pago de horas extras que se vayan a causar en el resto de la presente vigencia.","Decreto 2377  del DAFP del 27 de diciembre de 2019"]
["0101030201",10,"01","01","03","02","01","",null,null,null,"PRIMA TÉCNICA NO SALARIAL","Es un reconocimiento económico a servidores públicos que desempeñen cargos altamente calificados cuyas funciones demanden la aplicación de conocimientos técnicos o científicos, o la realización de labores de dirección o de especial responsabilidad. Asimismo, la prima técnica reconoce el desempeño de los servidores en su cargo. (Departamento Administrativo de la Función Pública, 2015) De acuerdo con Artículo 7 del Decreto 1661 de 1991, no constituyen factor salarial: la prima técnica por evaluación del desempeño y la prima técnica automática.","Aplica UTP"]
["0101030301",10,"01","01","03","03","01","",null,null,null,"ESTÍMULOS A LOS EMPLEADOS DEL ESTADO ","Corresponde a la erogación que realizan las IES por concepto de incentivos pecuniarios al personal vinculado que desarrollen y fomenten la ciencia, la tecnología y  los proyectos de extensiòn, de acuerdo con la normativa de la institución y el Art. 71 de la Constitución Política. Asi mismo, se incluyen los gastos destinados al pago de distinciones para reconocer y exaltar los méritos excepcionales de los docentes, administrativos y trabajadores oficiales. ","\nNormativa:  Constitución Política Artículo 71.  Ley 30/1992, el Decreto 1663 de 1991, el Decreto 1210/1993 artículo 24 literal D\n detallar que norma aplica para las demas universidades. Se pueden crear nuevos niveles de desagregación.\nPOR EJEMPLO:\nParticipacion docente en proyectos de extensión,investigación o docencia.(TODOS )\nUNAL: incluye SARES por participar en proyectos de extensión, estimulos docentes por PEAMA.\nUTP:  Acuerdo 21 operación comercial.\nUDEA: Docentes o administrativos que participan en actividades especiales.\ndel VALLE: Docentes que participan en actividades especiales.\nUIS: Reconocimiento por trabajos especificos en desarrollo de procesos misionales para el personal academico-administrativo.\n"]
["0102030401",10,"01","02","03","04","01","",null,null,null,"BONIFICACIÓN CARGO ACADÉMICO ADMINISTRATIVO","Reconocimiento de bonificación mensual a los docentes que por acto administrativo desempeñan  cargos académico administrativos en funciones directivas.","Aplica por ejercer cargos directivos de Sede y de Facultad, Acuerdo 134 de 2013 CSU de la Universidad Nacional"]
["0101030501",10,"01","01","03","05","01","",null,null,null,"QUINQUENIOS","Recursos destinados al pago a que tienen derecho los empleados públicos al cumplirse cinco años de antigüedad de servicios prestados en un trabajo, según lo estipulado en la ley.","Para la UNAL no son constitutivos de factor salarial.   Se reconoce a servidores públicos administrativos  (Resolución 192/71 artículo 83 Lit. e, Acuerdo 57 de 1978 CSU) y Trabajadores Oficiales (Convención Colectiva octubre de 1978 Art.4o. parágrafo D)"]
["0101030601",10,"01","01","03","06","01","",null,null,null,"PRIMA DE MATRIMONIO","Corresponde a la prima que se reconoce y paga por única vez a los funcionarios que contraigan matrimonio en las entidades y regímenes legales en las que es reconocida.","UTP. Convención colectiva "]
["0101030701",10,"01","01","03","07","01",null,null,null,null,"PRIMA DE NACIMIENTO","Corresponde a la prima que se reconoce y paga a los funcionarios por el nacimiento de cada uno de sus hijos, durante el periodo que estén vinculados laboralmente en las entidades y regímenes legales en que es reconocida.","Univ Nacional:  Solo aplica para trabajadores oficiales  (Art.3o.  Convención Colectiva de 1997)"]
["0101030801",10,"01","01","03","08","01",null,null,null,null,"BONIFICACIÓN POR PRODUCTIVIDAD ACADEMICA"," Las bonificaciones son reconocimientos pecuniarios no salariales, que se reconocen por una sola vez, correspondientes a actividades específicas de productividad académica y no contemplan pagos genéricos indiscriminados (Decreto 1279 de 2002)","\nCorresponde a puntos no salariales que se otorgan a docentes de carrera universitaria  (Capítulo IV Decreto 1279 de 2002)"]
["0101030901",10,"01","01","03","09","01",null,null,null,null,"BONIFICACIÓN EDUCADORES DE BASICA Y MEDIA","Bonificación no constitutiva de salario otorgada a los docentes y directivos docentes al servicio del Estado en los niveles de preescolar, básica y media la cual se reconocerá anualmente, durante el tiempo que el servidor público permanezca en el servicio.","\n Aplica para los docentes del colegio  (Primaria y Secundaria) de la Univ Nacional, según Decreto 2565 de 2015 y Decreto 1022 de 2019 "]
["0101031001",10,"01","01","03","10","01",null,null,null,null,"BONIFICACION SINDICAL","Corresponde al pago por acuerdos en procesos de negociación sindical que se destinan a los servidores públicos,  no constitutivas de salario.","Ejemplo: Decreto 160 de 2014, por acuerdo con organizaciones sindicales UNAL Acuerdo CSU 05 de 1998\n"]
["0101031101",10,"01","01","03","11","01",null,null,null,null,"TRIENIOS","Recursos destinados al pago a que tienen derecho los empleados públicos al cumplirse tres años de antigüedad de servicios prestados en un trabajo, según lo estipulado en la ley.","Concepto exclusivo de la UTP"]
["0102",4,"01","02","","","","",null,null,null,"PERSONAL SUPERNUMERARIO Y PLANTA TEMPORAL"]
["010201",6,"01","02","01","","","",null,null,null,"SALARIO"]
["01020101",8,"01","02","01","01","","",null,null,null,"FACTORES SALARIALES COMUNES","Corresponde a los componentes del salario que son comunes a todo el personal vinculado laboralmente con las Instituciones de Educación Superior (empleados públicos y trabajadores oficiales)."]
["0102010101",10,"01","02","01","01","01","",null,null,null,"SUELDO BÁSICO","Corresponde a la parte del salario que se mantiene fija y se paga periódicamente, de acuerdo con las funciones y responsabilidades, los requisitos de conocimientos, la experiencia requerida para su ejercicio, la denominación y el grado establecidos en la nomenclatura, y la escala del respectivo nivel (Decreto 1042 de 1978, Art. 13). El sueldo básico se paga sin tener en cuenta adicional de horas extras, primas y otros factores eventuales o fijos que aumentan sus ingresos.Corresponde a la parte del salario que se mantiene fija y se paga periódicamente, de acuerdo con las funciones y responsabilidades, los requisitos de conocimientos, la experiencia requerida para su ejercicio, la denominación y el grado establecidos en la nomenclatura, y la escala del respectivo nivel (Decreto 1042 de 1978, Art. 13). El sueldo básico se paga sin tener en cuenta adicional de horas extras, primas y otros factores eventuales o fijos que aumentan sus ingresos.","Incluye periodos de comisión de estudios, años sabaticos, comisión de servicios,ademas de,  incapacidades asumidas por el patrono (caso UTP), por este rubro tambien se registran los gastos de representación de los docentes,  (Univ Nacional:  Solo aplica para el estamento docente, por el beneficio de exención tributaria  (Ley 2010 de 2019, artículo 32, numeral 9  Vacaciones)   Cada universidad discrimina internamente los objetos de gasto relacionados con el sueldo basico a nivel item y subitem."]
["0102010102",10,"01","02","01","01","02","",null,null,null,"GASTOS DE REPRESENTACIÓN","Corresponde a la asignación complementaria del sueldo, que se reconoce excepcional y restrictivamente a empleados de alto nivel jerárquico por el cumplimiento de sus funciones (Corte Constitucional, Sentencia C-461/2004).\nLos gastos de representación tienen por finalidad que los empleados de nivel directivo desempeñen sus funciones de acuerdo con la importancia de la representación que ostentan. Asimismo, se caracterizan por ser un beneficio personal en gracia de la posición, jerarquía, dignidad y responsabilidades señaladas al cargo.","APLICA SOLO SI GENERA UN EFECTO DE PAGO ADICIONAL A SU SUELDO PARA CARGOS DIRECTIVOS (según norma interna de la universidad)"]
["0102010103",10,"01","02","01","01","03","",null,null,null,"PRIMA TÉCNICA SALARIAL","Es un reconocimiento económico a servidores públicos que desempeñen cargos altamente calificados cuyas funciones demanden la aplicación de conocimientos técnicos o científicos, o la realización de labores de dirección o de especial responsabilidad. Asimismo, la prima técnica reconoce el desempeño de los servidores en su cargo. (Departamento Administrativo de la Función Pública, 2015)\n\nSe considera como factor salarial, la prima técnica por formación avanzada y experiencia altamente calificada, también conocida como prima técnica por estudio y experiencia, la cual se otorga a los empleados que acrediten estudios de formación avanzada o cinco años de experiencia calificada, en los siguientes cargos:\n Nivel directivo.\n Jefes de oficina asesora.\n Nivel asesor."]
["0102010104",10,"01","02","01","01","04","",null,null,null,"SUBSIDIO DE ALIMENTACIÓN","Corresponde al pago habitual y periódico de una suma de dinero, fijada por Decreto Nacional, y destinada a la provisión de alimento de los empleados públicos, y según lo contratado, de los trabajadores oficiales de determinados niveles salariales (Departamento Administrativo de la Función Pública, 2010).\nNo se tiene derecho a este subsidio cuando el funcionario está disfrutando de vacaciones, se encuentra en uso de licencia, suspendido o cuando la entidad suministra el servicio (Decreto 229 de 2016, Art. 12)."]
["0102010105",10,"01","02","01","01","05","",null,null,null,"AUXILIO DE TRANSPORTE","Corresponde al pago que se les hace a los servidores públicos que devenguen un sueldo mensual básico de hasta dos (2) veces el salario mínimo legal vigente (Decreto 2732 del 2014). Este auxilio tiene como fin el traslado del trabajador desde el sector de su residencia hasta el sitio de su trabajo y viceversa, y se paga por los empleadores en todos los lugares del país donde se preste el servicio público de transporte."]
["0102010106",10,"01","02","01","01","06","",null,null,null,"PRIMA DE SERVICIO","Corresponde al pago equivalente a quince (15) días de remuneración que se le reconoce al servidor público por cada año laborado, o proporcionalmente si el funcionario laboró como mínimo por seis meses en la entidad (Decreto 1042 de 1978, Art.58). Esta prima se paga los primeros quince días del mes de julio de cada año y se liquida sobre los siguientes factores de salario: El sueldo básico fijado por la ley para el respectivo cargo, Los incrementos salariales por antigüedad, Los gastos de representación, Los auxilios de alimentación y transporte, la bonificación por servicios prestados."]
["0102010107",10,"01","02","01","01","07","",null,null,null,"BONIFICACIÓN POR SERVICIOS PRESTADOS","Reconocimiento que se hace al empleado cada vez que cumpla un año continúo de labor en una misma entidad, equivalente al 50% del valor conjunto de la asignación básica mensual determinada por la ley para el respectivo cargo, sumada a los incrementos por antigüedad y los gastos de representación. Se paga en un plazo de veinte días después del cumplimiento de los requisitos para recibir la bonificación (Decreto 1042 de 1978, Art. 45,47 y 48)"]
["0102010108",10,"01","02","01","01","08","",null,null,null,"HORAS EXTRAS, DOMINICALES, FESTIVOS Y RECARGOS","Corresponde a la remuneración al trabajo suplementario o realizado en horas adicionales a la jornada ordinaria establecida. Su reconocimiento y pago están sujetos a las limitaciones de las disposiciones\nlegales vigentes.\nIncluye: Horas extras diurnas, Horas extras nocturnas, Trabajo ordinario u ocasional en días dominicales y festivos."]
["0102010109",10,"01","02","01","01","09","",null,null,null,"PRIMA DE NAVIDAD","Reconocimiento que otorga la ley a los empleados públicos y los trabajadores oficiales por haber servido durante todo el año civil. Esta prima es equivalente a un mes del salario que corresponda al cargo desempeñado en treinta de noviembre de cada año y se paga en la primera quincena del mes de diciembre. Cuando el empleado público o trabajador oficial no ha servido durante todo el año, tiene derecho a la mencionada prima de navidad en proporción al tiempo laborado, a razón de una doceava parte por cada mes completo de servicios, que se liquida y paga con base en el último salario devengado, o en el último promedio mensual, si fuere variable equivalente a un mes de remuneración liquidado o un porcentaje proporcional al tiempo laborado (Decreto 1045 de 1978, Art. 32)."]
["0102010110",10,"01","02","01","01","10","",null,null,null,"PRIMA DE VACACIONES","Reconocimiento que otorga la ley a los empleados públicos y los trabajadores oficiales, con el fin de brindarles mayores recursos económicos para gozar del periodo de vacaciones. Esta prima es equivalente a quince (15) días de salario por cada año trabajado y debe pagarse dentro de los cinco (5) días hábiles anteriores a la fecha señalada para la iniciación del descanso remunerado, salvo lo que se disponga en normas o estipulaciones especiales. la prima de vacaciones no se perderá en los casos en que se autorizare el pago de vacaciones en dinero (Decreto 1045 de 1978, arts. 24 a 29)."]
["0102010111",10,"01","02","01","01","11","",null,null,null,"VIÁTICOS DE LOS FUNCIONARIOS EN COMISIÓN","Son los pagos que reciben los funcionarios y trabajadores en comisión, para alojamiento, manutención y transporte, cuando: a) deban desempeñar sus funciones en un lugar diferente a su sede habitual de trabajo, ya sea dentro o fuera del país, o b) deba atender transitoriamente actividades oficiales distintas a las inherentes al empleo de que es titular (Departamento Administrativo de la Función Pública).\nLos viáticos de los funcionarios en comisión constituyen factor salarial común siempre y cuando se hayan percibido por un término no inferior a 180 días  (continuos o discontinuos) en el último año de servicio, de acuerdo con lo consagrado en el Artículo 45 del Decreto 1045 de 1978. NE1: Los viáticos de los funcionarios en comisión que sean por un término inferior a 180 días se clasifican como la adquisición de un servicio en la cuenta 02-02-02-010 Viáticos de los funcionarios en comisión.","Los viáticos de los funcionarios en comisión constituyen factor salarial común siempre y cuando se hayan percibido por un término no inferior a 180 días en el último año de servicio, de acuerdo con lo consagrado en el Artículo 45 del Decreto 1045 de 1978. PUEDEN SER 181 DIAS CONTINUOS O DISCONTINUOS."]
["01020102",8,"01","02","01","02","","",null,null,null,"FACTORES SALARIALES ESPECIALES","Corresponde a los componentes del salario de los sistemas especiales de remuneración, legalmente aprobados, y que se rigen por disposiciones particulares para determinados regímenes laborales y por tanto no son comunes a todas las Instituciones de Educación Superior.","Se va a evaluar con las areas de personal de cada universidad, de forma que se tengan pleno conocimiento de cuales clasificadores aplican. Para ese trabajo se hace necesario citar la norma (base legal) que la regula. Tener en cuenta el caso UIS y UDEA que no aportan  a caja de compensación "]
[{"$f":"CONCATENATE(C69,D69,E69,F69,G69,H69,I69,J69,K69)","v":"0102010201"},10,"01","02","01","02","01","",null,null,null,"PRIMA DE ANTIGÜEDAD","Corresponde al pago por los incrementos de salario por antigüedad que aplica a todos los servidores públicos que fueron vinculados con anterioridad  a la expedición del decreto  Ley 1042 de 1978, art 49.","Aplica para servidores públicos de la Universidad Nacional que ingresaron antes de junio de 1978.  (Art. 49 Decreto Ley 1042 de 1978)"]
["0102010202",10,"01","02","01","02","02",null,null,null,null,"QUINQUENIOS","Recursos destinados al pago a que tienen derecho los empleados públicos al cumplirse cinco años de antigüedad de servicios prestados en un trabajo, según lo estipulado en la ley. de acuerdo con la entidad y régimen salarial que rija para el mismo. “El quinquenio es un beneficio laboral que se reconoce con ocasión de la prestación del servicio por un lapso determinado, sin que manera alguna cubra riesgo o necesidad alguno del empleado. (Concepto 11547 de 2002 Departamento Administrativo de la Función Pública)","Aplica siempre y cuando se considere factor salarial para la universidad"]
["0102010203",{"$f":"LEN(A71)","v":10},"01","02","01","02","03",null,null,null,null,"PRIMA DE CARESTÍA","Reconocimiento que se hace en el mes de abril de cada año a los trabajadores oficiales vinculados a 31 de diciembre del año inmediatamente anterior de una prima de carestía, de conformidad con lo previsto en la convención colectiva de trabajo vigente.cada año a los trabajadores oficiales vinculados a 31 de diciembre del año inmediatamente anterior de una prima de carestía, de conformidad con lo previsto en la convención colectiva de trabajo vigente. NE : Concepto exclusivo Universidad Nacional de Colombia","Univ Nacional:  Trabajadores oficiales (Convención Colectiva de Trabajo 1991 Art. 3o.)"]
["0102010204",{"$f":"LEN(A72)","v":10},"01","02","01","02","04","",null,null,null,"BONIFICACIÓN CARGO ACADÉMICO ADMINISTRATIVO","Reconocimiento de bonificación mensual a los docentes que por acto administrativo desempeñan  cargos académico administrativos en funciones directivas.","Aplica por ejercer cargos directivos de Sede y de Facultad, Acuerdo 134 de 2013 CSU de la Universidad Nacional"]
["0102010205",10,"01","02","01","02","05",null,null,null,null,"BONIFICACIÓN BIENESTAR UNIVERSITARIO","Corresponde al pago a los servidores públicos según Acuerdo  CSU 005 de 1998, aplica para docentes de carrera universitaria. \nNE: Aplica para la Universidad Nacional de Colombia. "]
["010202",6,"01","02","02","","","",null,null,null,"CONTRIBUCIONES INHERENTES A LA NÓMINA","Corresponde a las contribuciones legales que debe hacer una entidad como empleadora, a entidades\ndel sector privado y público, tales como: Cajas de Compensación Familiar, SENA, ICBF, ESAP, Fondo\nNacional de Ahorro, Fondos Administradores de Cesantías y Pensiones, Empresas Promotoras de\nSalud privadas y públicas, así como, las administradoras públicas y privadas de aportes que se\ndestinan para accidentes de trabajo y enfermedad profesional (Ministerio de Hacienda y Crédito\nPúblico, 2011)."]
["01020201",8,"01","02","02","01","","",null,null,null,"PENSIONES","Es la contribución social a pagar por los empleadores a los fondos de seguridad social en pensiones. Este pago se realiza en virtud de la Ley 100 de 1993, por medio de la cual se creó el Sistema de Seguridad Social de Pensiones, y se estableció la obligatoriedad de la afiliación de todos los empleados al sistema."]
["0102020101",10,"01","02","02","01","01",null,null,null,null,"PENSIONES"]
["01020202",8,"01","02","02","02","","",null,null,null,"SALUD","Es la contribución social a pagar por los empleadores a las Entidades Promotoras en Salud - EPS para el cubrimiento de riesgos de salud de sus empleados. Este pago se realiza en virtud de la Ley 100 de 1993, la cual creó el Sistema de Seguridad Social en Salud y estableció como deberes del empleado y el empleador, realizar cumplidamente los aportes correspondientes (Ley 100 de 1993, Art. 161)."]
["0102020201",10,"01","02","02","02","01",null,null,null,null,"SALUD"]
["01020203",8,"01","02","02","03","","",null,null,null,"AUXILIO DE CESANTÍAS ","Es la contribución que se recauda a favor de un fondo administrador de cesantías, que el empleador está obligado a pagar en razón de un mes de sueldo o jornal por cada año de servicio de su empleado, proporcionalmente fraccionado; con el fin de cubrir o prever las necesidades que se originan al trabajador al momento de quedar cesante (Corte Constitucional, Sentencia C-823/2006)."]
["0102020301",10,"01","02","02","03","01",null,null,null,null,"AUXILIO DE CESANTÍAS "]
["01020204",8,"01","02","02","04","","",null,null,null,"CAJAS DE COMPENSACIÓN FAMILIAR","Es la contribución a pagar por los empleadores a una Caja de Compensación Familiar por concepto de los aportes para el subsidio familiar, los aportes al SENA y los demás aportes con destinación especial, en caso de que estos no puedan realizarse directamente a las entidades respectivas. Cuando esta situación se presente, dichos aportes se harán por conducto de una Caja de Compensación Familiar que funcione dentro de la ciudad o localidad donde se causen los salarios o de la Caja más próxima dentro de los límites de los respectivos departamentos, intendencias o comisarías (Ley 21 de 1982, Art. 15)."]
["0102020401",10,"01","02","02","04","01",null,null,null,null,"CAJAS DE COMPENSACIÓN FAMILIAR",null,"No aplica para las universides que no realizan aportes a la caja de compensación"]
["0102020501",10,"01","02","02","05","01","",null,null,null,"APORTES GENERALES AL SISTEMA DE RIESGOS LABORALES","Es la contribución a pagar por los empleadores a una Administradora de Riesgos Laborales - ARL para el cubrimiento de las prestaciones económicas y asistenciales derivadas de un accidente de trabajo o una enfermedad profesional. El monto de las cotizaciones no podrá ser inferior al 0.348%, ni superior al 8.7%, de la base de cotización de los trabajadores a cargo del respectivo empleador (Decreto 1295 de 1994, Art.18)."]
["0102020601",10,"01","02","02","06","01","",null,null,null,"APORTES AL ICBF","Es la contribución parafiscal a pagar por todos los patronos y entidades públicas y privadas51 al ICBF. la tarifa es equivalente al 3% de la nómina mensual de salarios y está destinada a atender a la creación y sostenimiento de centros de atención integral al preescolar, para menores de 7 años hijos de empleados públicos y de trabajadores oficiales y privados (Ley 27 de 1974, Art. 2; modificado por Ley 89 de 1998, Art. 1)."]
["010203",6,"01","02","03",null,"","",null,null,null,"REMUNERACIONES NO CONSTITUTIVAS DE FACTOR SALARIAL","Corresponde a los gastos del personal vinculado laboralmente con el Estado que la ley no reconoce como constitutivos de factor salarial. Estos pagos no forman parte de la base para el cálculo y pago de las prestaciones sociales, aportes parafiscales y seguridad social, aunque sí forman parte de la base de retención en la fuente, por ingresos laborales.\nRemuneración a profesores por horas Cátedra"]
["01020301",8,"01","02","03","01","","",null,null,null,"PRESTACIONES SOCIALES SEGÚN DEFINICIÓN LEGAL","Corresponde a las prestaciones sociales que la ley reconoce a los servidores públicos con el fin de cubrir riesgos o necesidades del trabajador en relación o con motivo de su trabajo. Estas prestaciones no retribuyen directamente los servicios prestados por los trabajadores."]
["0102030101",10,"01","02","03","01","01","",null,null,null,"SUELDO DE VACACIONES","Reconocimiento en tiempo libre y en dinero al que tiene derecho todo empleado público o trabajador oficial por haberle servido a la administración pública durante un (1) año. El valor correspondiente será establecido según normativa vigente.\nNE: La sentencia de la Honorable Corte Constitucional C-059/96 establece que el sueldo de vacaciones NO tiene carácter salarial en tanto no constituye un servicio prestado. Es por ello, que para efectos del CCP, este objeto de gasto se clasifica como remuneración no constitutiva de factor salarial.","NE: La sentencia de la Honorable Corte Constitucional C-059/96 establece que el sueldo de vacaciones NO tiene carácter salarial en tanto no constituye un servicio prestado. Es por ello, que para efectos del CCP, este objeto de gasto se clasifica como remuneración no constitutiva de factor salarial."]
["0102030102",10,"01","02","03","01","02","",null,null,null,"INDEMNIZACIÓN POR VACACIONES","Corresponde a la compensación en dinero a la que tiene derecho el empleado público o trabajador oficial por vacaciones causadas, pero no disfrutadas. "]
["0102030103",10,"01","02","03","01","03","",null,null,null,"BONIFICACIÓN ESPECIAL DE RECREACIÓN","Corresponde al pago que se les hace a los empleados públicos por cada período de vacaciones, en cuantía equivalente a dos (2) días de la asignación básica mensual que les corresponda en el momento de iniciar el disfrute del respectivo período vacacional. Igualmente, habrá lugar a esta bonificación cuando las vacaciones se compensen en dinero."]
["0102030104",10,"01","02","03","01","04",null,null,null,null,"INDEMNIZACION COMPENSATORIO HORAS EXTRA ","Reconocimiento en dinero de los días compensatorios que se\nhubieren causado hasta la fecha de publicación del Decreto emitido por el DAFP , a favor de cada empleado público, siempre que exista disponibilidad presupuestal y no se afecten los recursos para el pago de horas extras que se vayan a causar en el resto de la presente vigencia.","Decreto 2377  del DAFP del 27 de diciembre de 2019"]
["0102030201",10,"01","02","03","02","01","",null,null,null,"PRIMA TÉCNICA NO SALARIAL","Es un reconocimiento económico a servidores públicos que desempeñen cargos altamente calificados cuyas funciones demanden la aplicación de conocimientos técnicos o científicos, o la realización de labores de dirección o de especial responsabilidad. Asimismo, la prima técnica reconoce el desempeño de los servidores en su cargo. (Departamento Administrativo de la Función Pública, 2015) De acuerdo con Artículo 7 del Decreto 1661 de 1991, no constituyen factor salarial: la prima técnica por evaluación del desempeño y la prima técnica automática.","Aplica UTP (Anexar normativa)"]
["0102030301",10,"01","02","03","03","01","",null,null,null,"ESTÍMULOS A LOS EMPLEADOS DEL ESTADO ","Corresponde a la erogación que realizan las IES por concepto de incentivos pecuniarios al personal vinculado que desarrollen y fomenten la ciencia, la tecnología y  los proyectos de extensiòn, de acuerdo con la normativa de la institución y el Art. 71 de la Constitución Política. Asi mismo, se incluyen los gastos destinados al pago de distinciones para reconocer y exaltar los méritos excepcionales de los docentes, administrativos y trabajadores oficiales. ","\nNormativa:  Constitución Política Artículo 71.  Ley 30/1992, el Decreto 1663 de 1991, el Decreto 1210/1993 artículo 24 literal D\n detallar que norma aplica para las demas universidades. Se pueden crear nuevos niveles de desagregación.\nPOR EJEMPLO:\nParticipacion docente en proyectos de extensión,investigación o docencia.(TODOS )\nUNAL: incluye SARES por participar en proyectos de extensión, estimulos docentes por PEAMA.\nUTP:  Acuerdo 21 operación comercial.\nUDEA: Docentes o administrativos que participan en actividades especiales.\ndel VALLE: Docentes que participan en actividades especiales.\nUIS: Reconocimiento por trabajos especificos en desarrollo de procesos misionales para el personal academico-administrativo.\n"]
["0102030401",10,"01","02","03","04","01","",null,null,null,"BONIFICACIÓN CARGO ACADÉMICO ADMINISTRATIVO","Reconocimiento de bonificación mensual a los docentes que por acto administrativo desempeñan  cargos académico administrativos en funciones directivas.","Aplica por ejercer cargos directivos de Sede y de Facultad, Acuerdo 134 de 2013 CSU de la Universidad Nacional"]
["0102030501",10,"01","02","03","05","01","",null,null,null,"QUINQUENIOS","Recursos destinados al pago a que tienen derecho los empleados públicos al cumplirse cinco años de antigüedad de servicios prestados en un trabajo, según lo estipulado en la ley.","Para la UNAL no son constitutivos de factor salarial.   Se reconoce a servidores públicos administrativos  (Resolución 192/71 artículo 83 Lit. e, Acuerdo 57 de 1978 CSU) y Trabajadores Oficiales (Convención Colectiva octubre de 1978 Art.4o. parágrafo D)"]
["0102030601",10,"01","02","03","06","01",null,null,null,null,"PRIMA DE MATRIMONIO","Corresponde a la prima que se reconoce y paga por única vez a los funcionarios que contraigan matrimonio en las entidades y regímenes legales en las que es reconocida.","UTP. Convención colectiva "]
["0102030701",10,"01","02","03","07","01",null,null,null,null,"PRIMA DE NACIMIENTO","Corresponde a la prima que se reconoce y paga a los funcionarios por el nacimiento de cada uno de sus hijos, durante el periodo que estén vinculados laboralmente en las entidades y regímenes legales en que es reconocida.","Univ Nacional:  Solo aplica para trabajadores oficiales  (Art.3o.  Convención Colectiva de 1997)"]
["0102030801",10,"01","02","03","08","01",null,null,null,null,"BONIFICACIÓN POR PRODUCTIVIDAD ACADEMICA"," Las bonificaciones son reconocimientos pecuniarios no salariales, que se reconocen por una sola vez, correspondientes a actividades específicas de productividad académica y no contemplan pagos genéricos indiscriminados (Decreto 1279 de 2002)","\nCorresponde a puntos no salariales que se otorgan a docentes de carrera universitaria  (Capítulo IV Decreto 1279 de 2002)"]
["0102030901",10,"01","02","03","09","01",null,null,null,null,"BONIFICACIÓN EDUCADORES DE BASICA Y MEDIA","Bonificación no constitutiva de salario otorgada a los docentes y directivos docentes al servicio del Estado en los niveles de preescolar, básica y media la cual se reconocerá anualmente, durante el tiempo que el servidor público permanezca en el servicio.","\n Aplica para los docentes del colegio  (Primaria y Secundaria) de la Univ Nacional, según Decreto 2565 de 2015 y Decreto 1022 de 2019 "]
["0102031001",10,"01","02","03","10","01",null,null,null,null,"BONIFICACION SINDICAL","Corresponde al pago por acuerdos en procesos de negociación sindical que se destinan a los servidores públicos,  no constitutivas de salario.","Ejemplo: Decreto 160 de 2014, por acuerdo con organizaciones sindicales UNAL Acuerdo CSU 05 de 1998\n"]
["0101031101",10,"01","01","03","11","01",null,null,null,null,"TRIENIOS","Recursos destinados al pago a que tienen derecho los empleados públicos al cumplirse tres años de antigüedad de servicios prestados en un trabajo, según lo estipulado en la ley.","Concepto exclusivo de la UTP"]
["02",2,"02","","","","","",null,null,null,"ADQUISICIÓN DE BIENES  Y SERVICIOS","Son los gastos asociados a la adquisición de bienes y servicios, suministrados por personas naturales o jurídicas, que son necesarios para el cumplimiento de las funciones asignadas por la Constitución Política y la ley a las IES. "]
["0201",4,"02","01","","","","",null,null,null,"ADQUISICIÓN DE ACTIVOS NO FINANCIEROS","Son los gastos asociados a la adquisición de activos producidos y no producidos que de acuerdo con las políticas contables de cada institucion sea considerado un activo. Para efectos de esta cuenta, entiéndase por activos producidos aquellos que tienen su origen en procesos de producción, como lo son los activos fijos y los objetos de valor; y por activos no producidos, aquellos de origen natural como las tierras y terrenos y los recursos biológicos no cultivados (Fondo Monetario Internacional, 2014, pág. 197)"]
["020101",6,"02","01","01","","","",null,null,null,"ACTIVOS FIJOS","Son los gastos asociados a la adquisición de activos fijos que de acuerdo con las políticas contables de cada institución sean considerados como tal."]
["02010101",8,"02","01","01","01","","",null,null,null,"EDIFICACIONES Y ESTRUCTURAS","Son los gastos asociados a la adquisición de todo tipo de edificios y estructuras necesarias para el desarrollo de las funciones de las IES (Fondo Monetario Internacional, 2014, pág. 199).\nIncluye:\n Costos de limpieza y preparación del terreno para edificaciones nuevas.\n Accesorios fijos, instalaciones y equipos que forman parte integral de las estructuras"]
["0201010101",10,"02","01","01","01","01","",null,null,null,"VIVIENDAS ","Son los gastos asociados a la adquisición de edificios, o partes específicas de estos, que se utilizan para fines residenciales (Fondo Monetario Internacional, 2014, pág. 199).\nIncluye:\n Construcciones asociadas a la vivienda como los garajes.\n Costos de limpieza y preparación del terreno para edificaciones nuevas.\n\n\n"]
["020101010101",12,"02","01","01","01","01","01",null,null,null,"EDIFICIOS UTILIZADOS PARA RESIDENCIA"]
["020101010102",12,"02","01","01","01","01","02",null,null,null,"CASAS FLOTANTES"]
["020101010103",12,"02","01","01","01","01","03",null,null,null,"BARCAZAS"]
["020101010104",12,"02","01","01","01","01","04",null,null,null,"VIVIENDAS MÓVILES"]
["020101010105",12,"02","01","01","01","01","05",null,null,null,"COCHES HABITACIÓN"]
["020101010106",12,"02","01","01","01","01","06",null,null,null,"MONUMENTOS PÚBLICOS CONSIDERADOS PRINCIPALMENTE COMO VIVIENDAS"]
["020101010108",12,"02","01","01","01","01","08",null,null,null,"CONSTRUCCIONES PREFABRICADAS"]
["020101010109",12,"02","01","01","01","01","09",null,null,null,"OTROS EDIFICIOS UTILIZADOS COMO RESIDENCIA"]
["0201010102",10,"02","01","01","01","02","",null,null,null,"EDIFICIOS DISTINTOS A VIVIENDAS","Son los gastos asociados a la adquisición de edificios completos, o partes específicas de estos, destinados a fines distintos a los residenciales (Fondo Monetario Internacional, 2014, pág. 200).\nIncluye:\n Costos de limpieza y preparación del terreno para edificaciones nuevas."]
["020101010201",12,"02","01","01","01","02","01",null,null,null,"MONUMENTOS PÚBLICOS NO RESIDENCIALES"]
["020101010202",12,"02","01","01","01","02","02",null,null,null,"EDIFICIOS INDUSTRIALES"]
["020101010203",12,"02","01","01","01","02","03",null,null,null,"EDIFICIOS COMERCIALES"]
["020101010204",12,"02","01","01","01","02","04",null,null,null,"EDIFICIOS PÚBLICOS DE ENTRETENIMIENTO"]
["020101010205",12,"02","01","01","01","02","05",null,null,null,"EDIFICIOS DE HOTELES "]
["020101010206",12,"02","01","01","01","02","06",null,null,null,"RESTAURANTES"]
["020101010207",12,"02","01","01","01","02","07",null,null,null,"EDIFICIOS EDUCATIVOS"]
["020101010208",12,"02","01","01","01","02","08",null,null,null,"EDIFICIOS RELACIONADOS CON LA SALUD"]
["020101010209",12,"02","01","01","01","02","09",null,null,null,"PRISIONES"]
["020101010211",12,"02","01","01","01","02","11",null,null,null,"OTROS EDIFICIOS NO RESIDENCIALES"]
["0201010103",10,"02","01","01","01","03","",null,null,null,"OTRAS ESTRUCTURAS ","Son los gastos asociados a la adquisición de estructuras diferentes a edificios (Fondo Monetario\nInternacional, 2014, pág. 200)."]
["020101010301",12,"02","01","01","01","03","01",null,null,null,"AUTOPISTAS, CARRETERAS, CALLES"]
["020101010302",12,"02","01","01","01","03","02",null,null,null,"PISTAS DE ATERRIZAJE"]
["020101010303",12,"02","01","01","01","03","03",null,null,null,"FERROCARRILES"]
["020101010304",12,"02","01","01","01","03","04",null,null,null,"PUENTES"]
["020101010305",12,"02","01","01","01","03","05",null,null,null,"CARRETERAS ELEVADAS"]
["020101010306",12,"02","01","01","01","03","06",null,null,null,"TÚNELES"]
["020101010307",12,"02","01","01","01","03","07",null,null,null,"ACUEDUCTOS Y OTROS CONDUCTOS DE SUMINISTRO DE AGUA, EXCEPTO GASODUCTOS"]
[{"$f":"CONCATENATE(C133,D133,E133,F133,G133,H133,I133,J133,K133)","v":"020101010308"},12,"02","01","01","01","03","08",null,null,null,"PUERTOS, VÍAS NAVEGABLES E INSTALACIONES CONEXAS"]
["020101010309",12,"02","01","01","01","03","09",null,null,null,"REPRESAS"]
["020101010310",{"$f":"LEN(A135)","v":12},"02","01","01","01","03","10",null,null,null,"SISTEMAS DE RIEGO Y OBRAS HIDRÁULICA"]
["020101010311",12,"02","01","01","01","03","11",null,null,null,"TUBERÍAS DE LARGA DISTANCIA"]
["020101010312",12,"02","01","01","01","03","12",null,null,null,"OBRAS PARA LA COMUNICACIÓN DE LARGA DISTANCIA Y LAS LÍNEAS ELÉCTRICAS (CABLES)"]
["020101010313",12,"02","01","01","01","03","13",null,null,null,"GASODUCTOS Y OLEODUCTOS"]
["020101010314",12,"02","01","01","01","03","14",null,null,null,"CABLES LOCALES Y OBRAS CONEXAS"]
["020101010315",12,"02","01","01","01","03","15",null,null,null,"ALCANTARILLAS Y PLANTAS DE TRATAMIENTO DE AGUA"]
["020101010316",12,"02","01","01","01","03","16",null,null,null,"CONSTRUCCIONES EN MINAS Y PLANTAS INDUSTRIALES"]
["020101010317",12,"02","01","01","01","03","17",null,null,null,"CONSTRUCCIONES DEPORTIVAS AL AIRE LIBRE"]
["020101010318",12,"02","01","01","01","03","18",null,null,null,"OTRAS OBRAS DE INGENIERÍA CIVIL"]
["0201010104",10,"02","01","01","01","04","",null,null,null,"MEJORAS DE TIERRAS Y TERRENOS","Son los gastos asociados a todo tipo de acciones que generan mejoras importantes en la cantidad, la calidad o la productividad de la tierra, o que impiden su deterioro (Fondo Monetario Internacional,\n2014, pág. 200).\nIncluye:\n Recuperación, desmonte de tierras y cerramiento del terreno.\n Creación de pozos y abrevaderos que son parte integral de las tierras."]
["02010103",8,"02","01","01","03","","",null,null,null,"ACTIVOS FIJOS NO CLASIFICADOS COMO MAQUINARIA Y EQUIPO","Son los gastos asociados a la adquisición de activos fijos clasificados como otros bienes transportables (Excepto productos metálicos, maquinaria y equipo) dentro de la Clasificación Central de Productos – CPC."]
["0201010308",10,"02","01","01","03","08","",null,null,null,"MUEBLES, INSTRUMENTOS MUSICALES, ARTÍCULOS DE DEPORTE Y ANTIGÜEDADES"]
["020101030801",12,"02","01","01","03","08","01",null,null,null,"MUEBLES"]
["0201010308011",13,"02","01","01","03","08","01",1,null,null,"ASIENTOS"]
["0201010308012",13,"02","01","01","03","08","01",2,"","","MUEBLES, DEL TIPO UTILIZADO EN OFICINAS"]
["0201010308013",13,"02","01","01","03","08","01",3,"","","MUEBLES DE MADERA, DEL TIPO UTILIZADO EN LA COCINA"]
["0201010308014",13,"02","01","01","03","08","01",4,"","","OTROS MUEBLES N.C.P."]
["0201010308015",13,"02","01","01","03","08","01",5,"","","SOMIERES, COLCHONES CON MUELLES, RELLENOS O GUARNECIDOS INTERIORMENTE CON CUALQUIER MATERIAL, DE CAUCHO O PLÁSTICOS CELULARES, RECUBIERTOS O NO"]
["0201010308016",13,"02","01","01","03","08","01",6,"","","PARTES Y PIEZAS DE MUEBLES"]
["020101030803",12,"02","01","01","03","08","03",null,"","","INSTRUMENTOS MUSICALES"]
["020101030804",12,"02","01","01","03","08","04",null,"","","ARTÍCULOS DE DEPORTE"]
["020101030809",12,"02","01","01","03","08","09",null,"","","ANTIGÜEDADES U OTROS OBJETOS DE ARTE"]
["02010104",8,"02","01","01","04","","",null,"","","MAQUINARIA Y EQUIPO","Son los gastos asociados a la adquisición de todo tipo de maquinaria (Uso general, uso especial y uso contable), aparatos eléctricos, equipos de transporte, y equipo militar y de policía."]
["0201010403",10,"02","01","01","04","03","",null,"","","MAQUINARIA PARA USO GENERAL","Son los gastos asociados a la adquisición de motores y turbinas; bombas y compresores; engranajes, rodamientos y elementos de transmisión; hornos; máquinas de elevación y demás maquinaria para uso general."]
["020101040301",12,"02","01","01","04","03","01",null,"","","MOTORES Y TURBINAS Y SUS PARTES"]
["020101040302",12,"02","01","01","04","03","02",null,"","","BOMBAS, COMPRESORES, MOTORES DE FUERZA HIDRÁULICA Y MOTORES DE POTENCIA NEUMÁTICA Y VÁLVULAS Y SUS PARTES Y PIEZAS"]
["020101040303",12,"02","01","01","04","03","03",null,"","","COJINETES, ENGRANAJES, RUEDAS DE FRICCIÓN Y ELEMENTOS DE TRANSMISIÓN Y SUS PARTES Y PIEZAS"]
["020101040304",12,"02","01","01","04","03","04",null,"","","HORNOS Y QUEMADORES PARA ALIMENTACIÓN DE HOGARES Y SUS PARTES Y PIEZAS"]
["020101040305",12,"02","01","01","04","03","05",null,"","","EQUIPO DE ELEVACIÓN Y MANIPULACIÓN Y SUS PARTES Y PIEZAS"]
["020101040309",12,"02","01","01","04","03","09",null,"","","OTRAS MÁQUINAS PARA USOS GENERALES Y SUS PARTES Y PIEZAS"]
["0201010404",10,"02","01","01","04","04","",null,"","","MAQUINARIA PARA USOS ESPECIALES","Son los gastos asociados a la adquisición de maquinaria agropecuaria o silvícola; maquinaria para industria metalúrgica; maquinaria para minería y explotación de canteras; maquinaria para elaboración de alimentos; maquinaria para la fabricación de textiles y demás maquinaria para usos especiales."]
["020101040401",12,"02","01","01","04","04","01",null,"","","MAQUINARIA AGROPECUARIA O SILVÍCOLA Y SUS PARTES Y PIEZAS"]
["020101040402",12,"02","01","01","04","04","02",null,"","","MÁQUINAS HERRAMIENTAS Y SUS PARTES, PIEZAS Y ACCESORIOS"]
["020101040403",12,"02","01","01","04","04","03",null,"","","MAQUINARIA PARA LA INDUSTRIA METALÚRGICA Y SUS PARTES Y PIEZAS"]
["020101040404",12,"02","01","01","04","04","04",null,"","","MAQUINARIA PARA LA MINERÍA, LA EXPLOTACIÓN DE CANTERAS Y LA CONSTRUCCIÓN Y SUS PARTES Y PIEZAS"]
["020101040405",12,"02","01","01","04","04","05",null,"","","MAQUINARIA PARA LA ELABORACIÓN DE ALIMENTOS, BEBIDAS Y TABACO, Y SUS PARTES Y PIEZAS"]
["020101040406",12,"02","01","01","04","04","06",null,"","","MAQUINARIA PARA LA FABRICACIÓN DE TEXTILES, PRENDAS DE VESTIR Y ARTÍCULOS DE CUERO, Y SUS PARTES Y PIEZAS"]
["020101040408",12,"02","01","01","04","04","08",null,"","","APARATOS DE USO DOMÉSTICO Y SUS PARTES Y PIEZAS"]
["020101040409",12,"02","01","01","04","04","09",null,"","","OTRA MAQUINARIA PARA USOS ESPECIALES Y SUS PARTES Y PIEZAS"]
["0201010405",10,"02","01","01","04","05","",null,"","","MAQUINARIA DE OFICINA, CONTABILIDAD E INFORMÁTICA","Son los gastos asociados a la adquisición de máquinas de escribir o máquinas para procesamiento de datos; calculadoras o máquinas reproductoras de datos; cajas registradoras; cajeros automáticos, entre otras.","Computadores, teclados, discos duros, escaner, impresoras"]
["020101040501",12,"02","01","01","04","05","01",null,"","","MÁQUINAS PARA OFICINA Y CONTABILIDAD, Y SUS PARTES Y ACCESORIOS"]
["020101040502",12,"02","01","01","04","05","02",null,"","","MAQUINARIA DE INFORMÁTICA Y SUS PARTES, PIEZAS Y ACCESORIOS"]
["0201010406",10,"02","01","01","04","06","",null,"","","MAQUINARIA Y APARATOS ELÉCTRICOS","Son los gastos asociados a la adquisición de motores, generadores y transformadores eléctricos; aparatos de control eléctrico o distribución de electricidad; cables de fibra óptica; pilas y baterías\nprimarias; equipo de alumbrado; entre otras."]
["020101040601",12,"02","01","01","04","06","01",null,"","","MOTORES, GENERADORES Y TRANSFORMADORES ELÉCTRICOS Y SUS PARTES Y PIEZAS"]
["020101040602",12,"02","01","01","04","06","02",null,"","","APARATOS DE CONTROL ELÉCTRICO Y DISTRIBUCIÓN DE ELECTRICIDAD Y SUS PARTES Y PIEZAS"]
["020101040603",12,"02","01","01","04","06","03",null,"","","HILOS Y CABLES AISLADOS; CABLE DE FIBRA ÓPTICA"]
["020101040604",12,"02","01","01","04","06","04",null,"","","ACUMULADORES, PILAS Y BATERÍAS PRIMARIAS Y SUS PARTES Y PIEZAS"]
["020101040605",12,"02","01","01","04","06","05",null,"","","LÁMPARAS ELÉCTRICAS DE INCANDESCENCIA O DESCARGA; LÁMPARAS DE ARCO, EQUIPO PARA ALUMBRADO ELÉCTRICO; SUS PARTES Y PIEZAS"]
["020101040609",12,"02","01","01","04","06","09",null,"","","OTRO EQUIPO ELÉCTRICO Y SUS PARTES Y PIEZAS"]
["0201010407",10,"02","01","01","04","07","",null,"","","EQUIPO Y APARATOS DE RADIO, TELEVISIÓN Y COMUNICACIONES","Son los gastos asociados a la adquisición de componentes electrónicos; aparatos transmisores de televisión y radio; cámaras digitales y teléfonos, aparatos receptores de radio y televisión; dispositivos de almacenamientos como cintas y medios magnéticos; grabaciones de audio o video y tarjetas con bandas magnéticas."]
["020101040701",12,"02","01","01","04","07","01",null,"","","VÁLVULAS Y TUBOS ELECTRÓNICOS; COMPONENTES ELECTRÓNICOS; SUS PARTES Y PIEZAS"]
["020101040702",12,"02","01","01","04","07","02",null,"","","APARATOS TRANSMISORES DE TELEVISIÓN Y RADIO; TELEVISIÓN, VIDEO Y CÁMARAS DIGITALES; TELÉFONOS"]
["020101040703",12,"02","01","01","04","07","03",null,"","","RADIORRECEPTORES Y RECEPTORES DE TELEVISIÓN; APARATOS PARA LA GRABACIÓN Y REPRODUCCIÓN DE SONIDO Y VIDEO; MICRÓFONOS, ALTAVOCES, AMPLIFICADORES, ETC."]
["020101040704",12,"02","01","01","04","07","04",null,"","","PARTES Y PIEZAS DE LOS PRODUCTOS DE LAS CLASES 4721 A 4733 Y 4822"]
["020101040705",12,"02","01","01","04","07","05",null,"","","DISCOS, CINTAS, DISPOSITIVOS DE ALMACENAMIENTO EN ESTADO SÓLIDO NO VOLÁTILES Y OTROS MEDIOS, NO GRABADOS"]
["020101040706",12,"02","01","01","04","07","06",null,"","","GRABACIONES DE AUDIO, VIDEO Y OTROS DISCOS, CINTAS Y OTROS MEDIOS FÍSICOS"]
["020101040709",12,"02","01","01","04","07","09",null,"","","TARJETAS CON BANDAS MAGNÉTICAS O PLAQUETAS (CHIP)"]
["0201010408",10,"02","01","01","04","08","",null,"","","APARATOS MÉDICOS, INSTRUMENTOS ÓPTICOS Y DE PRECISIÓN, RELOJES","Son los gastos asociados a la adquisición de aparatos médicos y quirúrgicos; instrumentos y aparatos de medición, verificación y análisis; instrumentos ópticos y equipo fotográfico; y relojes."]
["020101040801",12,"02","01","01","04","08","01",null,"","","APARATOS MÉDICOS Y QUIRÚRGICOS Y APARATOS ORTÉSICOS Y PROTÉSICOS"]
["020101040802",12,"02","01","01","04","08","02",null,"","","INSTRUMENTOS Y APARATOS DE MEDICIÓN, VERIFICACIÓN, ANÁLISIS, DE NAVEGACIÓN Y PARA OTROS FINES (EXCEPTO INSTRUMENTOS ÓPTICOS); INSTRUMENTOS DE CONTROL DE PROCESOS INDUSTRIALES, SUS PARTES, PIEZAS Y ACCESORIOS"]
["020101040803",12,"02","01","01","04","08","03",null,"","","INSTRUMENTOS ÓPTICOS Y EQUIPO FOTOGRÁFICO; PARTES, PIEZAS Y ACCESORIOS"]
["020101040804",12,"02","01","01","04","08","04",null,"","","RELOJES Y SUS PARTES Y PIEZAS"]
[{"$f":"CONCATENATE(C197,D197,E197,F197,G197,H197,I197,J197,K197)","v":"0201010409"},10,"02","01","01","04","09","",null,"","","EQUIPO DE TRANSPORTE","Son los gastos asociados a la adquisición de vehículos automotores y remolques; carrocerías; buques; embarcaciones para deporte; locomotoras y material de ferrocarril y tranvía; aeronaves y naves espaciales y demás equipos de transporte"]
["020101040901",12,"02","01","01","04","09","01",null,"","","VEHÍCULOS AUTOMOTORES, REMOLQUES Y SEMIRREMOLQUES; Y SUS PARTES, PIEZAS Y ACCESORIOS"]
["020101040902",{"$f":"LEN(A199)","v":12},"02","01","01","04","09","02",null,"","","CARROCERÍAS (INCLUSO CABINAS) PARA VEHÍCULOS AUTOMOTORES; REMOLQUES Y SEMIRREMOLQUES; Y SUS PARTES, PIEZAS Y ACCESORIOS"]
["020101040903",12,"02","01","01","04","09","03",null,"","","BUQUES"]
["020101040904",12,"02","01","01","04","09","04",null,"","","EMBARCACIONES PARA DEPORTES Y RECREO"]
["020101040905",12,"02","01","01","04","09","05",null,"","","LOCOMOTORAS Y MATERIAL RODANTE DE FERROCARRIL Y TRANVÍA, Y SUS PARTES Y PIEZAS"]
["020101040906",12,"02","01","01","04","09","06",null,"","","AERONAVES Y NAVES ESPACIALES, Y SUS PARTES Y PIEZAS"]
["020101040909",12,"02","01","01","04","09","09",null,"","","OTRO EQUIPO DE TRANSPORTE, Y SUS PARTES Y PIEZAS"]
["0201010409091",13,"02","01","01","04","09","09",1,"","","MOTOCICLETAS Y SIDECARES (VEHÍCULOS LATERALES A LAS MOTOCICLETAS)"]
["0201010409092",13,"02","01","01","04","09","09",2,"","","BICICLETAS Y SILLONES DE RUEDAS PARA DISCAPACITADOS"]
["0201010409093",13,"02","01","01","04","09","09",3,"","","VEHÍCULOS N.C.P. SIN PROPULSIÓN MECÁNICA"]
["0201010409094",13,"02","01","01","04","09","09",4,"","","PARTES Y PIEZAS PARA LOS PRODUCTOS DE LAS CLASES 4991 Y 4992"]
["020101041007",12,"02","01","01","04","10","07",null,"","","OTROS EQUIPOS"]
["02010106",8,"02","01","01","06","","",null,"","","OTROS ACTIVOS FIJOS","Son los gastos asociados a la adquisición de activos fijos no clasificables en los rubros anteriores (Fondo Monetario Internacional, 2014, pág. 202). "]
["0201010601",10,"02","01","01","06","01","",null,"","","RECURSOS BIOLÓGICOS CULTIVADOS","Son los gastos asociados a la adquisición de animales, árboles, cultivos o plantas que generan productos en forma repetida y cuyo crecimiento natural y regeneración se encuentran bajo control, responsabilidad y manejo directo de una unidad (Fondo Monetario Internacional, 2014, pág. 202). \nNo incluye:  \n Bosques naturales y animales salvajes en tanto su crecimiento y regeneración no se encuentra bajo control de ninguna persona o entidad. "]
["020101060101",12,"02","01","01","06","01","01",null,"","","RECURSOS ANIMALES QUE GENERAN PRODUCTOS EN FORMA REPETIDA  ","Son los gastos asociados a la adquisición de animales que generan productos en forma repetida y cuyo crecimiento natural y regeneración se encuentran bajo control, responsabilidad y manejo directo de la entidad (Fondo Monetario Internacional, 2014, pág. 202). "]
["0201010601011",13,"02","01","01","06","01","01",1,"","","ANIMALES DE CRÍA"]
["0201010601012",13,"02","01","01","06","01","01",2,"","","GANADO LECHERO"]
["0201010601013",13,"02","01","01","06","01","01",3,"","","ANIMALES DE TIRO"]
["0201010601014",13,"02","01","01","06","01","01",4,"","","ANIMALES UTILIZADOS PARA LA PRODUCCIÓN DE LANA"]
["0201010601015",13,"02","01","01","06","01","01",5,"","","ANIMALES EMPLEADOS PARA EL TRANSPORTE"]
["0201010601016",13,"02","01","01","06","01","01",6,"","","ANIMALES EMPLEADOS PARA LAS CARRETAS"]
["0201010601017",13,"02","01","01","06","01","01",7,"","","ANIMALES EMPLEADOS PARA EL ESPARCIMIENTO"]
["0201010601018",13,"02","01","01","06","01","01",8,"","","OTROS ANIMALES QUE GENERAN PRODUCTOS EN FORMA REPETIDA  "]
["020101060102",12,"02","01","01","06","01","02",null,"","","ÁRBOLES, CULTIVOS Y PLANTAS QUE GENERAN PRODUCTOS EN FORMA REPETIDA "]
["0201010601021",13,"02","01","01","06","01","02",1,"","","ÁRBOLES FRUTALES"]
["0201010601022",13,"02","01","01","06","01","02",2,"","","ÁRBOLES CULTIVADOS POR SUS NUECES"]
["0201010601023",13,"02","01","01","06","01","02",3,"","","ÁRBOLES CULTIVADOS POR SU SAVIA"]
["0201010601024",13,"02","01","01","06","01","02",4,"","","ÁRBOLES CULTIVADOS POR SU RESINA"]
["0201010601025",13,"02","01","01","06","01","02",5,"","","ÁRBOLES CULTIVADOS POR SU CORTEZA U HOJAS"]
["0201010601026",13,"02","01","01","06","01","02",6,"","","OTROS ÁRBOLES, CULTIVOS Y PLANTAS QUE GENERAN PRODUCTOS EN FORMA REPETIDA "]
["0201010602",10,"02","01","01","06","02","",null,"","","PRODUCTOS DE LA PROPIEDAD INTELECTUAL","Son los gastos asociados a la adquisición de productos que resultan de la investigación, el desarrollo o la innovación, y que conducen a conocimientos, los cuales pueden ser vendidos en el mercado o utilizados para beneficio propio en la producción (Fondo Monetario Internacional, 2014, pág. 182). \nEl conocimiento se mantiene como un activo siempre y cuando cuente con algún tipo de protección legal, o de otra índole, que genera beneficios de monopolio para su dueño. Cuando ya no está protegido, se vuelve obsoleto en virtud de los últimos avances y deja de ser un activo (Fondo Monetario Internacional, 2014, pág. 182). "]
["020101060201",12,"02","01","01","06","02","01",null,"","","INVESTIGACIÓN Y DESARROLLO","Son los gastos asociados al trabajo creativo llevado a cabo de forma sistemática para incrementar el acervo de conocimientos y el uso de los mismos para idear nuevas aplicaciones (Fondo Monetario Internacional, 2014, pág. 203). "]
["020101060202",12,"02","01","01","06","02","02",null,"","","EXPLOTACIÓN Y EVALUACIÓN MINERA","Son los gastos asociados a la exploración de petróleo, gas natural, y de yacimientos no petrolíferos; así como los gastos asociados a la evaluación de los descubrimientos realizados (Fondo Monetario Internacional, 2014, pág. 204). "]
["0201010602021",13,"02","01","01","06","02","02",1,"","","COSTOS DE LAS PERFORACIONES DE PRUEBA Y SONDEO REALIZADAS"]
["0201010602022",13,"02","01","01","06","02","02",2,"","","COSTOS DE PRECALIFICACIÓN"]
["0201010602023",13,"02","01","01","06","02","02",3,"","","OBTENCIÓN DE LICENCIAS, ADQUISICIÓN Y AVALÚOS"]
["0201010602024",13,"02","01","01","06","02","02",4,"","","COSTOS DE TRANSPORTE"]
["0201010602025",13,"02","01","01","06","02","02",5,"","","OTROS COSTOS DE EVALUACIÓN Y EXPLOTACIÓN MINERA"]
["020101060203",12,"02","01","01","06","02","03",null,"","","PROGRAMAS DE INFORMÁTICA Y BASES DE DATOS","Son los gastos asociados a la adquisición de programas informáticos y bases de datos (Fondo Monetario Internacional, 2014, pág. 204 NE: No todos los gastos asociados a la compra de programas informáticos y bases de datos representan la adquisición de un activo fijo, también pueden registrarse como adquisiciones diferentes de activos.  \n \nPara asegurar la correcta clasificación del gasto revise la Tabla 7: Clasificación de adquisiciones de software VER TABLA\n\nNE: En algunos casos, una base de datos computarizada no puede desarrollarse independientemente de un sistema de gestión de la base de datos. Cuando esto ocurre el gasto se registra en la cuenta 02-01-01-006-002-03-1 Programas de informática. "]
["0201010602031",13,"02","01","01","06","02","03",1,"","","PROGRAMAS DE INFORMÁTICA       "]
["020101060203101",15,"02","01","01","06","02","03",1,"01","","PAQUETES DE SOFTWARE",null,"Revisar con la contabilidad  y Plan de cuentas contable"]
["020101060203102",15,"02","01","01","06","02","03",1,"02","","GASTOS DE DESARROLLO"]
["0201010602032",13,"02","01","01","06","02","03",2,null,"","BASES DE DATOS"]
["020101060204",12,"02","01","01","06","02","04",null,null,"","ORIGINALES DE ENTRETENIMIENTO, LITERATURA Y ARTE","Son los gastos asociados a la adquisición de películas, grabaciones sonoras, manuscritos, cintas y modelos originales que llevan gravadas o incorporadas representaciones teatrales, programas de radio y televisión, interpretaciones musicales, eventos deportivos y producciones literarias o artísticas (Fondo Monetario Internacional, 2014, pág. 205). \nNE: El material bibliográfico, hemerográfico, y audiográfico se clasifica como activo fijo cuando la misionalidad de la entidad es brindar acceso al mismo. De lo contrario, se clasifica como adquisiciones diferentes de activos en la cuenta 02-02-01 Materiales y suministros. "]
["020101060205",12,"02","01","01","06","02","05",null,null,"","OTROS PRODUCTOS DE PROPIEDAD INTELECTUAL","Son los gastos asociados a la adquisición de nueva información o de conocimiento especializado no clasificables en los rubros anteriores, cuyo uso se encuentre restringido a los órganos que han establecido derechos de propiedad sobre la información o a otras unidades que han sido autorizadas por los dueños (Fondo Monetario Internacional, 2014, pág. 205). "]
["020102",6,"02","01","02","","","",null,null,"","OBJETOS DE VALOR","Son los gastos asociados a la adquisición de activos de considerable valor que no son utilizados para fines de producción o consumo, sino que se mantienen como depósitos de valor a través del tiempo o se utilizan para su contemplación (Fondo Monetario Internacional, 2014, pág. 207). \nNo incluye:  \n Obras de arte, piezas artesanales y otros artículos de valor que se adquieran para su exhibición en museos o galerías. \nMuchos artículos que cuadran con la definición de objetos de valor que son propiedad de unidades del gobierno general se clasificarán como maquinaria y equipo no clasificados en otra partida (611222), dado que no se los mantiene principalmente como depósitos de valor sino que se los utiliza en la producción, por ejemplo al exhibirlos en museos del gobierno."]
["02010203",8,"02","01","02","03","","",null,null,"","OBJETOS DE VALOR "]
["0201020301",10,"02","01","02","03","01","",null,"","","JOYAS, METALES PRECIOSOS Y ANTIGÜEDADES"]
["020103",6,"02","01","03","","","",null,"","","ACTIVOS NO PRODUCIDOS","Son los gastos asociados a la adquisición de activos tangibles de origen natural (recursos naturales) sobre los que se ejercen derechos de propiedad (Fondo Monetario Internacional, 2014, pág. 207). \nNE: Si los derechos de propiedad sobre los recursos de origen natural no pueden hacerse respetar, dichos recursos no constituyen activos económicos. \n"]
["02010301",8,"02","01","03","01","","",null,"","","TIERRAS Y TERRENOS","Son los gastos asociados a la adquisición del suelo propiamente dicho sobre el que se han establecido derechos de propiedad y del cual se pueden derivar beneficios económicos para sus propietarios por su tenencia o uso (Fondo Monetario Internacional, 2014, pág. 207). "]
["02010302",8,"02","01","03","02","","",null,"","","RECURSOS BIOLÓGICOS NO CULTIVADOS","Son los gastos asociados a la adquisición de animales, aves, peces y plantas que producen productos una sola vez o de forma repetida y sobre los que se ejercen derechos de propiedad, pero cuyo crecimiento natural o regeneración no está bajo el control, responsabilidad y gestión directa de ninguna unidad (Fondo Monetario Internacional, 2014, pág. 209). "]
["0202",4,"02","02","",null,"","",null,"","","ADQUISICIONES DIFERENTES DE ACTIVOS","Son los gastos asociados a la adquisición de bienes (que no constituyen activos); así como los servicios suministrados por personas naturales y jurídicas que se utilizan para apoyar el desarrollo de las funciones de la entidad, tales como honorarios y remuneración servicios técnicos, para lo cual se deberá tener en cuenta lo establecido por el artículo 2.8.4.4.6 del Decreto 1068 de 2015"]
["020201",6,"02","02","01",null,"","",null,"","","MATERIALES Y SUMINISTROS","Son los gastos asociados a la adquisición de bienes que se utilizan como insumos en procesos de producción (Fondo Monetario Internacional, 2014, pág. 185). La característica distintiva de los materiales y suministros, en comparación a los activos fijos, es que son bienes que se utilizan durante 1 año, y que no quedan disponibles para un segundo o más años. \n\nNE: Es discrecionalidad de la entidad, definir cuales gastos representan adquisición de activos no financieros, y cuales adquisición de materiales y suministros teniendo en cuenta los criterios definidos por cada entidad en sus políticas contables."]
["02020100",8,"02","02","01","00","","",null,"","","AGRICULTURA, SILVICULTURA Y PRODUCTOS DE LA PESCA","Son los gastos asociados a la adquisición de productos relacionados con la agricultura, la horticultura, la silvicultura y los productos de explotación forestal. Incluye también la compra de animales o productos animales, y la compra de pescados o productos de la pesca. "]
["0202010001",10,"02","02","01","00","01","",null,"","","PRODUCTOS DE LA AGRICULTURA Y LA HORTICULTURA"]
["020201000101",12,"02","02","01","00","01","01",null,"","","CEREALES","Este grupo incluye los cereales; es decir, plantas transitorias de la familia de las gramíneas, producción de granos o semillas\nutilizados como tales o transformados para la alimentación, piensos, semillas o con  nes industriales; por ejemplo\npara la obtención del etanol.\nLas subclases de las semillas contienen cereales cultivados especí camente para las semillas, las cuales, generalmente,\ndeben cumplir con ciertos requisitos de calidad. Los cereales que no se cultivan especí camente para propósitos de semillas\ndeberán ser clasi cados como «otros», aunque una parte de la producción puede ser utilizada como semillas por\nel agricultor."]
["020201000102",12,"02","02","01","00","01","02",null,"","","HORTALIZAS","Este grupo incluye las hortalizas; es decir, los cultivos temporales utilizados principalmente para el consumo humano.\nSe incluyen los cultivos de huerta, al aire libre y bajo cubierta protectora. Se incluyen ciertas plantas gramíneas y leguminosas,\nsi se cosechan los granos verdes (maíz verde, fríjoles, arvejas verdes, etcétera). Este grupo también incluye los\nmelones, las sandías y los champiñones."]
["020201000103",12,"02","02","01","00","01","03",null,"","","FRUTAS Y NUECES","0131 Frutas tropicales y subtropicales\n0132 Cítricos\n0133, Uvas\n 0134, Bayas y frutos del género vaccinium\n0135 Frutas de pepita y frutas de hueso\n0136 01360 Semillas de frutas\n0137 Nueces, con cáscara"]
["020201000104",12,"02","02","01","00","01","04",null,"","","SEMILLAS Y FRUTOS OLEAGINOSOS"]
["020201000105",12,"02","02","01","00","01","05",null,"","","RAÍCES Y TUBÉRCULOS COMESTIBLES RICOS EN ALMIDÓN O INULINA"]
["020201000106",12,"02","02","01","00","01","06",null,"","","PLANTAS AROMÁTICAS, BEBESTIBLES Y ESPECIAS"]
["020201000107",12,"02","02","01","00","01","07",null,"","","LEGUMBRES, SECAS"]
["020201000108",12,"02","02","01","00","01","08",null,"","","PLANTAS UTILIZADAS EN LA FABRICACIÓN DE AZÚCAR"]
[{"$f":"CONCATENATE(C261,D261,E261,F261,G261,H261,I261,J261,K261)","v":"020201000109"},12,"02","02","01","00","01","09",null,"","","PRODUCTOS DE FORRAJE, FIBRAS, PLANTAS VIVAS, FLORES Y CAPULLOS DE FLORES, TABACO EN RAMA Y CAUCHO NATURAL"]
["0202010002",10,"02","02","01","00","02","",null,"","","ANIMALES VIVOS Y PRODUCTOS ANIMALES (EXCEPTO LA CARNE)"]
["020201000201",{"$f":"LEN(A263)","v":12},"02","02","01","00","02","01",null,"","","ANIMALES VIVOS"]
["0202010002011",13,"02","02","01","00","02","01",1,"","","BOVINOS VIVOS"]
["0202010002012",13,"02","02","01","00","02","01",2,"","","OTROS RUMIANTES"]
["0202010002013",13,"02","02","01","00","02","01",3,"","","CABALLOS Y OTROS ÉQUIDOS"]
["0202010002014",13,"02","02","01","00","02","01",4,"","","GANADO PORCINO"]
["0202010002015",13,"02","02","01","00","02","01",5,"","","AVES DE CORRAL"]
["0202010002019",13,"02","02","01","00","02","01",9,"","","OTROS ANIMALES VIVOS"]
["020201000202",12,"02","02","01","00","02","02",null,"","","LECHE CRUDA","La leche cruda de vaca.\nLa leche cruda del ganado ovino.\nLeche cruda del ganado caprino.\nLeche cruda de los camellos.\nLa leche cruda de animales diferentes a los bovinos, búfalos, ovejas, cabras y camellos"]
["020201000203",12,"02","02","01","00","02","03",null,"","","HUEVOS DE GALLINA O DE OTRAS AVES, CON CÁSCARA, FRESCOS","Los huevos de gallinas, con cáscara, frescos.\nLos huevos de aves distintas de las gallinas, con cáscara, frescos,"]
["020201000204",12,"02","02","01","00","02","04",null,"","","MATERIALES REPRODUCTIVOS DE ANIMALES"]
["020201000209",12,"02","02","01","00","02","09",null,"","","OTROS PRODUCTOS ANIMALES","La miel de abejas (Apis mellifera), centrifugada, en panales o con trozos de panales, sin adición de azúcar ni de otras\nmaterias.\nLos caracoles, frescos, refrigerados, congelados, secos, salados o en salmuera, excepto los caracoles marinos"]
["0202010003",10,"02","02","01","00","03","",null,"","","PRODUCTOS DE LA SILVICULTURA Y DE LA EXPLOTACIÓN FORESTAL","Ver pagina 117 del Tomo 1 del CPC "]
["020201000301",12,"02","02","01","00","03","01",null,"","","MADERA EN BRUTO","Esta subclase incluye:\n• La madera de coníferas en bruto, tal como se ha talado (troncos y trozas), incluso descortezada, pelada (sin el líber) o\ndesbastada con hacha o azuela; es decir, la madera sin las ramas de la que solo se han quitado las asperezas y las partes\nque estorban.\n• La madera de coníferas desalburada; es decir, la madera a la que se le ha quitado la capa exterior del árbol, formada\npor los anillos anuales de crecimiento más recientes, para evitar el deterioro de la madera o facilitar el transporte.\n• La madera de coníferas escuadrada, que abarca a la madera trabajada en todo el contorno o por lo menos en dos caras\nopuestas, la madera semiescuadrada con hacha o azuela o incluso toscamente trabajada con sierra para darle forma\naproximadamente cuadrada o rectangular. La madera escuadrada se caracteriza por la presencia de partes que no\nestán planas o de trazas de la corteza."]
["020201000302",12,"02","02","01","00","03","02",null,"","","PRODUCTOS FORESTALES DIFERENTES A LA MADERA","Esta subclase incluye:\n• La balata o goma balata que se extrae del látex de determinadas Sapotáceas, principalmente de la madera de abeja\n(Manilkara bidentata).\n• La gutapercha que se extrae del látex de ciertas especies vegetales (por ejemplo, de los géneros, Palaquium y Payena)\nperteneciente a la familia de las Sapotáceas.\n• La goma chicle, que se extrae del látex contenido en la corteza de algunos árboles de la familia de las Sapotáceas."]
["0202010004",10,"02","02","01","00","04","",null,"","","PESCADO Y OTROS PRODUCTOS DE LA PESCA"]
["02020101",8,"02","02","01","01","","",null,"","","MINERALES; ELECTRICIDAD, GAS Y AGUA","Son los gastos asociados a la adquisición de todo tipo de minerales incluidos el carbón, el petróleo, los concentrados de uranio y torio, los minerales metálicos, las piedras preciosas, entre otros. En esta cuenta también se registran los gastos por adquisición de energía eléctrica, gas de ciudad y agua caliente"]
["0202010101",10,"02","02","01","01","01","",null,"","","CARBÓN DE HULLA, LIGNITO Y TURBA","11010 Hulla, sin aglomerar\n11020 Briquetas y combustibles sólidos similares, producidos a base de hulla\n11030 Lignito, sin aglomerar\n11040 Lignito aglomerado\n11050 Turba\n"]
["0202010102",10,"02","02","01","01","02","",null,"","","PETRÓLEO CRUDO Y GAS NATURAL","12010 Aceites de petróleo y aceites obtenidos de minerales bituminosos, crudos\n12020 Gas natural licuado o en estado gaseoso\n12030 Bitumen o esquisto bituminoso y las arenas de alquitrán"]
["0202010103",10,"02","02","01","01","03","",null,"","","MINERALES Y CONCENTRADOS DE URANIO Y TORIO","130 Minerales y concentrados de uranio y torio"]
["0202010104",10,"02","02","01","01","04","",null,"","","MINERALES METÁLICOS","141 Minerales y concentrados de hierro (excepto las piritas de hierro tostadas)\n142 Minerales metálicos no ferrosos y sus concentrados (excepto minerales de uranio y torio y sus\nconcentrados)"]
["0202010105",10,"02","02","01","01","05","",null,"","","PIEDRA, ARENA Y ARCILLA","151 Roca o piedra de construcción y de talla\n152 Yeso; anhidrita, fundente calizo; piedra caliza y otras piedras calcáreas del tipo utilizado habitualmente\npara la fabricación de cal o cemento\n153 Arenas, cantos, gravas, piedra partida o triturada, betún y asfaltos naturales\n154 Arcillas"]
["0202010106",10,"02","02","01","01","06","",null,"","","OTROS MINERALES","161 Minerales para la industria química, abonos minerales\n162 1620 Cloruro de sodio puro y sus sales, agua de mar\n163 Piedras preciosas y semipreciosas; piedra pómez, piedra esmeril; abrasivos naturales; otros minerales"]
["020201010601",12,"02","02","01","01","06","01",null,"","","MINERALES PARA LA INDUSTRIA QUÍMICA, ABONOS MINERALES"]
["020201010602",12,"02","02","01","01","06","02",null,"","","CLORURO DE SODIO PURO Y SUS SALES, AGUA DE MAR"]
["020201010603",12,"02","02","01","01","06","03",null,"","","PIEDRAS PRECIOSAS Y SEMIPRECIOSAS; PIEDRA PÓMEZ, PIEDRA ESMERIL; ABRASIVOS NATURALES; OTROS MINERALES"]
["0202010107",10,"02","02","01","01","07","",null,"","","ELECTRICIDAD, GAS DE CIUDAD, VAPOR Y AGUA CALIENTE"]
["020201010701",12,"02","02","01","01","07","01",null,"","","ENERGÍA ELÉCTRICA","La generación de energía eléctrica, incluidas las instalaciones térmicas, nucleares, hidroeléctricas, de turbina de gas,\nde diésel y de energías renovables."]
["020201010702",12,"02","02","01","01","07","02",null,"","","GAS DE CARBÓN, GAS DE AGUA, GAS POBRE Y OTROS GASES SIMILARES (EXCEPTO LOS GASES DE PETRÓLEO Y OTROS HIDROCARBUROS GASEOSOS)","La fabricación y distribución de gas.\nEl gas de hulla obtenido por destilación de la hulla fuera del contacto con el aire en las fábricas de gas o en las coquerías\n(mezcla compleja de hidrógeno, metano, óxido de carbono, etc., que se utiliza para calefacción o alumbrado).\n• El gas obtenido por carbonización (gasi cación) de los propios  lones en el suelo, así como el gas de agua, el gas pobre\ny gases similares, tales como el gas de alto horno, por ejemplo; lo mismo ocurre con las mezclas de gas de composición\nanáloga a la del gas de hulla utilizadas indistintamente en calefacción o alumbrado y para síntesis de productos químicos,\ntales como el metanol y el amoníaco. En este último caso se suele denominar «gas de síntesis». Estas mezclas\nse obtienen por un procedimiento especial de craqueo o reformado de aceite mineral, gas de petróleo o gas natural,\ngeneralmente en presencia de vapor de agua."]
["020201010703",12,"02","02","01","01","07","03",null,"","","VAPOR Y AGUA CALIENTE","La producción y distribución de vapor y agua caliente."]
["020201010704",12,"02","02","01","01","07","04",null,"","","NIEVE","La nieve tanto natural como la arti cial (agua congelada)."]
["0202010108",10,"02","02","01","01","08","",null,"","","AGUA NATURAL","Agua natural (excepto agua de mar, vapor y agua caliente, aguas carbonatadas y embotelladas; agua\ndestilada y aguas residuales)\nEl agua potable y no potable, agua susceptible de nueva utilización, incluyendo:\n• El agua tratada (por ejemplo, plantas desalinizadoras, plantas de tratamiento de agua).\n• Las aguas no tratadas (por ejemplo, agua obtenida directamente de las fuentes naturales).\n• Las aguas usadas susceptibles de nuevo uso."]
["02020102",8,"02","02","01","02","","",null,"","","PRODUCTOS ALIMENTICIOS, BEBIDAS Y TABACO; TEXTILES, PRENDAS DE VESTIR Y PRODUCTOS DE CUERO","Son los gastos asociados a la adquisición de productos alimenticios como la carne; las preparaciones y conservas de pescados, frutas y hortalizas; los productos lácteos y ovoproductos; los productos de la molinería; y todo tipo de bebidas. Esta sección incluye también la adquisición de hilados, tejidos, artículos textiles y dotación66"]
["0202010201",10,"02","02","01","02","01","",null,"","","CARNE, PESCADO, FRUTAS, HORTALIZAS, ACEITES Y GRASAS"]
["020201020101",12,"02","02","01","02","01","01",null,"","","CARNE Y PRODUCTOS CÁRNICOS"]
["020201020102",12,"02","02","01","02","01","02",null,"","","PREPARACIONES Y CONSERVAS DE PESCADO, CRUSTÁCEOS, MOLUSCOS Y DEMÁS INVERTEBRADOS ACUÁTICOS"]
["020201020103",12,"02","02","01","02","01","03",null,"","","PREPARACIONES Y CONSERVAS DE HORTALIZAS, LEGUMBRES, TUBÉRCULOS Y PAPAS"]
["020201020104",12,"02","02","01","02","01","04",null,"","","PREPARACIONES Y CONSERVAS DE FRUTAS Y NUECES"]
["020201020105",12,"02","02","01","02","01","05",null,"","","ACEITES Y GRASAS ANIMALES Y VEGETALES "]
["020201020106",12,"02","02","01","02","01","06",null,"","","BORRA DE ALGODÓN"]
["020201020107",12,"02","02","01","02","01","07",null,"","","TORTAS Y DEMÁS RESIDUOS DE LA EXTRACCIÓN DE GRASAS O ACEITES VEGETALES; HARINA Y POLVO DE SEMILLAS O DE FRUTOS OLEAGINOSOS (EXCEPTO LAS DE MOSTAZA); CERAS VEGETALES (EXCEPTO LOS TRIGLICÉRIDOS); DEGRÁS, RESIDUOS DEL TRATAMIENTO DE GRASAS Y CERAS ANIMALES O VEGETALES"]
["0202010202",10,"02","02","01","02","02","",null,"","","PRODUCTOS LÁCTEOS Y OVOPRODUCTOS"]
["0202010203",10,"02","02","01","02","03","",null,"","","PRODUCTOS DE MOLINERÍA, ALMIDONES Y PRODUCTOS DERIVADOS DEL ALMIDÓN; OTROS PRODUCTOS ALIMENTICIOS"]
["020201020301",12,"02","02","01","02","03","01",null,"","","PRODUCTOS DE MOLINERÍA"]
["020201020302",12,"02","02","01","02","03","02",null,"","","ALMIDONES Y PRODUCTOS DERIVADOS DEL ALMIDÓN, AZÚCARES Y JARABES DE AZÚCAR N.C.P."]
["020201020303",12,"02","02","01","02","03","03",null,"","","PREPARACIONES UTILIZADAS EN LA ALIMENTACIÓN DE ANIMALES"]
["020201020304",12,"02","02","01","02","03","04",null,"","","PRODUCTOS DE PANADERÍA"]
["020201020305",12,"02","02","01","02","03","05",null,"","","AZÚCAR"]
["020201020306",12,"02","02","01","02","03","06",null,"","","CACAO, CHOCOLATE Y CONFITERÍA"]
["020201020307",12,"02","02","01","02","03","07",null,"","","MACARRONES, FIDEOS, ALCUZCUZ Y PRODUCTOS FARINÁCEOS SIMILARES"]
["020201020308",12,"02","02","01","02","03","08",null,"","","PRODUCTOS DEL CAFÉ"]
["020201020309",12,"02","02","01","02","03","09",null,"","","OTROS PRODUCTOS ALIMENTICIOS N.C.P."]
["0202010204",10,"02","02","01","02","04","",null,"","","BEBIDAS"]
["020201020401",12,"02","02","01","02","04","01",null,"","","ALCOHOL ETÍLICO; AGUARDIENTES, LICORES Y OTRAS BEBIDAS ESPIRITUOSAS"]
["020201020402",12,"02","02","01","02","04","02",null,"","","VINOS"]
["020201020403",12,"02","02","01","02","04","03",null,"","","LICORES DE MALTA Y MALTA"]
["020201020404",12,"02","02","01","02","04","04",null,"","","BEBIDAS NO ALCOHÓLICAS; AGUAS MINERALES EMBOTELLADAS"]
["0202010205",10,"02","02","01","02","05","",null,"","","PRODUCTOS DE TABACO"]
["0202010206",10,"02","02","01","02","06","",null,"","","HILADOS E HILOS; TEJIDOS DE FIBRAS TEXTILES INCLUSO AFELPADOS"]
["0202010207",10,"02","02","01","02","07","",null,"","","ARTÍCULOS TEXTILES (EXCEPTO PRENDAS DE VESTIR)"]
["0202010208",10,"02","02","01","02","08","",null,"","","DOTACIÓN (PRENDAS DE VESTIR Y CALZADO)"]
["02020103",8,"02","02","01","03","","",null,"","","OTROS BIENES TRANSPORTABLES (EXCEPTO PRODUCTOS METÁLICOS, MAQUINARIA Y EQUIPO)","Son los gastos asociados a la adquisición de productos de madera; libros, diarios o publicaciones impresas; productos de refinación de petróleo y combustibles; productos químicos; productos de caucho y plástico; productos de vidrio; muebles; desechos; entre otros. "]
["0202010301",10,"02","02","01","03","01","",null,"","","PRODUCTOS DE MADERA, CORCHO, CESTERÍA Y ESPARTERÍA","Madera aserrada o cortada longitudinalmente,\ncortada en hojas o descortezada,\nde más de 6 mm de espesor;\ndurmientes (traviesas) de madera\npara vías de ferrocarril o tranvías, sin\nimpregnar","La fabricación de madera aserrada o cortada longitudinalmente, cortada en hojas o descortezada, traviesas de madera\nsin impregnar para vías de ferrocarril."]
[{"$f":"CONCATENATE(C325,D325,E325,F325,G325,H325,I325,J325,K325)","v":"0202010302"},10,"02","02","01","03","02","",null,"","","PASTA O PULPA, PAPEL Y PRODUCTOS DE PAPEL; IMPRESOS Y ARTÍCULOS RELACIONADOS","Consultar pagina 309 del tomo 1 CPC.\n"]
["020201030201",12,"02","02","01","03","02","01",null,"","","PASTA DE PAPEL, PAPEL Y CARTÓN","3211 Pasta o pulpa de madera u otras materias\ncelulósicas  brosas\n3212 Papel de periódico, papeles fabricados\na mano y otros papeles y cartones en\nrollos o en hojas, sin revestir, del tipo\nutilizado para usos grá cos, para tarjetas\ny cintas para perforar.\n3213 Papel del tipo utilizado para la fabricación\nde papel higiénico o papel facial,\npapel y cartón kra  en rollos sin\nrevestir; otros papeles y cartones sin\nrevestir; otros tipos de papel n.c.p.\n3214 Papel y cartón procesado.\n3215 Papeles y cartones ondulados (corrugados\no acanalados), envases de papel\ny cartón\nPapel carbón, papel de autocopia y\notros papeles para copiar o reportar,\nno recortados en tamaños a granel;\nesténciles para copiadoras y planchas\nde o set"]
["020201030202",{"$f":"LEN(A327)","v":12},"02","02","01","03","02","02",null,"","","LIBROS IMPRESOS ","32210 Libros de texto educativos impresos\n32220 Diccionarios, enciclopedias, atlas y\notros libros de mapas o grá cos; fascículos\no entrega por series de estos\ntítulos\n32230 Directorios impresos\n3229 Otros libros impresos\n32291 Libros impresos para profesionales,\ntécnicos y académicos\n3229101 Libros cientí cos y técnicos, impresos\n32292 Libros impresos para niños\n3229201 Libros animados impresos \n3229202 Libros (cuadernos) para dibujar y\ncolorear, impresos \n32299 Otros libros impresos n.c.p.\n3229901 Libros de arte y literatura, impresos \n3229902 Libros religiosos impresos \n3229903 Libros temáticos diversos, \n3229904 Fotonovelas, historietas, horóscopos y\njuegos de azar, publicados en forma de\nlibros impresos \n3229905 Fotonovelas, historietas, horóscopos y\njuegos de azar, publicados en fascículos,\nfolletos, hojas sueltas e impresos\nsimilares\n3229906 Libros publicados en fascículos, folletos,\nhojas sueltas e impresos similares\n"]
["020201030203",12,"02","02","01","03","02","03",null,"","","DIARIOS, REVISTAS Y PUBLICACIONES PERIÓDICAS, PUBLICADOS POR LO MENOS CUATRO VECES POR SEMANA","32300 Diarios, revistas y publicaciones periódicas\nimpresas, publicados por lo\nmenos cuatro veces por semana\n3230001 Periódicos impresos publicados cuatro\no más veces por semana\n3230002 Revistas impresas publicadas cuatro o\nmás veces por semana\n3230003 Magazines, tiras cómicas o historietas\ngrá cas impresas publicadas cuatro o\nmás veces por semana\n"]
["020201030204",12,"02","02","01","03","02","04",null,"","","DIARIOS, REVISTAS Y PUBLICACIONES PERIÓDICAS, PUBLICADOS MENOS DE CUATRO VECES POR SEMANA","32410 Periódicos de interés general, revistas\ny publicaciones periódicas impresas,\npublicados menos de cuatro veces por\nsemana\n32420 Periódicos, revistas y publicaciones\nperiódicas empresariales, profesionales\no académicas impresas, publicados\nmenos de cuatro veces por semana\n32490 Otros periódicos, revistas y publicaciones\nperiódicas impresas, publicados\nmenos de cuatro veces por semana\n"]
["020201030205",12,"02","02","01","03","02","05",null,"","","MAPAS IMPRESOS; MÚSICA IMPRESA O EN MANUSCRITO; TARJETAS POSTALES, TARJETAS DE FELICITACIÓN, FOTOGRAFÍAS Y PLANOS","3251 Mapas y cartas geográ cas, hidrográ-\n cas y similares (incluso mapas de\npared, planos topográ cos y globos\nterráqueos), impresos (excepto en forma\nde libros)\n32520 Partituras impresas o manuscritas\n32530 Tarjetas postales impresas o ilustradas;\ntarjetas impresas con felicitación\no mensajes personales, incluyan o no\nsobres y adornos\n32540 Grabados, diseños y fotografías\nimpresos\n32550 Planos y dibujos de arquitectura o ingeniería\ny otros planos y dibujos para\n nes industriales, comerciales y topográ\n cos o  nes similares, originales\ntrazados a mano; textos manuscritos;\nreproducciones fotográ cas y copias\ncarbónicas de dichos artículos\n"]
["020201030206",12,"02","02","01","03","02","06",null,"","","SELLOS, CHEQUERAS, BILLETES DE BANCO, TÍTULOS DE ACCIONES, CATÁLOGOS Y FOLLETOS, MATERIAL PARA ANUNCIOS PUBLICITARIOS Y OTROS MATERIALES IMPRESOS ","32610 Sellos de correo, timbres  scales y similares,\nsin cancelar; papel timbrado;\ntalonarios de cheques; billetes de banco,\ncerti cados de acciones, bonos y\notros documentos de títulos similares\n"]
["020201030207",12,"02","02","01","03","02","07",null,"","","LIBROS DE REGISTROS, LIBROS DE CONTABILIDAD, CUADERNILLOS DE NOTAS, BLOQUES PARA CARTAS, AGENDAS Y ARTÍCULOS SIMILARES, SECANTES, ENCUADERNADORES, CLASIFICADORES PARA ARCHIVOS, FORMULARIOS Y OTROS ARTÍCULOS DE ESCRITORIO, DE PAPEL O CARTÓN","Libros de registros, libros de contabilidad,\ncuadernillos de notas, bloques\npara cartas, agendas y artículos\nsimilares, secantes, encuadernadores,\nclasi cadores para archivos, formularios\ny otros artículos de escritorio, de\npapel o cartón"]
["020201030208",12,"02","02","01","03","02","08",null,"","","TIPOS DE IMPRENTA, PLANCHAS O CILINDROS, PREPARADOS PARA LAS ARTES GRÁFICAS, PIEDRAS LITOGRÁFICAS IMPRESAS U OTROS ELEMENTOS DE IMPRESIÓN","32800 Tipos de imprenta, planchas o cilindros,\npreparados para las artes grá-\n cas, piedras litográ cas impresas u\notros elementos de impresión"]
["0202010303",10,"02","02","01","03","03","",null,"","","PRODUCTOS DE HORNOS DE COQUE; PRODUCTOS DE REFINACIÓN DE PETRÓLEO Y COMBUSTIBLE NUCLEAR"]
["020201030301",12,"02","02","01","03","03","01",null,"","","CARBÓN COQUE Y SEMICOQUE, CARBÓN DE LIGNITO O CARBÓN DE HULLA; CARBÓN DE RETORTA"]
["020201030302",12,"02","02","01","03","03","02",null,"","","ALQUITRÁN DE CARBÓN, DE CARBÓN LIGNITO, HULLA Y OTRAS TORTAS MINERALES"]
["020201030303",12,"02","02","01","03","03","03",null,"","","ACEITES DE PETRÓLEO O ACEITES OBTENIDOS DE MINERALES BITUMINOSOS (EXCEPTO LOS ACEITES CRUDOS); PREPARADOS N.C.P., QUE CONTENGAN POR LO MENOS EL 70% DE SU PESO EN ACEITES DE ESOS TIPOS Y CUYOS COMPONENTES BÁSICOS SEAN ESOS ACEITES"]
["020201030304",12,"02","02","01","03","03","04",null,"","","GAS DE PETRÓLEO Y OTROS HIDROCARBUROS GASEOSOS (EXCEPTO GAS NATURAL)"]
["020201030305",12,"02","02","01","03","03","05",null,"","","VASELINA, CERA DE PARAFINA, CERA DE PETRÓLEO DE MICROCRISTALINA, CERA CRUDA, OZOCERITA, CERA DE LIGNITO, CERA DE TURBA, OTRAS CERAS MINERALES Y PRODUCTOS SIMILARES, COQUE DE PETRÓLEO, BETÚN DE PETRÓLEO Y OTROS RESIDUOS DE LOS ACEITES DE PETRÓLEO O DE ACEITES OBTENIDOS DE MINERALES BITUMINOSOS"]
["020201030306",12,"02","02","01","03","03","06",null,"","","ELEMENTOS RADIACTIVOS, ISÓTOPOS Y COMPUESTOS RADIACTIVOS; ALEACIONES, DISPERSIONES, PRODUCTOS CERÁMICOS Y MEZCLAS QUE CONTENGAN ESTOS ELEMENTOS, ISÓTOPOS O COMPUESTOS RADIACTIVOS; RESIDUOS RADIACTIVOS"]
["020201030307",12,"02","02","01","03","03","07",null,"","","ELEMENTOS COMBUSTIBLES (CARTUCHOS) PARA REACTORES NUCLEARES O DE REACTORES NUCLEARES"]
["0202010304",10,"02","02","01","03","04","",null,"","","QUÍMICOS BÁSICOS"]
["020201030401",12,"02","02","01","03","04","01",null,"","","QUÍMICOS ORGÁNICOS BÁSICOS "]
["020201030402",12,"02","02","01","03","04","02",null,"","","PRODUCTOS QUÍMICOS INORGÁNICOS BÁSICOS N.C.P."]
["020201030403",12,"02","02","01","03","04","03",null,"","","EXTRACTOS TINTÓREOS Y CURTIENTES; TANINOS Y SUS DERIVADOS; SUSTANCIAS COLORANTES N.C.P."]
["020201030404",12,"02","02","01","03","04","04",null,"","","PRODUCTOS MINERALES NATURALES ACTIVADOS; NEGRO ANIMAL; ACEITE DE RESINA; ACEITES TERPÉNICOS PRODUCIDOS EN EL TRATAMIENTO DE MADERAS DE ÁRBOLES CONÍFEROS; DIPENTENO Y Ρ-CIMENO EN BRUTO; ACEITE DE PINO; COLOFONIA Y ÁCIDOS RESÍNICOS, ESENCIAS Y ACEITES DE COLOFONIA; GOMAS FUNDIDAS; ALQUITRÁN DE MADERA; ACEITES DE ALQUITRÁN DE MADERA; CREOSOTA DE MADERA; NAFTA DE MADERA; PEZ VEGETAL; PEZ DE CERVECERÍA"]
["020201030405",12,"02","02","01","03","04","05",null,"","","PRODUCTOS QUÍMICOS BÁSICOS DIVERSOS"]
["020201030406",12,"02","02","01","03","04","06",null,"","","ABONOS Y PLAGUICIDAS"]
["020201030407",12,"02","02","01","03","04","07",null,"","","PLÁSTICOS EN FORMAS PRIMARIAS"]
["020201030408",12,"02","02","01","03","04","08",null,"","","CAUCHO SINTÉTICO Y FACTICIO DERIVADO DEL PETRÓLEO, MEZCLAS DE ESTOS CAUCHOS CON CAUCHO NATURAL Y GOMAS NATURALES SIMILARES, EN FORMAS PRIMARIAS O EN PLANCHAS, HOJAS O TIRAS"]
["0202010305",10,"02","02","01","03","05","",null,"","","OTROS PRODUCTOS QUÍMICOS; FIBRAS ARTIFICIALES (O FIBRAS INDUSTRIALES HECHAS POR EL HOMBRE)"]
["020201030501",12,"02","02","01","03","05","01",null,"","","PINTURAS Y BARNICES Y PRODUCTOS RELACIONADOS; COLORES PARA LA PINTURA ARTÍSTICA; TINTAS"]
["020201030502",12,"02","02","01","03","05","02",null,"","","PRODUCTOS FARMACÉUTICOS"]
["020201030503",12,"02","02","01","03","05","03",null,"","","JABÓN, PREPARADOS PARA LIMPIEZA, PERFUMES Y PREPARADOS DE TOCADOR"]
["020201030504",12,"02","02","01","03","05","04",null,"","","PRODUCTOS QUÍMICOS N.C.P."]
["020201030505",12,"02","02","01","03","05","05",null,"","","FIBRAS TEXTILES MANUFACTURADAS"]
["0202010306",10,"02","02","01","03","06","",null,"","","PRODUCTOS DE CAUCHO Y PLÁSTICO"]
["020201030601",12,"02","02","01","03","06","01",null,"","","LLANTAS DE CAUCHO Y NEUMÁTICOS (CÁMARAS DE AIRE)"]
["020201030602",12,"02","02","01","03","06","02",null,"","","OTROS PRODUCTOS DE CAUCHO"]
["020201030603",12,"02","02","01","03","06","03",null,"","","SEMIMANUFACTURAS DE PLÁSTICO"]
["020201030604",12,"02","02","01","03","06","04",null,"","","PRODUCTOS DE EMPAQUE Y ENVASADO, DE PLÁSTICO"]
["020201030609",12,"02","02","01","03","06","09",null,"","","OTROS PRODUCTOS PLÁSTICOS"]
["0202010307",10,"02","02","01","03","07","",null,"","","VIDRIO Y PRODUCTOS DE VIDRIO Y OTROS PRODUCTOS NO METÁLICOS N.C.P."]
["020201030701",12,"02","02","01","03","07","01",null,"","","VIDRIO Y PRODUCTOS DE VIDRIO"]
["020201030702",12,"02","02","01","03","07","02",null,"","","ARTÍCULOS DE CERÁMICA NO ESTRUCTURAL"]
["020201030703",12,"02","02","01","03","07","03",null,"","","PRODUCTOS REFRACTARIOS Y PRODUCTOS ESTRUCTURALES NO REFRACTARIOS DE ARCILLA"]
["020201030704",12,"02","02","01","03","07","04",null,"","","YESO, CAL Y CEMENTO"]
["020201030705",12,"02","02","01","03","07","05",null,"","","ARTÍCULOS DE CONCRETO, CEMENTO Y YESO"]
["020201030706",12,"02","02","01","03","07","06",null,"","","PIEDRA DE CONSTRUCCIÓN O DE TALLA LABRADAS, Y SUS MANUFACTURAS (EXCEPTO SIN LABRAR, QUE SE CLASIFICAN EN EL GRUPO 151)"]
["020201030709",12,"02","02","01","03","07","09",null,"","","OTROS PRODUCTOS MINERALES NO METÁLICOS N.C.P."]
["0202010308",10,"02","02","01","03","08","",null,"","","OTROS BIENES TRANSPORTABLES N.C.P.(no clasificados en otra parte)",null,"Se clasifican los bienes que ya han sido transformados para su uso especifico."]
["020201030801",12,"02","02","01","03","08","01",null,null,null,"MUEBLES"]
["022010308011",12,"02",2,"01","03","08","01",1,null,null,"ASIENTOS"]
["022010308012",12,"02",2,"01","03","08","01",2,"","","MUEBLES, DEL TIPO UTILIZADO EN OFICINAS"]
["022010308013",12,"02",2,"01","03","08","01",3,"","","MUEBLES DE MADERA, DEL TIPO UTILIZADO EN LA COCINA"]
["022010308014",12,"02",2,"01","03","08","01",4,"","","OTROS MUEBLES N.C.P."]
["022010308015",12,"02",2,"01","03","08","01",5,"","","SOMIERES, COLCHONES CON MUELLES, RELLENOS O GUARNECIDOS INTERIORMENTE CON CUALQUIER MATERIAL, DE CAUCHO O PLÁSTICOS CELULARES, RECUBIERTOS O NO"]
["022010308016",12,"02",2,"01","03","08","01",6,"","","PARTES Y PIEZAS DE MUEBLES"]
["020201030803",12,"02","02","01","03","08","03",null,"","","INSTRUMENTOS MUSICALES"]
["020201030804",12,"02","02","01","03","08","04",null,"","","ARTÍCULOS DE DEPORTE"]
["020201030805",12,"02","02","01","03","08","05",null,"","","JUEGOS Y JUGUETES"]
["020201030806",12,"02","02","01","03","08","06",null,"","","TIOVIVOS (CARRUSELES), COLUMPIOS, CASETAS DE TIRO Y DEMÁS ATRACCIONES DE FERIA"]
["020201030807",12,"02","02","01","03","08","07",null,"","","CONSTRUCCIONES PREFABRICADAS"]
["020201030809",12,"02","02","01","03","08","09",null,"","","OTROS ARTÍCULOS MANUFACTURADOS N.C.P."]
["0202010309",10,"02","02","01","03","09","",null,"","","DESPERDICIOS; DESECHOS Y RESIDUOS"]
["02020104",8,"02","02","01","04","","",null,"","","PRODUCTOS METÁLICOS Y PAQUETES DE SOFTWARE","Son los gastos asociados a la adquisición de metales básicos, productos metálicos elaborados y elementos clasificados como maquinaria y equipo y paquetes de software, que no constituyan un activo para la entidad que los adquiere"]
["0202010401",10,"02","02","01","04","01","",null,"",null,"METALES BÁSICOS"]
["0202010402",10,"02","02","01","04","02","",null,"","","PRODUCTOS METÁLICOS ELABORADOS (EXCEPTO MAQUINARIA Y EQUIPO)"]
[{"$f":"CONCATENATE(C389,D389,E389,F389,G389,H389,I389,J389,K389)","v":"0202010403"},10,"02","02","01","04","03","",null,"","","MAQUINARIA PARA USO GENERAL"]
["020201040301",12,"02","02","01","04","03","01",null,"","","MOTORES Y TURBINAS Y SUS PARTES"]
["020201040302",{"$f":"LEN(A391)","v":12},"02","02","01","04","03","02",null,"","","BOMBAS, COMPRESORES, MOTORES DE FUERZA HIDRÁULICA Y MOTORES DE POTENCIA NEUMÁTICA Y VÁLVULAS Y SUS PARTES Y PIEZAS"]
["020201040303",12,"02","02","01","04","03","03",null,"","","COJINETES, ENGRANAJES, RUEDAS DE FRICCIÓN Y ELEMENTOS DE TRANSMISIÓN Y SUS PARTES Y PIEZAS"]
["020201040304",12,"02","02","01","04","03","04",null,"","","HORNOS Y QUEMADORES PARA ALIMENTACIÓN DE HOGARES Y SUS PARTES Y PIEZAS"]
["020201040305",12,"02","02","01","04","03","05",null,"",null,"EQUIPO DE ELEVACIÓN Y MANIPULACIÓN Y SUS PARTES Y PIEZAS"]
["020201040309",12,"02","02","01","04","03","09",null,"","","OTRAS MÁQUINAS PARA USOS GENERALES Y SUS PARTES Y PIEZAS"]
["0202010404",10,"02","02","01","04","04","",null,"","","MAQUINARIA PARA USOS ESPECIALES"]
["020201040401",12,"02","02","01","04","04","01",null,"","","MAQUINARIA AGROPECUARIA O SILVÍCOLA Y SUS PARTES Y PIEZAS"]
["020201040402",12,"02","02","01","04","04","02",null,"","","MÁQUINAS HERRAMIENTAS Y SUS PARTES, PIEZAS Y ACCESORIOS"]
["020201040403",12,"02","02","01","04","04","03",null,"","","MAQUINARIA PARA LA INDUSTRIA METALÚRGICA Y SUS PARTES Y PIEZAS"]
["020201040404",12,"02","02","01","04","04","04",null,"","","MAQUINARIA PARA LA MINERÍA, LA EXPLOTACIÓN DE CANTERAS Y LA CONSTRUCCIÓN Y SUS PARTES Y PIEZAS"]
["020201040405",12,"02","02","01","04","04","05",null,"","","MAQUINARIA PARA LA ELABORACIÓN DE ALIMENTOS, BEBIDAS Y TABACO, Y SUS PARTES Y PIEZAS"]
["020201040406",12,"02","02","01","04","04","06",null,"","","MAQUINARIA PARA LA FABRICACIÓN DE TEXTILES, PRENDAS DE VESTIR Y ARTÍCULOS DE CUERO, Y SUS PARTES Y PIEZAS"]
["020201040408",12,"02","02","01","04","04","08",null,"","","APARATOS DE USO DOMÉSTICO Y SUS PARTES Y PIEZAS"]
["020201040409",12,"02","02","01","04","04","09",null,"","","OTRA MAQUINARIA PARA USOS ESPECIALES Y SUS PARTES Y PIEZAS"]
["0202010405",10,"02","02","01","04","05","",null,"","","MAQUINARIA DE OFICINA, CONTABILIDAD E INFORMÁTICA",null,"Computadores, teclados, discos duros, escaner, impresoras"]
["020201040501",12,"02","02","01","04","05","01",null,"","","MÁQUINAS PARA OFICINA Y CONTABILIDAD, Y SUS PARTES Y ACCESORIOS"]
["020201040502",12,"02","02","01","04","05","02",null,"","","MAQUINARIA DE INFORMÁTICA Y SUS PARTES, PIEZAS Y ACCESORIOS"]
["0202010406",10,"02","02","01","04","06","",null,"","","MAQUINARIA Y APARATOS ELÉCTRICOS"]
["020201040601",12,"02","02","01","04","06","01",null,"","","MOTORES, GENERADORES Y TRANSFORMADORES ELÉCTRICOS Y SUS PARTES Y PIEZAS"]
["020201040602",12,"02","02","01","04","06","02",null,"","","APARATOS DE CONTROL ELÉCTRICO Y DISTRIBUCIÓN DE ELECTRICIDAD Y SUS PARTES Y PIEZAS"]
["020201040603",12,"02","02","01","04","06","03",null,"","","HILOS Y CABLES AISLADOS; CABLE DE FIBRA ÓPTICA"]
["020201040604",12,"02","02","01","04","06","04",null,"","","ACUMULADORES, PILAS Y BATERÍAS PRIMARIAS Y SUS PARTES Y PIEZAS"]
["020201040605",12,"02","02","01","04","06","05",null,"","","LÁMPARAS ELÉCTRICAS DE INCANDESCENCIA O DESCARGA; LÁMPARAS DE ARCO, EQUIPO PARA ALUMBRADO ELÉCTRICO; SUS PARTES Y PIEZAS"]
["020201040609",12,"02","02","01","04","06","09",null,"","","OTRO EQUIPO ELÉCTRICO Y SUS PARTES Y PIEZAS"]
["0202010407",10,"02","02","01","04","07","",null,"","","EQUIPO Y APARATOS DE RADIO, TELEVISIÓN Y COMUNICACIONES","47213 Cámaras de televisión\n47214 Cámaras videograbadoras\n47215 Cámaras digitales\n4722 Teléfonos, incluyendo teléfonos para redes celulares o para otras redes inalámbricas, otros aparatos para\nla transmisión o recepción de voz, imágenes u otros datos, incluyendo aparatos para comunicación de\nredes alámbricas o inalámbricas (tanto en redes de áreas locales como en una red amplia).\n47221 Teléfonos de línea \u001fja con auriculares inalámbricos\n473 Radiorreceptores y receptores de televisión; aparatos para la grabación y reproducción de sonido y\nvideo; micrófonos, altavoces, ampli\u001dcadores, etc.\n47321 Aparatos para la grabación y reproducción de sonido\n475 Discos, cintas, dispositivos de almacenamiento en estado sólido no volátiles y otros medios, no\ngrabados\nEsta subclase excluye:\n• Los discos duros. Se incluyen en la subclase 45271, «Unidades de almacenamiento de medio \u001ejo».\n• Los medios magnéticos grabados:\n– Audio, video o texto. Se incluyen en el grupo 476, «Grabaciones de audio, video y otros discos, cintas y otros medios\nfísicos».\n– Paquetes de so\u001cware. Se incluyen en el grupo 478, «Paquetes de so\u001cware».\n"]
["020201040701",12,"02","02","01","04","07","01",null,"","","VÁLVULAS Y TUBOS ELECTRÓNICOS; COMPONENTES ELECTRÓNICOS; SUS PARTES Y PIEZAS"]
["020201040702",12,"02","02","01","04","07","02",null,"","","APARATOS TRANSMISORES DE TELEVISIÓN Y RADIO; TELEVISIÓN, VIDEO Y CÁMARAS DIGITALES; TELÉFONOS"]
["020201040703",12,"02","02","01","04","07","03",null,"","","RADIORRECEPTORES Y RECEPTORES DE TELEVISIÓN; APARATOS PARA LA GRABACIÓN Y REPRODUCCIÓN DE SONIDO Y VIDEO; MICRÓFONOS, ALTAVOCES, AMPLIFICADORES, ETC."]
["020201040704",12,"02","02","01","04","07","04",null,"","","PARTES Y PIEZAS DE LOS PRODUCTOS DE LAS CLASES 4721 A 4733 Y 4822"]
["020201040705",12,"02","02","01","04","07","05",null,"","","DISCOS, CINTAS, DISPOSITIVOS DE ALMACENAMIENTO EN ESTADO SÓLIDO NO VOLÁTILES Y OTROS MEDIOS, NO GRABADOS"]
["020201040706",12,"02","02","01","04","07","06",null,"","","GRABACIONES DE AUDIO, VIDEO Y OTROS DISCOS, CINTAS Y OTROS MEDIOS FÍSICOS"]
["020201040708",12,"02","02","01","04","07","08",null,"","","PAQUETES DE SOFTWARE "]
["020201040709",12,"02","02","01","04","07","09",null,"","","TARJETAS CON BANDAS MAGNÉTICAS O PLAQUETAS (CHIP)"]
["0202010408",10,"02","02","01","04","08","",null,"","","APARATOS MÉDICOS, INSTRUMENTOS ÓPTICOS Y DE PRECISIÓN, RELOJES"]
["020201040801",12,"02","02","01","04","08","01",null,"","","APARATOS MÉDICOS Y QUIRÚRGICOS Y APARATOS ORTÉSICOS Y PROTÉSICOS"]
["020201040802",12,"02","02","01","04","08","02",null,"","","INSTRUMENTOS Y APARATOS DE MEDICIÓN, VERIFICACIÓN, ANÁLISIS, DE NAVEGACIÓN Y PARA OTROS FINES (EXCEPTO INSTRUMENTOS ÓPTICOS); INSTRUMENTOS DE CONTROL DE PROCESOS INDUSTRIALES, SUS PARTES, PIEZAS Y ACCESORIOS"]
["020201040803",12,"02","02","01","04","08","03",null,"","","INSTRUMENTOS ÓPTICOS Y EQUIPO FOTOGRÁFICO; PARTES, PIEZAS Y ACCESORIOS"]
["020201040804",12,"02","02","01","04","08","04",null,"","","RELOJES Y SUS PARTES Y PIEZAS"]
["0202010409",10,"02","02","01","04","09","",null,"","","EQUIPO DE TRANSPORTE"]
["020201040901",12,"02","02","01","04","09","01",null,"","","VEHÍCULOS AUTOMOTORES, REMOLQUES Y SEMIRREMOLQUES; Y SUS PARTES, PIEZAS Y ACCESORIOS"]
["020201040902",12,"02","02","01","04","09","02",null,"","","CARROCERÍAS (INCLUSO CABINAS) PARA VEHÍCULOS AUTOMOTORES; REMOLQUES Y SEMIRREMOLQUES; Y SUS PARTES, PIEZAS Y ACCESORIOS"]
["020201040903",12,"02","02","01","04","09","03",null,"","","BUQUES"]
["020201040904",12,"02","02","01","04","09","04",null,"","","EMBARCACIONES PARA DEPORTES Y RECREO"]
["020201040905",12,"02","02","01","04","09","05",null,"","","LOCOMOTORAS Y MATERIAL RODANTE DE FERROCARRIL Y TRANVÍA, Y SUS PARTES Y PIEZAS"]
["020201040906",12,"02","02","01","04","09","06",null,"","","AERONAVES Y NAVES ESPACIALES, Y SUS PARTES Y PIEZAS"]
["020201040909",12,"02","02","01","04","09","09",null,"","","OTRO EQUIPO DE TRANSPORTE, Y SUS PARTES Y PIEZAS"]
["0202010409091",13,"02","02","01","04","09","09",1,"","","MOTOCICLETAS Y SIDECARES (VEHÍCULOS LATERALES A LAS MOTOCICLETAS)"]
["0202010409092",13,"02","02","01","04","09","09",2,"","","BICICLETAS Y SILLONES DE RUEDAS PARA DISCAPACITADOS"]
["0202010409093",13,"02","02","01","04","09","09",3,"","","VEHÍCULOS N.C.P. SIN PROPULSIÓN MECÁNICA"]
["0202010409094",13,"02","02","01","04","09","09",4,"","","PARTES Y PIEZAS PARA LOS PRODUCTOS DE LAS CLASES 4991 Y 4992"]
["020202",6,"02","02","02","","","",null,"","","ADQUISICIÓN DE SERVICIOS","Son los gastos asociados a la contratación de servicios que complementan el desarrollo de las funciones de las IES , o que permiten mantener y proteger los bienes que son de su propiedad o están a su cargo (Ministerio de Hacienda y Crédito Público, 2011, pág. 254\n\nNE: Cuando la contratación de servicios incluye componentes físicos que modifican el valor de un activo fijo asociado se debe clasificar como adquisición de activos no financieros en la cuenta 02-01-01 Activos fijos según corresponda. "]
["02020205",8,"02","02","02","05","","",null,"","","SERVICIOS DE LA CONSTRUCCIÓN","Son los gastos asociados a la adquisición de servicios de construcción como preparaciones de terreno, montaje de construcciones prefabricadas, instalaciones, servicios de terminación y acabados de edificios, entre otros. ","Incluyen la reparación, modificación, restauración de edificaciones (mantenimiento)"]
["0202020504",10,"02","02","02","05","04","",null,"","","SERVICIOS DE CONSTRUCCIÓN"]
["020202050401",12,"02","02","02","05","04","01",null,"","","SERVICIOS GENERALES DE CONSTRUCCIÓN DE EDIFICACIONES"]
["0202020504011",13,"02","02","02","05","04","01",1,"","","SERVICIOS GENERALES DE CONSTRUCCIÓN DE EDIFICACIONES RESIDENCIALES"]
["0202020504012",13,"02","02","02","05","04","01",2,"","","SERVICIOS GENERALES DE CONSTRUCCIÓN DE EDIFICACIONES NO RESIDENCIALES"]
["020202050402",12,"02","02","02","05","04","02",null,"","","SERVICIOS GENERALES DE CONSTRUCCIÓN DE OBRAS DE INGENIERÍA CIVIL"]
["0202020504021",13,"02","02","02","05","04","02",1,"","","SERVICIOS GENERALES DE CONSTRUCCIÓN DE CARRETERAS (EXCEPTO CARRETERAS ELEVADAS), CALLES, VÍAS FÉRREAS Y PISTAS DE ATERRIZAJE"]
["0202020504022",13,"02","02","02","05","04","02",2,"","","SERVICIOS GENERALES DE CONSTRUCCIÓN DE PUENTES, CARRETERAS ELEVADAS Y TÚNELES"]
["0202020504023",13,"02","02","02","05","04","02",3,"","","SERVICIOS GENERALES DE CONSTRUCCIÓN DE PUERTOS, CANALES, PRESAS, SISTEMAS DE RIEGO Y OTRAS OBRAS HIDRÁULICAS"]
["0202020504024",13,"02","02","02","05","04","02",4,"","","SERVICIOS GENERALES DE CONSTRUCCIÓN DE TUBERÍAS PARA LA CONDUCCIÓN DE GAS A LARGA DISTANCIA, LÍNEAS DE COMUNICACIÓN Y CABLES DE PODER"]
["0202020504025",13,"02","02","02","05","04","02",5,"","","SERVICIOS GENERALES DE CONSTRUCCIÓN DE TUBERÍAS Y CABLES LOCALES, Y OBRAS CONEXAS"]
[{"$f":"CONCATENATE(C453,D453,E453,F453,G453,H453,I453,J453,K453)","v":"0202020504026"},13,"02","02","02","05","04","02",6,"","","SERVICIOS GENERALES DE CONSTRUCCIÓN EN MINAS Y PLANTAS INDUSTRIALES"]
["0202020504027",13,"02","02","02","05","04","02",7,"","","SERVICIOS GENERALES DE CONSTRUCCIONES DEPORTIVAS AL AIRE LIBRE"]
["0202020504029",{"$f":"LEN(A455)","v":13},"02","02","02","05","04","02",9,"","","SERVICIOS GENERALES DE CONSTRUCCIÓN DE OTRAS OBRAS DE INGENIERÍA CIVIL"]
["020202050403",12,"02","02","02","05","04","03",null,"","","SERVICIOS DE PREPARACIÓN DEL TERRENO"]
["020202050404",12,"02","02","02","05","04","04",null,"","","MONTAJE Y ERECCIÓN DE CONSTRUCCIONES PREFABRICADAS"]
["020202050405",12,"02","02","02","05","04","05",null,"","","SERVICIOS ESPECIALES DE CONSTRUCCIÓN "]
["020202050406",12,"02","02","02","05","04","06",null,"","","SERVICIOS DE INSTALACIONES"]
["020202050407",12,"02","02","02","05","04","07",null,"","","SERVICIOS DE TERMINACIÓN Y ACABADOS DE EDIFICIOS "]
["02020206",8,"02","02","02","06","","",null,"","","SERVICIOS DE ALOJAMIENTO; SERVICIOS DE SUMINISTRO DE COMIDAS Y BEBIDAS; SERVICIOS DE TRANSPORTE; Y SERVICIOS DE DISTRIBUCIÓN DE ELECTRICIDAD, GAS Y AGUA","Son los gastos asociados a la adquisición de servicios de alojamiento; servicios de suministro de comidas y bebidas; servicios de transporte de pasajeros o de carga; servicios de mensajería y servicios de distribución de electricidad, gas y agua"]
["0202020603",10,"02","02","02","06","03","",null,"","","ALOJAMIENTO; SERVICIOS DE SUMINISTROS DE COMIDAS Y BEBIDAS","Servicios de alojamiento para estancias cortas\nServicios de alojamiento en habitaciones o unidades, con\nservicios de mantenimiento diario\nServicios de alojamiento en hoteles\nServicios de alojamiento en habitaciones o unidades, sin\nservicios de mantenimiento diario\nServicios de alojamiento en habitaciones o unidades, en\npropiedades de tiempo compartido\nServicios de alojamiento, en habitaciones de ocupación\nmúltiple\nServicio de camping \n Servicios de campamentos\nServicios de estancia por horas\nServicios de alojamiento en habitaciones o unidades para\nestudiantes, en residencias estudiantiles\nServicios de suministro de comidas a la mesa\nServicios de suministro de comidas en establecimientos de\nautoservicio y servicio limitado \nCatering para eventos y otros servicios de comidas\nServicios de suministro de bebidas para su consumo dentro del\nestablecimiento\n","Gastos de estadia y alimentacion de los contratistas, invitados nacionales e internacionales."]
["020202060301",12,"02","02","02","06","03","01",null,"","","SERVICIOS DE ALOJAMIENTO PARA ESTANCIAS CORTAS"]
["020202060302",12,"02","02","02","06","03","02",null,"","","OTROS SERVICIOS DE ALOJAMIENTO"]
["020202060303",12,"02","02","02","06","03","03",null,"","","SERVICIOS DE SUMINISTRO DE COMIDAS"]
["020202060304",12,"02","02","02","06","03","04",null,"","","SERVICIOS DE SUMINISTRO DE BEBIDAS PARA SU CONSUMO DENTRO DEL ESTABLECIMIENTO"]
["0202020604",10,"02","02","02","06","04","",null,"","","SERVICIOS DE TRANSPORTE DE PASAJEROS","\nServicios de transporte local y turístico de pasajeros\nServicios de transporte terrestre local de pasajeros\nServicios de transporte férreo local de pasajeros\nServicios de transporte terrestre local regular de pasajeros\nServicios de transporte local combinado de pasajeros\nServicios de transporte terrestre especial local de pasajeros\nServicios de taxi\nServicios de alquiler de automóviles con conductor\n","Gastos de transporte de los contratistas, invitados nacionales e internacionales, servicios de taxi"]
["0202020605",10,"02","02","02","06","05","",null,"","","SERVICIOS DE TRANSPORTE DE CARGA"]
["020202060501",12,"02","02","02","06","05","01",null,"","","SERVICIOS DE TRANSPORTE DE CARGA POR VÍA TERRESTRE"]
["020202060502",12,"02","02","02","06","05","02",null,"","","SERVICIOS DE TRANSPORTE DE CARGA POR VÍA ACUÁTICA "]
["020202060503",12,"02","02","02","06","05","03",null,"","","SERVICIOS DE TRANSPORTE DE CARGA POR VÍA AÉREA O ESPACIAL"]
["0202020606",10,"02","02","02","06","06","",null,"","","SERVICIOS DE ALQUILER DE VEHÍCULOS DE TRANSPORTE CON OPERARIO",null,"Servicios de uber"]
["0202020607",10,"02","02","02","06","07","",null,"","","SERVICIOS DE APOYO AL TRANSPORTE"]
["020202060701",12,"02","02","02","06","07","01",null,"","","SERVICIOS DE MANIPULACIÓN DE CARGA"]
["020202060702",12,"02","02","02","06","07","02",null,"","","SERVICIOS DE ALMACENAMIENTO Y DEPÓSITO"]
["020202060703",12,"02","02","02","06","07","03",null,"","","SERVICIOS DE APOYO AL TRANSPORTE POR VÍA FÉRREA"]
["020202060704",12,"02","02","02","06","07","04",null,"","","SERVICIOS DE APOYO AL TRANSPORTE POR CARRETERA"]
["020202060705",12,"02","02","02","06","07","05",null,"","","SERVICIOS DE APOYO AL TRANSPORTE POR VÍA ACUÁTICA"]
["020202060706",12,"02","02","02","06","07","06",null,"","","SERVICIOS DE APOYO AL TRANSPORTE AÉREO"]
["020202060709",12,"02","02","02","06","07","09",null,"","","OTROS SERVICIOS DE APOYO AL TRANSPORTE"]
["0202020608",10,"02","02","02","06","08","",null,"","","SERVICIOS POSTALES Y DE MENSAJERÍA"]
["0202020609",10,"02","02","02","06","09","",null,"","","SERVICIOS DE DISTRIBUCIÓN DE ELECTRICIDAD, GAS Y AGUA (POR CUENTA PROPIA)"]
["020202060901",12,"02","02","02","06","09","01",null,"","","SERVICIOS DE DISTRIBUCIÓN DE ELECTRICIDAD, Y SERVICIOS DE DISTRIBUCIÓN DE GAS (POR CUENTA PROPIA)"]
["020202060902",12,"02","02","02","06","09","02",null,"","","SERVICIOS DE DISTRIBUCIÓN DE AGUA (POR CUENTA PROPIA)"]
["02020207",8,"02","02","02","07","","",null,"","","SERVICIOS FINANCIEROS Y SERVICIOS CONEXOS, SERVICIOS INMOBILIARIOS Y SERVICIOS DE LEASING","Son los gastos asociados a la adquisición de servicios financieros, seguros, servicios de mantenimiento de activos financieros, servicios inmobiliarios y arrendamientos.  ","Se incluyen los registros de gravamen a los movimientos financieros que no son mayor valor del gasto."]
["0202020701",10,"02","02","02","07","01","",null,"","","SERVICIOS FINANCIEROS Y SERVICIOS CONEXOS",null,"Se incluyen los seguros en general (pago de arl  contratistas  y pasantes)"]
["020202070101",12,"02","02","02","07","01","01",null,"","","SERVICIOS FINANCIEROS, EXCEPTO DE LA BANCA DE INVERSIÓN, SERVICIOS DE SEGUROS Y SERVICIOS DE PENSIONES"]
["0202020701011",13,"02","02","02","07","01","01",1,"","","SERVICIOS FINANCIEROS, EXCEPTO DE LA BANCA DE INVERSIÓN, SERVICIOS DE SEGUROS Y SERVICIOS DE PENSIONES"]
["0202020701012",13,"02","02","02","07","01","01",2,"","","SERVICIOS DE DEPÓSITO"]
["0202020701013",13,"02","02","02","07","01","01",3,"","","SERVICIOS DE CONCESIÓN DE CRÉDITO"]
["0202020701014",13,"02","02","02","07","01","01",4,"","","SERVICIOS DE LEASING (ARRENDAMIENTO FINANCIERO) "]
["0202020701019",13,"02","02","02","07","01","01",9,"","","OTROS SERVICIOS FINANCIEROS, EXCEPTO LOS SERVICIOS DE LA BANCA DE INVERSIÓN, SERVICIOS DE SEGUROS Y PENSIONES"]
["020202070102",12,"02","02","02","07","01","02",null,"","","SERVICIOS DE LA BANCA DE INVERSIÓN"]
["020202070103",12,"02","02","02","07","01","03",null,"","","SERVICIOS DE SEGUROS Y PENSIONES (CON EXCLUSIÓN DE SERVICIOS DE REASEGURO), EXCEPTO LOS SERVICIOS DE SEGUROS SOCIALES"]
["0202020701031",13,"02","02","02","07","01","03",1,"","","SERVICIOS DE SEGUROS VIDA (CON EXCLUSIÓN DE LOS SERVICIOS DE REASEGURO)"]
["0202020701032",13,"02","02","02","07","01","03",2,"","","SERVICIOS DE SEGUROS SOCIALES DE PENSIONES"]
["0202020701033",13,"02","02","02","07","01","03",3,"","","SERVICIOS DE SEGUROS SOCIALES DE SALUD Y RIESGOS LABORALES ","Los servicios relacionados con entidades del sector público, privado o mixto, responsables de la afiliación y contratación de sistemas de salud a nombre del sistema general de seguridad social en salud","pago de arl  contratistas y pasantes"]
["0202020701034",13,"02","02","02","07","01","03",4,"","","SERVICIOS DE SEGUROS DE SALUD Y DE ACCIDENTES"]
["0202020701035",13,"02","02","02","07","01","03",5,"","","OTROS SERVICIOS DE SEGUROS DISTINTOS A LOS SEGUROS DE VIDA (EXCEPTO LOS SERVICIOS DE REASEGURO)"]
["020202070103501",15,"02","02","02","07","01","03",5,"01","","SERVICIOS DE SEGUROS DE VEHÍCULOS AUTOMOTORES"]
["020202070103502",15,"02","02","02","07","01","03",5,"02","","SERVICIOS DE SEGUROS DE TRANSPORTE MARÍTIMO, DE AVIACIÓN Y OTROS MEDIOS DE TRANSPORTE"]
["020202070103503",15,"02","02","02","07","01","03",5,"03","","SERVICIOS DE SEGUROS PARA TRANSPORTE DE MERCANCÍAS (FLETES) "]
["020202070103504",15,"02","02","02","07","01","03",5,"04","","SERVICIOS DE SEGUROS CONTRA INCENDIO, TERREMOTO O SUSTRACCIÓN"]
["020202070103505",15,"02","02","02","07","01","03",5,"05","","SERVICIOS DE SEGUROS GENERALES DE RESPONSABILIDAD CIVIL "]
["020202070103506",15,"02","02","02","07","01","03",5,"06","","SERVICIOS DE SEGURO DE CUMPLIMIENTO"]
["020202070103507",15,"02","02","02","07","01","03",5,"07","","SERVICIOS DE SEGURO OBLIGATORIO DE ACCIDENTES DE TRÁNSITO (SOAT)"]
["020202070103508",{"$f":"LEN(A507)","v":15},"02","02","02","07","01","03",5,"08","","SERVICIOS DE SEGUROS DE VIAJE"]
["020202070103509",15,"02","02","02","07","01","03",5,"09","","OTROS SERVICIOS DE SEGUROS DISTINTOS DE LOS SEGUROS DE VIDA N.C.P."]
["020202070103510",15,"02","02","02","07","01","03",5,"10","","SEGURO DE INFIDELIDAD Y RIESGOS FINANCIEROS"]
["020202070103511",15,"02","02","02","07","01","03",5,"11","","SEGUROS EQUIPOS ELÉCTRICOS"]
["0202020701036",13,"02","02","02","07","01","03",6,"","","SERVICIOS DE LAS SOCIEDADES DE CAPITALIZACIÓN"]
["020202070104",12,"02","02","02","07","01","04",null,"","","SERVICIOS DE REASEGURO"]
["020202070105",12,"02","02","02","07","01","05",null,"","","SERVICIOS AUXILIARES A LOS SERVICIOS FINANCIEROS DISTINTOS DE LOS SEGUROS Y LAS PENSIONES"]
["0202020701051",13,"02","02","02","07","01","05",1,"","","SERVICIOS RELACIONADOS CON LA BANCA DE INVERSIÓN"]
["0202020701052",13,"02","02","02","07","01","05",2,"","","SERVICIOS DE CORRETAJE RELACIONADOS CON LOS PRODUCTOS DE VALORES"]
["0202020701053",13,"02","02","02","07","01","05",3,"","","SERVICIOS DE ADMINISTRACIÓN DE CARTERAS, EXCEPTO LOS FONDOS DE PENSIONES Y CESANTÍAS"]
[{"$f":"CONCATENATE(C517,D517,E517,F517,G517,H517,I517,J517,K517)","v":"0202020701054"},13,"02","02","02","07","01","05",4,"","","SERVICIOS FIDUCIARIOS Y DE CUSTODIA"]
["0202020701055",13,"02","02","02","07","01","05",5,"","","SERVICIOS RELACIONADOS CON LA ADMINISTRACIÓN DE LOS MERCADOS FINANCIEROS"]
["0202020701059",{"$f":"LEN(A519)","v":13},"02","02","02","07","01","05",9,"","","OTROS SERVICIOS AUXILIARES A LOS SERVICIOS FINANCIEROS"]
["020202070106",12,"02","02","02","07","01","06",null,"","","SERVICIOS AUXILIARES DE SEGUROS, PENSIONES Y CESANTÍAS"]
["0202020701061",13,"02","02","02","07","01","06",1,"","","SERVICIOS DE CORRETAJE Y AGENCIAS DE SEGUROS"]
["0202020701062",13,"02","02","02","07","01","06",2,"","","SERVICIOS DE TASACIÓN DE LAS RECLAMACIONES AL SEGURO"]
["0202020701063",13,"02","02","02","07","01","06",3,"","","SERVICIOS ACTUARIALES"]
["0202020701064",13,"02","02","02","07","01","06",4,"","","SERVICIOS DE ADMINISTRACIÓN DE FONDOS DE PENSIONES Y CESANTÍAS"]
["0202020701069",13,"02","02","02","07","01","06",9,"","","OTROS SERVICIOS AUXILIARES DE SEGUROS, PENSIONES Y CESANTÍAS"]
["020202070107",12,"02","02","02","07","01","07",null,"","","SERVICIOS DE MANTENIMIENTO DE ACTIVOS FINANCIEROS"]
["0202020702",10,"02","02","02","07","02","",null,"","","SERVICIOS INMOBILIARIOS "]
["020202070201",12,"02","02","02","07","02","01",null,"","","SERVICIOS INMOBILIARIOS RELATIVOS A BIENES RAÍCES PROPIOS O ARRENDADOS"]
["0202020702011",13,"02","02","02","07","02","01",1,"","","SERVICIOS DE ALQUILER O ARRENDAMIENTO CON O SIN OPCIÓN DE COMPRA RELATIVOS A BIENES INMUEBLES PROPIOS O ARRENDADOS","Los servicios de alquiler o arrendamiento con o sin opción de compra realizados por los propietarios o arrendatarios a terceros, relativos a propiedades residenciales tales como:\n– Casas, apartamentos, edificios de apartamentos.\n– Edificios de uso múltiple que son principalmente residenciales.\nEl servicio de alquiler o arrendamiento con o sin opción de compra de bienes inmuebles no residenciales, inmuebles industriales, comerciales y otras propiedades y edificios no residenciales realizado por los propietarios o arrendatarios a terceros, tales como:\nInmuebles industriales, edificios de oficinas, locales.\n– Teatros, centros de convenciones, salas de exposiciones y edificios de uso múltiple que son principalmente de uso no residencial.\n– Propiedades de uso agrícola, forestal y propiedades similares.\n• El arrendamiento con o sin opción de compra, mensual o anual, de lotes o zonas para casas rodantes, parqueaderos u otros lugares de estacionamiento de vehículos."]
["0202020702012",13,"02","02","02","07","02","01",2,"","","VENTA DE BIENES INMUEBLES "]
["0202020702013",13,"02","02","02","07","02","01",3,"","","SERVICIOS COMERCIALES RELACIONADOS CON TERRENOS DESOCUPADOS Y SUBDIVIDIDOS"]
["020202070202",12,"02","02","02","07","02","02",null,"","","SERVICIOS INMOBILIARIOS A COMISIÓN O POR CONTRATO"]
["0202020702021",13,"02","02","02","07","02","02",1,"","","SERVICIOS DE ADMINISTRACIÓN DE BIENES INMUEBLES A COMISIÓN O POR CONTRATO"]
["0202020702022",13,"02","02","02","07","02","02",2,"","","SERVICIO DE ARRENDAMIENTO DE BIENES INMUEBLES A COMISIÓN O POR CONTRATA "]
["0202020702023",13,"02","02","02","07","02","02",3,"","","SERVICIO DE VENTA DE BIENES INMUEBLES A COMISIÓN O POR CONTRATA"]
["0202020702024",13,"02","02","02","07","02","02",4,"","","SERVICIOS DE VENTA DE TERRENOS A COMISIÓN O POR CONTRATO"]
["0202020702025",13,"02","02","02","07","02","02",5,"","","VALUACIONES INMOBILIARIAS A COMISIÓN O POR CONTRATO"]
["0202020703",10,"02","02","02","07","03","",null,"","","SERVICIOS DE ARRENDAMIENTO O ALQUILER SIN OPERARIO"]
["020202070301",12,"02","02","02","07","03","01",null,"","","SERVICIOS DE ARRENDAMIENTO O ALQUILER DE MAQUINARIA Y EQUIPO SIN OPERARIO"]
["020202070302",12,"02","02","02","07","03","02",null,"","","SERVICIOS DE ARRENDAMIENTO SIN OPCIÓN DE COMPRA DE OTROS BIENES"]
["020202070303",12,"02","02","02","07","03","03",null,null,null,"DERECHOS DE USO DE PRODUCTOS DE PROPIEDAD INTELECTUAL Y OTROS PRODUCTOS SIMILARES",null,"Acceso a bases de datos bibliográficas"]
["02020208",8,"02","02","02","08","","",null,"","","SERVICIOS PRESTADOS A LAS EMPRESAS Y SERVICIOS DE PRODUCCIÓN ","Son los gastos asociados a la adquisición de servicios de investigación y desarrollo, servicios jurídicos y contables, servicios de consultoría, servicios de publicidad, servicios de impresión servicios de telecomunicaciones, servicios de limpieza, servicios de seguridad, servicios de mantenimiento, entre otros. "]
["0202020801",10,"02","02","02","08","01","",null,"","","SERVICIOS DE INVESTIGACIÓN Y DESARROLLO"]
["020202080101",12,"02","02","02","08","01","01",null,"","","SERVICIOS DE INVESTIGACIÓN Y DESARROLLO EXPERIMENTAL EN CIENCIAS NATURALES E INGENIERÍA","8111 Servicios de investigación y desarrollo experimental en ciencias naturales\n   81111 Servicios de investigación y desarrollo experimental en ciencias físicas\n   81112 Servicios de investigación y desarrollo experimental en la química y la biología\n   81119 Servicios de investigación y desarrollo experimental en otras ciencias naturales\n\n8112 Servicios de investigación y desarrollo experimental en ingeniería y tecnología\n   81121 Servicios de investigación y desarrollo experimental en biotecnología\n   81129 Servicios de investigación y desarrollo experimental en ingeniería y tecnología\n   81130 Servicios de investigación y desarrollo experimental en ciencias médicas y farmacia\n   81140 Servicios de investigación y desarrollo experimental en ciencias agrícolas"]
["020202080102",12,"02","02","02","08","01","02",null,"","","SERVICIOS DE INVESTIGACIÓN Y DESARROLLO EXPERIMENTAL EN CIENCIAS SOCIALES Y HUMANIDADES","8121 Servicios de investigación y desarrollo experimental en las ciencias sociales\n   81211 Servicios de investigación y desarrollo experimental en psicología\n   81212 Servicios de investigación y desarrollo experimental en economía\n   81213 Servicios de investigación y desarrollo experimental en el derecho\n   81219 Servicios de investigación y desarrollo experimental en otras ciencias sociales \n\n8122 Servicios de investigación y desarrollo experimental en humanidades\n   81221 Servicios de investigación y desarrollo experimental en lenguas y literatura\n   81229 Servicios de investigación y desarrollo experimental en otras humanidades"]
["020202080103",12,"02","02","02","08","01","03",null,"","","SERVICIOS INTERDISCIPLINARIOS DE INVESTIGACIÓN Y DESARROLLO EXPERIMENTAL","8130 Servicios interdisciplinarios de investigación y desarrollo experimental. \n   81300 Servicios interdisciplinarios de investigación y desarrollo experimental.\n\nLos servicios de investigación y desarrollo experimental en la combinación de métodos y conocimientos de las ciencias naturales, ingeniería y ciencias sociales y humanidades."]
["0202020802",10,"02","02","02","08","02","",null,"","","SERVICIOS JURÍDICOS Y CONTABLES"]
["020202080201",12,"02","02","02","08","02","01",null,"","","SERVICIOS JURÍDICOS","82110 Servicios de asesoramiento y representación jurídica en derecho penal\nLos servicios de asesoramiento, representación, redacción de documentos y servicios conexos (defensa, búsqueda de pruebas, testigos, expertos, etc.) en materia de derecho penal.\n82120 Servicios de asesoramiento y representación jurídica relativos a otros campos del derecho Los servicios de asesoramiento, representación y otros servicios relacionados con asuntos legales, judiciales y cuasi judiciales relativos al derecho civil, derecho administrativo, derecho constitucional, derecho internacional, derecho\n82130 Servicios de documentación y certi cación jurídica\nLos servicios de redacción, elaboración, certi cación de documentos y servicios conexos relacionados con patentes, derechos de autor y otros derechos de propiedad intelectual.\n• Los servicios de redacción, elaboración, certi cación de documentos y servicios conexos relacionados con otros documentos jurídicos, testamentos, contratos de matrimonio, contratos comerciales, estatutos de sociedades,  notarios públicos, curadores urbanos, entre otros. militar y otros campos del derecho, excepto el derecho penal.\n8219 Otros servicios jurídicos\n82191 Servicios de arbitraje y conciliación\nEsta subclase incluye: Sección 8. Servicios prestados a las empresas y servicios de producción\n• Los servicios de arbitraje o negociación para resolver controversias entre los trabajadores y la administración, entre empresas o entre particulares.\nEsta subclase excluye:\n• Los servicios de representación en nombre de una de las partes en la controversia. Se incluyen en la subclase 82120,\n«Servicios de asesoramiento y representación jurídica relativos a otros campos del derecho».\n82199 Otros servicios jurídicos n.c.p.\nEsta subclase incluye:\n• Los servicios de custodia.\n• Otros servicios legales n.c.p."]
["020202080202",12,"02","02","02","08","02","02",null,"","","SERVICIOS DE CONTABILIDAD, AUDITORÍA Y TENEDURÍA DE LIBROS","822 Servicios de contabilidad, auditoría y teneduría de libros\n82210 Servicios de auditoría  financiera\nLos servicios de examen de registros contables y otros documentos complementarios de una organización a fin de poder opinar si las cuentas  financieras de la organización exponen de manera justa y precisa la posición de la organización en una fecha determinada, y los resultados de sus operaciones hasta dicha fecha están de conformidad con principios contables de aceptación general.\n8222 Servicios de contabilidad y teneduría de libros\n82221 Servicios de contabilidad\n• Los servicios de revisión de cuentas  nancieras periódicas y anuales, y otra información contable. El alcance de la revisión es inferior al de una auditoría, y el nivel de seguridad logrado, por lo tanto, es inferior.\n• La elaboración de estados  financieros con base en informaciones facilitadas por el cliente, en donde no se garantiza la exactitud de los consiguientes resultados.\n• La preparación de declaraciones de impuestos de sociedades, cuando se elaboran al mismo tiempo que la preparación de estados  financieros a cambio de un mismo honorario, clasificadas aquí como: elaboración de estados de resultados, balances, análisis de balances, etc.\nOtros servicios contables como certificados, valoraciones, evaluaciones, servicios de preparación de estados proforma, etc.\n82222 Servicios de teneduría de libros\nLos servicios de clasi cación y registro de transacciones comerciales en términos de dinero o cualquier unidad de medición en los libros contables.\n82223 Servicios de nómina\n-Los servicios de procesamiento de nómina.\n• Los servicios de depósito directo o servicios de veri cación.\n• Los servicios de condonación de impuestos y otras deducciones.\n• Los servicios de preparación, visualización y almacenamiento de los libros de nómina, informes y otros documentos."]
["020202080203",12,"02","02","02","08","02","03",null,"","","SERVICIOS DE PREPARACIÓN Y ASESORAMIENTO TRIBUTARIO","823 Servicios de preparación y asesoramiento tributario\n8231 82310 Servicios de preparación y asesoramiento tributario empresarial\nEsta subclase incluye:\n-Servicios prestados a las empresas y servicios de producción\n• La prestación de servicios de asesoramiento y orientación sobre los impuestos empresariales, así como la preparación\ny presentación de declaraciones de impuestos de todo tipo (ejemplo, el IVA).\n8232 82320 Servicios de preparación y plani cación de impuestos personales\nEsta subclase incluye:\n• Los servicios de plani cación y preparación de impuestos para:\n• Empresas no constituidas en sociedad.\n• Personas particulares."]
["020202080204",12,"02","02","02","08","02","04",null,"","","SERVICIOS RELACIONADOS CON CASOS DE INSOLVENCIA Y LIQUIDACIÓN"]
["0202020803",10,"02","02","02","08","03","",null,"","","OTROS SERVICIOS PROFESIONALES, CIENTÍFICOS Y TÉCNICOS"]
["020202080301",12,"02","02","02","08","03","01",null,"","","SERVICIOS DE CONSULTORÍA EN ADMINISTRACIÓN Y SERVICIOS DE GESTIÓN; SERVICIOS DE TECNOLOGÍA DE LA INFORMACIÓN","831 Servicios de consultoría en administración y servicios de gestión; servicios de tecnología de la información\n8311 Servicios de consultoría en administración y servicios de gestión\n83111 Servicios de consultoría estratégica en gestión\nLos servicios de asistencia, orientación y asesoría en relación con las estrategias y normativas de sociedades y la planeación, estructuración y supervisión general de una organización. Más concretamente, las actuaciones de consultoría en materia de gestión que pueden incluir una o más de las siguientes actividades:\n• La formulación de políticas.\n• La determinación de la estructura de la organización (sistema decisorio) que responderá con mayor efectividad a los objetivos de la organización.\n• La reglamentación normativa.\n• Los planes de estrategias de negocios.\n• El desarrollo empresarial y los servicios de consultoría de reestructuración, como en fusiones, adquisiciones, empresas conjuntas, alianzas estratégicas, la diversi cación y la privatización. La de nición de un sistema de información en materia de gestión.\n• La preparación de informes y controles de gestión.\n• Los planes de cambio en la sociedad.\n• La auditoría de gestión.\n• La elaboración de programas para incrementar bene cios.\n• Otras cuestiones de interés particular para la administración superior de una organización.\n• El desarrollo de una estrategia de comercio electrónico.\n83112 Servicios de consultoría en gestión  financiera\nLos servicios de asistencia en materia de asesoría de carácter  nanciero, como por ejemplo:\n• El capital de trabajo y la gestión de la liquidez; la determinación de una estructura de capital apropiada.\n• El análisis de las propuestas de inversión de capital.\n• La administración de activos.\n• La gestión de sistemas de contabilidad y de controles presupuestarios.\n• Los servicios de consultoría  financiera relacionada con las fusiones, las adquisiciones, etc. y la asesoría sobre métodos relacionados con valoración, pago y control de las  finanzas internacionales.\n83113 Servicios de consultoría en gestión de recursos humanos\nEsta subclase incluye:\nLa asesoría, orientación y asistencia relacionada a los recursos humanos, estrategias, políticas, prácticas y procedimientos de una organización. Las funciones de consultoría en materia de recursos humanos pueden incluir una o más de las siguientes actividades:\n• Contratación, compensación, bene cios y evaluación del desempeño.\n• Desarrollo del clima organizacional.\n• Formación de los empleados y políticas de incentivos.\n• Procedimientos de reubicación y de planes de asistencia a los empleados.\n• Programas de promoción.\n• Cumplimiento de la normatividad en salud ocupacional, seguridad industrial y la compensación y equidad en el empleo.\n• Gestión de relaciones laborales.\n• Auditorías de recursos humanos.\n83114 Servicios de consultoría en gestión de la comercialización"]
["0202020803011",13,"02","02","02","08","03","01",1,"","","SERVICIOS DE CONSULTORÍA EN ADMINISTRACIÓN Y SERVICIOS DE GESTIÓN",null,"Valor que se asume para el pago de los honorarios de los miembros consejeros pertenecientes al Consejo Superior Universitario."]
["0202020803012",13,"02","02","02","08","03","01",2,"","","SERVICIOS DE CONSULTORÍA PRESTADOS A LAS EMPRESAS "]
["0202020803013",13,"02","02","02","08","03","01",3,"","","SERVICIOS DE TECNOLOGÍA DE LA INFORMACIÓN (TI) DE CONSULTORÍA Y DE APOYO "]
["0202020803014",13,"02","02","02","08","03","01",4,"","","SERVICIOS DE DISEÑO Y DESARROLLO DE LA TECNOLOGÍA DE LA INFORMACIÓN (TI) "]
["0202020803015",13,"02","02","02","08","03","01",5,"","","SERVICIOS DE SUMINISTRO DE INFRAESTRUCTURA DE HOSTING Y DE TECNOLOGÍA DE LA INFORMACIÓN (TI)"]
["0202020803016",13,"02","02","02","08","03","01",6,"","","SERVICIOS DE GESTIÓN DE RED E INFRAESTRUCTURA DE TI "]
["0202020803019",13,"02","02","02","08","03","01",9,"","","OTROS SERVICIOS DE GESTIÓN, EXCEPTO LOS SERVICIOS DE ADMINISTRACIÓN DE PROYECTOS DE CONSTRUCCIÓN"]
["020202080302",12,"02","02","02","08","03","02",null,"","","SERVICIOS DE ARQUITECTURA, SERVICIOS DE PLANEACIÓN URBANA Y ORDENACIÓN DEL TERRITORIO; SERVICIOS DE ARQUITECTURA PAISAJISTA ","832 Servicios de arquitectura, servicios de planeación urbana y ordenación del territorio; servicios de arquitectura paisajista\n8321 Servicios de arquitectura y servicios de asesoría\n• Los servicios de asesoría en diseño y prediseño.\n• La preparación de diseños y documentos de construcción.\n• Los planes, estudios y otros servicios de asesoramiento relacionados con el diseño de los edificios.\n83211 Servicios de asesoramiento en arquitectura\n• Los servicios de arquitectura pueden ser proporcionados en un paquete que abarca todas las fases de un proyecto de\nconstrucción, incluidos el asesoramiento, el diseño y las fases de prediseño, o pueden ser concedidas individualmente.\n83212 Servicios de arquitectura para los proyectos de construcción de viviendas"]
["020202080303",12,"02","02","02","08","03","03",null,"","","SERVICIOS DE INGENIERÍA ","833 Servicios de ingeniería\n• La aplicación de los principios y leyes físicas en el diseño, desarrollo y utilización de las máquinas, materiales, instrumentos, estructuras, procesos y sistemas. Los servicios de este tipo implican la elaboración de los diseños, planes y estudios relacionados con proyectos de ingeniería.\n8331 83310 Servicios de asesoría en ingeniería\nEsta subclase incluye:\n• La asesoría a clientes aplicando los principios de ingeniería, cuando se realiza independientemente de un proyecto de ingeniería, incluyendo el análisis de políticas, estudios y auditorías.\n• La prestación de testimonio de un testigo que, en virtud de la experiencia, entrenamiento, habilidad o conocimiento de ingeniería, es reconocido como habilitado para emitir una opinión informada sobre estos asuntos.\n• La investigación de un sistema defectuoso de ingeniería o de la estructura para determinar los factores causales.\n8332 Servicios de ingeniería para proyectos específicos\n83321 Servicios de ingeniería para proyectos de construcción\nEsta subclase incluye:\n• La aplicación de las leyes físicas y los principios de la ingeniería en el diseño, el desarrollo y la utilización de máquinas, materiales, instrumentos, estructuras, procesos y sistemas para proyectos de construcción, así como los servicios de gestión de proyectos de construcción.\n83322 Servicios de ingeniería para proyectos industriales y de fabricación\n83323 Servicios de ingeniería para proyectos de transporte\n83324 Servicios de ingeniería para proyectos de energía\n83325 Servicios de ingeniería para proyectos de telecomunicaciones y de radiodifusión"]
["020202080304",12,"02","02","02","08","03","04",null,"","","SERVICIOS CIENTÍFICOS Y OTROS SERVICIOS TÉCNICOS ","834 Servicios cientí cos y otros servicios técnicos\n8341 Servicios de prospección geológica, geofísica y otros\n83411 Servicios de consultoría geológica y geofísica\nEsta subclase incluye:\n• La asesoría, orientación y asistencia relacionada a la ubicación de los depósitos de minerales, campos de petróleo, gas y las aguas subterráneas mediante el estudio de las propiedades de la tierra y de las rocas, formaciones y estructuras.\n• La asesoría en materia de exploración y explotación de minerales, derivados del petróleo y del gas natural, incluyendo: – Pre-factibilidad y estudios de viabilidad.\n– Los servicios de evaluación de proyectos.\n• La evaluación de anomalías geológicas, geofísicas y geoquímicas.\n• La cartografía de la super cie geológica o topografía.\n• Los servicios de consultoría y prospección geológicos y geofísicos.\n8342 Servicios de topografía de super cie y cartografía"]
["0202020803041",13,"02","02","02","08","03","04",1,"","","SERVICIOS DE PROSPECCIÓN GEOLÓGICA, GEOFÍSICA Y OTROS"]
["0202020803042",13,"02","02","02","08","03","04",2,"","","SERVICIOS DE TOPOGRAFÍA DE SUPERFICIE Y CARTOGRAFÍA"]
["0202020803043",13,"02","02","02","08","03","04",3,"","","PRONÓSTICO DEL TIEMPO Y SERVICIOS METEOROLÓGICOS "]
["0202020803044",13,"02","02","02","08","03","04",4,"","","SERVICIOS DE ENSAYO Y ANÁLISIS TÉCNICOS",null,"Incluye los servicios de peritaje"]
["020202080305",12,"02","02","02","08","03","05",null,"","","SERVICIOS VETERINARIOS","835 Servicios veterinarios\n8351 83510 Servicios de veterinaria para animales domésticos\nEsta subclase incluye:\n• Los servicios veterinarios de hospitales y centros no hospitalarios, así como servicios quirúrgicos y odontológicos prestados a animales domésticos. Estos servicios están destinados a curar, reanimar y/o mantener la salud del animal.\n• Los servicios hospitalarios, de laboratorio y técnicos, así como los de nutrición (con dietas especiales) y otras instalaciones y otros recursos.\n• Las recomendaciones dietéticas para animales de compañía.\n83520 Servicios de veterinaria para ganado\nLos servicios de hospital y veterinarios para animales, servicios médicos, quirúrgicos y dentales para el ganado no prestados en hospitales. Estos servicios están encaminados a curar al animal o a restablecer y/o mantener su salud.\n• Los servicios de hospital, laboratorio y técnicos, alimentos (incluidas dietas especiales) y otras instalaciones y otros recursos.\n• Las recomendaciones dietéticas para el ganado"]
["020202080306",12,"02","02","02","08","03","06",null,"","","SERVICIOS DE PUBLICIDAD Y EL SUMINISTRO DE ESPACIO O TIEMPO PUBLICITARIOS","836 Servicios de publicidad y el suministro de espacio o tiempo publicitarios\n8361 Servicios publicitarios\n83611 Servicios completos de publicidad\nLa planeación, el desarrollo de conceptos y la ejecución de una gama completa de servicios para una campaña publicitaria, incluyendo:\n• La creación de la idea básica de un anuncio.\n• La redacción de anuncios de publicidad y diseño de escenarios.\n• Selección de los medios de comunicación que deben utilizarse.\n• El diseño de anuncios, ilustraciones, carteles, etc.\n• La descripción de los escenarios para las películas publicitarias.\n• La colocación de anuncios en los medios de comunicación.\n• La descripción de los escenarios para las películas publicitarias.\n• La colocación de anuncios en los medios de comunicación.\n83612 Marketing directo y servicios de correo directo"]
["020202080307",12,"02","02","02","08","03","07",null,"","","SERVICIOS DE INVESTIGACIÓN DE MERCADOS Y DE ENCUESTAS DE OPINIÓN PÚBLICA","837 Servicios de investigación de mercados y de encuestas de opinión pública\n83700 Servicios de investigación de mercados y de encuestas de opinión pública\nEl análisis de mercados, análisis de la competencia y comportamiento de los consumidores.\n• La utilización de modelos de investigación obtenidos de monografías y métodos de análisis estadísticos, econométricos, a través de encuestas, etc.\n• Los servicios de investigación destinados a obtener información sobre la opinión pública en relación con cuestiones sociales, económicas, políticas y de otro tipo."]
["020202080308",12,"02","02","02","08","03","08",null,"","","SERVICIOS FOTOGRÁFICOS Y SERVICIOS DE REVELADO FOTOGRÁFICO","838 Servicios fotográficos y servicios de revelado fotográ co\n8381 Servicios fotográficos y servicios de videografía de eventos\n83811 Servicios fotográficos\nLos servicios que consisten en retratar a personas u otros temas en estudios u otros lugares, como o cinas u hogares de clientes. En estos servicios se incluye por lo general el revelado y la impresión de las fotografías de acuerdo con las instrucciones del cliente:\n• Fotografías de identi cación o pasaporte.\n• Retratos de niños.\n• Retratos familiares o militares.\n• Fotografías de modas.\n• Fotos de sociedades.\n83812 Servicios de fotografía publicitaria y servicios conexos\n83813 Fotografía de eventos y servicios de videografía de eventos"]
["020202080309",12,"02","02","02","08","03","09",null,"","","OTROS SERVICIOS PROFESIONALES Y TÉCNICOS N.C.P.","839 Otros servicios profesionales y técnicos n.c.p.\n8391 Servicios especializados de diseño\n83911 Servicios de diseño de interiores\nLa planeación y el diseño de espacios interiores para atender a las necesidades físicas, estéticas y funcionales de la gente.\n• La elaboración de diseños para decoración de interiores.\n• La decoración de interiores, incluida la de escaparates y puestos de mercado\n83912 Servicios de diseño industrial\n83920 Diseños originales\nDiseños de productos industriales.\n• Diseños estéticos.\n• Diseño grá co.\n8393 Servicios de consultoría científica y técnica n.c.p.\n83931 Servicios de consultoría ambiental\n83939 Otros servicios de consultoría cientí ca y técnica n.c.p.\n83940 Compilaciones originales de datos/información\n83950 Servicios de traducción e interpretación\n83990 Todos los demás servicios profesionales, técnicos y empresariales n.c.p"]
["0202020804",10,"02","02","02","08","04","",null,"","","SERVICIOS DE TELECOMUNICACIONES, TRANSMISIÓN Y SUMINISTRO DE INFORMACIÓN"]
["020202080401",12,"02","02","02","08","04","01",null,"","","SERVICIOS DE TELEFONÍA Y OTRAS TELECOMUNICACIONES","84110 Servicios de operadores\n8412 Servicios de telefonía fija\n84121 Servicios de telefonía  fija; acceso y utilización\n84122 Servicios de telefonía  ja, funciones especiales de llamada\n8413 Servicios de telecomunicaciones móviles\n84140 Servicios de redes privadas\n84150 Servicios de transmisión de datos"]
["020202080402",12,"02","02","02","08","04","02",null,"","","SERVICIOS DE TELECOMUNICACIONES A TRAVÉS DE INTERNET","Los servicios de transmisión de señales electrónicas (trá co) a través de internet.\n• Los servicios de acceso a internet.\n• Los servicios de telecomunicaciones a través de internet y redes similares distribuidas para computadores, que soportan el servicio, pero no hacen parte de las redes normales de telecomunicaciones.\n84210 Servicios básicos de internet\n8422 Servicios de acceso a internet\n84222 Servicios de acceso a internet de banda ancha\n84290 Otros servicios de telecomunicaciones a través de internet"]
["020202080403",12,"02","02","02","08","04","03",null,"","","SERVICIOS DE CONTENIDOS EN LÍNEA (ON-LINE)","8431 Servicios de información basados en textos en línea (on-line)\n84311 Servicios de libros en línea (on-line)\n• Los servicios de libros en línea, incluyendo los textos escolares, libros de referencia general, como: diccionarios, enciclopedias, atlas, libros de mapas y gráficos, entre otros.\n84312 Servicios de periódicos y revistas en línea (on-line)\nEsta subclase incluye:\n• Los servicios de publicaciones editadas en internet, donde se actualiza el contenido principal a intervalos  jos, usualmente\nsobre una base diaria, semanal o mensual; ya sea en las ventas de ejemplares de suscripción o individual.\n• Los servicios de titulares en secciones de los periódicos enviados vía email con frecuencia diaria o con mayor frecuencia.\n• Los servicios de boletines informativos de publicación periódica.\n84313 Servicios de listas de correo y directorios en línea (on-line)\n8432 Servicios de contenidos de audio en línea (on-line)"]
["020202080404",12,"02","02","02","08","04","04",null,"","","SERVICIOS DE AGENCIAS DE NOTICIAS","84410 Servicios de agencias de noticias para periódicos y revistas\n• Los servicios de investigación, recolección y suministro de noticias en forma de manuscritos o reportes gráfico  para las empresas de medios impresos de comunicación como periódicos, revistas y libros.\n• Los servicios prestados por periodistas independientes y reporteros graficos de prensa.\n8442 84420 Servicios de agencias de noticias para medios audiovisuales\n• Los servicios de investigación, recolección y suministro de noticias en forma de manuscritos o reportes gráficos para estaciones de radio, televisión y compañías de cine.\n• Los servicios prestados por periodistas independientes y reporteros gráficos de prensa.","unimedios"]
["020202080405",12,"02","02","02","08","04","05",null,"","","SERVICIOS DE BIBLIOTECAS Y ARCHIVOS","84510 Servicios de bibliotecas\n• Los servicios de colección, catálogos, conservación y recuperación de libros, enciclopedias, atlas y similares.\n• Los servicios de préstamo de libros y grabaciones, los cuales son gratuitos.\n84520 Servicios de archivos\nLos servicios de recolección, catálogos, conservación y recuperación de archivos públicos, incluyendo archivos digitales.\n• Los servicios operacionales de archivos históricos, incluyendo archivos digitales, los cuales son gratuitos"]
["020202080406",12,"02","02","02","08","04","06",null,"","","SERVICIOS DE PROGRAMACIÓN, DISTRIBUCIÓN Y TRANSMISIÓN DE PROGRAMAS","846 Servicios de programación, distribución y transmisión de programas\n8461 Servicios de transmisión de programas de radio y televisión\n84611 Servicios de transmisión de programas de radio\n• Los servicios de transmisión al aire de contenidos de radio, con protección a la propiedad intelectual.\n84612 Servicios de transmisión de programas de televisión\nEsta subclase incluye:\n• Los servicios de transmisión al aire de contenidos de televisión, con protección a la propiedad intelectual.\n8462 Servicios de programación de canales de radio y televisión\n84621 Servicios de programación de canales de radio\nEsta subclase incluye:\n• Los servicios de montaje de programas y emisiones radiales como parte de la alineación diaria de una estación para la distribución por parte de otros.","ejemplo: unimedios"]
["0202020805",10,"02","02","02","08","05","",null,"","","SERVICIOS DE SOPORTE",null,"Servicios de apoyo a  la gestión"]
[{"$f":"CONCATENATE(C581,D581,E581,F581,G581,H581,I581,J581,K581)","v":"020202080501"},12,"02","02","02","08","05","01",null,"","","SERVICIOS DE EMPLEO",null,"ejemplo: corporación interunivestaria de servicios (CIS)"]
["020202080502",12,"02","02","02","08","05","02",null,"","","SERVICIOS DE INVESTIGACIÓN Y SEGURIDAD",null,"contratacion de servicios de seguridad y vigilancia"]
["020202080503",{"$f":"LEN(A583)","v":12},"02","02","02","08","05","03",null,"","","SERVICIOS DE LIMPIEZA",null,"contratacion de servicios de aseo"]
["020202080504",12,"02","02","02","08","05","04",null,"","","SERVICIOS DE EMPAQUE"]
["020202080505",12,"02","02","02","08","05","05",null,"","","SERVICIOS DE ORGANIZACIÓN DE VIAJES, OPERADORES TURÍSTICOS Y SERVICIOS CONEXOS",null,"ejemplo: orden de suministro de tiquetes "]
["020202080509",12,"02","02","02","08","05","09",null,"","","OTROS SERVICIOS AUXILIARES"]
["0202020805091",13,"02","02","02","08","05","09",1,"","","SERVICIOS DE INFORMACIÓN CREDITICIA"]
["0202020805092",13,"02","02","02","08","05","09",2,"","","SERVICIOS DE AGENCIAS DE COBRANZA"]
["0202020805093",13,"02","02","02","08","05","09",3,"","","SERVICIOS AUXILIARES POR TELÉFONO"]
["0202020805094",13,"02","02","02","08","05","09",4,"","","SERVICIOS ADMINISTRATIVOS COMBINADOS DE OFICINA"]
["0202020805095",13,"02","02","02","08","05","09",5,"","","SERVICIOS AUXILIARES ESPECIALIZADOS DE OFICINA"]
["0202020805096",13,"02","02","02","08","05","09",6,"","","SERVICIOS DE ORGANIZACIÓN Y ASISTENCIA DE CONVENCIONES Y FERIAS",null,"Incluye servicios de logistica prestada por los estudiantes en eventos, servicios de marketing en ferias, organización de convenciones. EJM: Logistica de organización de examenes de admisión. "]
["0202020805097",13,"02","02","02","08","05","09",7,"","","SERVICIOS DE MANTENIMIENTO Y CUIDADO DEL PAISAJE",null,"Mantenimiento arboreo y jardinería."]
["0202020805099",13,"02","02","02","08","05","09",9,"","","OTROS SERVICIOS DE APOYO Y DE INFORMACIÓN N.C.P."]
["0202020806",10,"02","02","02","08","06","",null,"","","SERVICIOS DE APOYO A LA AGRICULTURA, LA CAZA, LA SILVICULTURA, LA PESCA, LA MINERÍA Y LOS SERVICIOS PÚBLICOS","8611 Servicios de apoyo a la producción de cultivos\n86111 Servicios agrícolas posteriores a la cosecha\n• La preparación de cultivos para mercados primarios.\n• Los servicios de desmotado del algodón.\n• Los servicios de extracción de aceite crudo de palma\n86112 Servicios de procesamiento de semillas\nLos servicios para mejorar la calidad de la propagación de la semilla, incluyendo el tratamiento de semillas genéticamente modificadas:\n• La eliminación de materiales de siembra, semillas más pequeñas de lo normal o dañadas por insectos y semillas inmaduras, de forma mecánica.\n• La eliminación de la humedad de la semilla a un nivel seguro para el almacenamiento de semillas.\n• El secado, limpieza, clasi cación y tratamiento de las semillas que se comercializan.\n86113 Servicios preparatorios para la siembra y la cosecha\nEsta subclase incluye:\n• El labrado de los campos para preparación de la siembra.\n• La siembra, cultivo y fertilización de la cosecha.\n86119 Otros servicios de apoyo a la producción agrícola\nEsta subclase incluye:\n• La fumigación de cultivos incluso desde el aire.\n• El control de plagas agrícolas.\n• La poda de árboles frutales y viñedos.\n• El trasplante y entresacado de cultivos.\n• La recolección de la cosecha.\n• El suministro de maquinaria agrícola con tripulación y operarios.\n• El funcionamiento de los sistemas de irrigación para  nes agrícolas.\n• Los otros servicios necesarios para la producción agrícola.\n8612 Servicios pecuarios\n86121 Servicios de cría de animales de granja\n86129 Otros servicios de cría de animales\n"]
["020202080601",12,"02","02","02","08","06","01",null,"","","SERVICIOS DE APOYO A LA AGRICULTURA, LA CAZA, LA SILVICULTURA Y LA PESCA "]
["020202080602",12,"02","02","02","08","06","02",null,"","","SERVICIOS DE APOYO A LA MINERÍA"]
["020202080603",12,"02","02","02","08","06","03",null,"","","SERVICIOS DE APOYO A LA DISTRIBUCIÓN DE ELECTRICIDAD, GAS Y AGUA"]
["0202020807",10,"02","02","02","08","07","",null,"","","SERVICIOS DE MANTENIMIENTO, REPARACIÓN E INSTALACIÓN (EXCEPTO SERVICIOS DE CONSTRUCCIÓN)"]
["020202080701",12,"02","02","02","08","07","01",null,"","","SERVICIOS DE MANTENIMIENTO Y REPARACIÓN DE PRODUCTOS METÁLICOS ELABORADOS, MAQUINARIA Y EQUIPO"]
["0202020807011",13,"02","02","02","08","07","01",1,"","","SERVICIOS DE MANTENIMIENTO Y REPARACIÓN DE PRODUCTOS METÁLICOS ELABORADOS, EXCEPTO MAQUINARIA Y EQUIPO"]
["0202020807012",13,"02","02","02","08","07","01",2,"","","SERVICIOS DE MANTENIMIENTO Y REPARACIÓN DE MAQUINARIA DE OFICINA Y CONTABILIDAD"]
["0202020807013",13,"02","02","02","08","07","01",3,"","","SERVICIOS DE MANTENIMIENTO Y REPARACIÓN DE COMPUTADORES Y EQUIPO PERIFÉRICO"]
["0202020807014",13,"02","02","02","08","07","01",4,"","","SERVICIOS DE MANTENIMIENTO Y REPARACIÓN DE MAQUINARIA Y EQUIPO DE TRANSPORTE"]
["0202020807015",13,"02","02","02","08","07","01",5,"","","SERVICIOS DE MANTENIMIENTO Y REPARACIÓN DE OTRA MAQUINARIA Y OTRO EQUIPO"]
["020202080702",12,"02","02","02","08","07","02",null,"","","SERVICIOS DE REPARACIÓN DE OTROS BIENES"]
["0202020807021",13,"02","02","02","08","07","02",1,"","","SERVICIOS DE REPARACIÓN DE CALZADO Y ARTÍCULOS DE CUERO"]
["0202020807022",13,"02","02","02","08","07","02",2,"","","SERVICIOS DE REPARACIÓN DE RELOJES Y JOYAS"]
["0202020807023",13,"02","02","02","08","07","02",3,"","","SERVICIOS DE REPARACIÓN DE PRENDAS DE VESTIR Y TEXTILES PARA EL HOGAR"]
["0202020807024",13,"02","02","02","08","07","02",4,"","","SERVICIOS DE REPARACIÓN DE MUEBLES"]
["0202020807029",13,"02","02","02","08","07","02",9,"","","SERVICIOS DE MANTENIMIENTO Y REPARACIÓN DE OTROS BIENES N.C.P."]
["020202080703",12,"02","02","02","08","07","03",null,"","","SERVICIOS DE INSTALACIÓN (DISTINTOS DE LOS SERVICIOS DE CONSTRUCCIÓN)"]
["0202020807031",13,"02","02","02","08","07","03",1,"","","SERVICIOS DE INSTALACIÓN DE PRODUCTOS METÁLICOS ELABORADOS, EXCEPTO MAQUINARIA Y EQUIPO"]
["0202020807032",13,"02","02","02","08","07","03",2,"","","SERVICIOS DE INSTALACIÓN DE MAQUINARIA Y EQUIPO PARA EL SECTOR INDUSTRIAL"]
["0202020807033",13,"02","02","02","08","07","03",3,"","","SERVICIOS DE INSTALACIÓN DE MAQUINARIA DE OFICINA, CONTABILIDAD Y COMPUTADORES"]
["0202020807034",13,"02","02","02","08","07","03",4,"","","SERVICIOS DE INSTALACIÓN DE EQUIPOS Y APARATOS DE RADIO, TELEVISIÓN Y COMUNICACIONES"]
["0202020807035",13,"02","02","02","08","07","03",5,"","","SERVICIOS DE INSTALACIÓN DE MAQUINARIA Y EQUIPO MÉDICO PROFESIONAL, E INSTRUMENTOS DE PRECISIÓN Y ÓPTICOS"]
["0202020807036",13,"02","02","02","08","07","03",6,"","","SERVICIOS DE INSTALACIÓN DE MAQUINARIA Y APARATOS ELÉCTRICOS N.C.P."]
["0202020807039",13,"02","02","02","08","07","03",9,"","","SERVICIOS DE INSTALACIÓN DE OTROS BIENES N.C.P."]
["0202020808",10,"02","02","02","08","08","",null,"","","SERVICIOS DE FABRICACIÓN DE INSUMOS FÍSICOS QUE SON PROPIEDAD DE OTROS"]
["020202080801",12,"02","02","02","08","08","01",null,"","","SERVICIOS DE FABRICACIÓN DE ALIMENTOS, BEBIDAS Y TABACO"]
["020202080802",12,"02","02","02","08","08","02",null,"","","SERVICIOS DE FABRICACIÓN DE TEXTILES, CONFECCIONES Y PRODUCTOS DE CUERO"]
["020202080803",12,"02","02","02","08","08","03",null,"","","SERVICIOS DE FABRICACIÓN DE LA MADERA Y EL PAPEL"]
["020202080804",12,"02","02","02","08","08","04",null,"","","SERVICIOS DE FABRICACIÓN DE PRODUCTOS DE LA REFINACIÓN DEL PETRÓLEO, PRODUCTOS QUÍMICOS Y FARMACÉUTICOS"]
["020202080805",12,"02","02","02","08","08","05",null,"","","SERVICIOS DE FABRICACIÓN DE PRODUCTOS DE CAUCHO, PLÁSTICO Y OTROS PRODUCTOS MINERALES NO METÁLICOS"]
["020202080806",12,"02","02","02","08","08","06",null,"","","SERVICIOS DE FABRICACIÓN DE PRODUCTOS METALÚRGICOS BÁSICOS"]
["020202080807",12,"02","02","02","08","08","07",null,"","","SERVICIOS DE FABRICACIÓN DE PRODUCTOS METÁLICOS ELABORADOS, MAQUINARIA Y EQUIPO"]
["020202080808",12,"02","02","02","08","08","08",null,"","","SERVICIOS DE FABRICACIÓN DE EQUIPO DE TRANSPORTE"]
["020202080809",12,"02","02","02","08","08","09",null,"","","OTROS SERVICIOS DE FABRICACIÓN"]
["0202020809",10,"02","02","02","08","09","",null,"","","OTROS SERVICIOS DE FABRICACIÓN; SERVICIOS DE EDICIÓN, IMPRESIÓN Y REPRODUCCIÓN; SERVICIOS DE RECUPERACIÓN DE MATERIALES "]
["020202080901",12,"02","02","02","08","09","01",null,"","","SERVICIOS DE EDICIÓN, IMPRESIÓN Y REPRODUCCIÓN ",null,"Los servicios de fabricación donde se transfieren insumos intangibles, en lugar de insumos físicos, a través de outsourcing o subcontratación de una parte o de la totalidad del proceso de edición, impresión o reproducción. Las unidades que prestan el servicio no poseen ni tienen derechos de uso de los insumos intangibles. "]
["020202080902",12,"02","02","02","08","09","02",null,"","","SERVICIOS DE MOLDEADO, ESTAMPADO, EXTRUSIÓN Y FABRICACIÓN DE PRODUCTOS SIMILARES DE PLÁSTICO"]
["020202080903",12,"02","02","02","08","09","03",null,"","","SERVICIOS DE FUNDICIÓN, FORJA, ESTAMPADO Y FABRICACIÓN DE PRODUCTOS SIMILARES DE METALES"]
["020202080904",12,"02","02","02","08","09","04",null,"","","SERVICIOS DE RECUPERACIÓN DE MATERIALES, A COMISIÓN O POR CONTRATO"]
["02020209",8,"02","02","02","09","","",null,"","","SERVICIOS PARA LA COMUNIDAD, SOCIALES Y PERSONALES"]
["0202020902",10,"02","02","02","09","02","",null,"","","SERVICIOS DE EDUCACIÓN",null,"Ejemplo: Talleres y capacitaciones para administrativos y docentes."]
["020202090201",12,"02","02","02","09","02","01",null,"","","SERVICIOS DE EDUCACIÓN DE LA PRIMERA INFANCIA Y PREESCOLAR"]
["020202090202",12,"02","02","02","09","02","02",null,"","","SERVICIOS DE ENSEÑANZA PRIMARIA"]
["020202090203",12,"02","02","02","09","02","03",null,"","","SERVICIOS DE EDUCACIÓN SECUNDARIA"]
["020202090204",12,"02","02","02","09","02","04",null,"","","SERVICIOS DE EDUCACIÓN POSTSECUNDARIA NO TERCIARIA "]
["020202090205",12,"02","02","02","09","02","05",null,"","","SERVICIOS DE EDUCACIÓN SUPERIOR (TERCIARIA) "]
["020202090209",12,"02","02","02","09","02","09",null,"","","OTROS TIPOS DE EDUCACIÓN Y SERVICIOS DE APOYO EDUCATIVO","Corresponde al pago realizado a evaluares, directores y jurados para prestar apoyo en  promociones docentes, proyectos de investigación, de publicaciones, proyectos de grado y tesis y de la productividad académica.\n\n92911 Servicios de educación cultural \n92912 Servicios de educación deportiva y de recreación \n92919 Otros tipos de servicios educativos y de formación, n.c.p.\n92920 Servicios de apoyo educativo \n"]
["0202020903",10,"02","02","02","09","03","",null,"","","SERVICIOS PARA EL CUIDADO DE LA SALUD HUMANA Y SERVICIOS SOCIALES",null,"unisalud (psicologos, fisioterapeutas)"]
["020202090301",12,"02","02","02","09","03","01",null,"","","SERVICIOS DE SALUD HUMANA",null,"Incluye servicios de ambulancia, servicios de parto, enfermeria, odontologia"]
[{"$f":"CONCATENATE(C645,D645,E645,F645,G645,H645,I645,J645,K645)","v":"020202090302"},12,"02","02","02","09","03","02",null,"","","SERVICIOS DE ATENCIÓN RESIDENCIAL PARA PERSONAS MAYORES Y CON DISCAPACIDAD"]
["020202090303",12,"02","02","02","09","03","03",null,"","","OTROS SERVICIOS SOCIALES CON ALOJAMIENTO"]
["020202090304",{"$f":"LEN(A647)","v":12},"02","02","02","09","03","04",null,"","","SERVICIOS SOCIALES SIN ALOJAMIENTO PARA PERSONAS MAYORES Y CON DISCAPACIDAD"]
["020202090305",12,"02","02","02","09","03","05",null,"","","OTROS SERVICIOS SOCIALES SIN ALOJAMIENTO "]
["0202020904",10,"02","02","02","09","04","",null,"","","SERVICIOS DE ALCANTARILLADO, RECOLECCIÓN, TRATAMIENTO Y DISPOSICIÓN DE DESECHOS Y OTROS SERVICIOS DE SANEAMIENTO AMBIENTAL"]
["020202090401",12,"02","02","02","09","04","01",null,"","","SERVICIOS DE ALCANTARILLADO, SERVICIOS DE LIMPIEZA, TRATAMIENTO DE AGUAS RESIDUALES Y TANQUES SÉPTICOS"]
["020202090402",12,"02","02","02","09","04","02",null,"","","SERVICIOS DE RECOLECCIÓN DE DESECHOS"]
["020202090403",12,"02","02","02","09","04","03",null,"","","SERVICIOS DE TRATAMIENTO Y DISPOSICIÓN DE DESECHOS"]
["020202090404",12,"02","02","02","09","04","04",null,"","","SERVICIOS DE DESCONTAMINACIÓN"]
["020202090405",12,"02","02","02","09","04","05",null,"","","SERVICIOS DE SANEAMIENTO Y SIMILARES"]
["020202090409",12,"02","02","02","09","04","09",null,"","","OTROS SERVICIOS DE PROTECCIÓN DEL MEDIO AMBIENTE N.C.P."]
["0202020905",10,"02","02","02","09","05","",null,"","","SERVICIOS DE ASOCIACIONES"]
["020202090501",12,"02","02","02","09","05","01",null,"","","SERVICIOS PROPORCIONADOS POR ORGANIZACIONES GREMIALES, COMERCIALES Y ORGANIZACIONES DE EMPLEADORES Y DE PROFESIONALES"]
["020202090502",12,"02","02","02","09","05","02",null,"","","SERVICIOS PROPORCIONADOS POR SINDICATOS"]
["020202090509",12,"02","02","02","09","05","09",null,"","","SERVICIOS PROPORCIONADOS POR OTRAS ASOCIACIONES"]
["0202020906",10,"02","02","02","09","06","",null,"","","SERVICIOS DE ESPARCIMIENTO, CULTURALES Y DEPORTIVOS"]
["020202090601",12,"02","02","02","09","06","01",null,"","","SERVICIOS AUDIOVISUALES Y SERVICIOS CONEXOS ","Los servicios prestados en el proceso de conversión de sonidos, palabras y música a un formato físico permanente que utiliza el equipo técnico especializado de un estudio de grabación de sonido Todos los servicios de grabación realizados en la ubicación de un evento público en vivo, como conferencia, seminario o concierto, etc.\n• Los servicios de grabación de programas de radio en vivo, realizados en un estudio de grabación de sonido.\nLos servicios de grabación original de sonidos, palabras o música, convertidos en formato digital o análogo.\nLos servicios de producción y realización de películas, incluyendo dibujos animados diseñados principalmente para su exhibición en salas de cine.\n• Los servicios de producción y realización de todo tipo de películas (ejemplo: series, tele lmes, incluidos los dibujos animados) diseñadas principalmente para mostrar en la televisión.\n• Los servicios de producción y realización de películas promocionales o de publicidad.\n• Los servicios de producción de programas de televisión en vivo o pregrabados."]
["020202090602",12,"02","02","02","09","06","02",null,"","","SERVICIOS DE PROMOCIÓN Y PRESENTACIÓN DE ARTES ESCÉNICAS Y EVENTOS DE ENTRETENIMIENTO EN VIVO"]
["020202090603",12,"02","02","02","09","06","03",null,"","","SERVICIOS RELACIONADOS CON ACTORES Y OTROS ARTISTAS"]
["020202090604",12,"02","02","02","09","06","04",null,"","","SERVICIOS DE PRESERVACIÓN Y MUSEOS"]
["020202090605",12,"02","02","02","09","06","05",null,"","","SERVICIOS DEPORTIVOS Y DEPORTES RECREATIVOS"]
["020202090606",12,"02","02","02","09","06","06",null,"","","SERVICIOS DE ATLETAS Y SERVICIOS DE AUXILIARES CONEXOS"]
["020202090609",12,"02","02","02","09","06","09",null,"","","OTROS SERVICIOS DE ESPARCIMIENTO Y DIVERSIÓN"]
["0202020907",10,"02","02","02","09","07","",null,"","","OTROS SERVICIOS",null,"Servicio de lavanderia"]
["020202090701",12,"02","02","02","09","07","01",null,"","","SERVICIOS DE LAVADO, LIMPIEZA Y TEÑIDO"]
["020202090702",12,"02","02","02","09","07","02",null,"","","SERVICIOS DE TRATAMIENTOS DE BELLEZA Y DE BIENESTAR FÍSICO"]
["020202090703",12,"02","02","02","09","07","03",null,"","","SERVICIOS FUNERARIOS, DE CREMACIÓN Y DE SEPULTURA"]
["020202090709",12,"02","02","02","09","07","09",null,"","","OTROS SERVICIOS DIVERSOS N.C.P."]
["0202020909",10,"02","02","02","09","09","",null,"","","SERVICIOS PRESTADOS POR ORGANIZACIONES Y ORGANISMOS EXTRATERRITORIALES"]
["0202021001",10,"02","02","02","10","01","",null,null,null,"VIÁTICOS DE LOS FUNCIONARIOS EN COMISIÓN","Son los pagos por concepto de viáticos que reciben los funcionarios y trabajadores oficiales en comisión, para alojamiento y manutención cuando: a) deban desempeñar sus funciones en un lugar diferente a su sede habitual de trabajo, ya sea dentro o fuera del país, o b) deba atender transitoriamente actividades oficiales distintas a las inherentes al empleo del que es titular (Departamento Administrativo de la Función Pública, 2007). ","Personal de planta permanente y temporal en comisión inferior a 180 dÍas"]
["02020211",8,"02","02","02","11",null,null,null,null,null,"SERVICIOS PRESTADOS POR ESTUDIANTES","Corresponde al pago de un reconocimiento económico a los estudiantes de las universidades por apoyo a labores academico-administrativas EJM: Monitores académicos, estudiantes auxiliares, estudiantes practicantes, promotores de convivencia jovenes investigadores, entre otros. "]
["0202021101",10,"02","02","02","11","01",null,null,null,null,"SERVICIOS PRESTADOS POR ESTUDIANTES",null,"Servicios prestados por los estudiantes de la universidad en labores academico-administrativas, es el  reconocimiento de una contraprestación directa mediante acto administrativo. Ejm: Monitores academicos, estudiantes auxiliares, estudiante practicante y promotores de convivencia."]
["03",2,"03","","","","","",null,"",null,"TRANSFERENCIAS CORRIENTES","Comprende las transacciones que realizan las IES  a otra unidad sin recibir de esta última ningún bien, servicio o activo a cambio como contrapartida directa. Las transferencias por su naturaleza, reducen el ingreso y las posibilidades de consumo del otorgante e incrementan el ingreso y las posibilidades de consumo del receptor (Fondo Monetario Internacional, 2014, pág. 47). "]
["0302",4,"03","02","","","","",null,"",null,"A ORGANIZACIONES NACIONALES E INTERNACIONALES ","Comprende las transferencias que las IES hacen  a organizaciones nacionales e  internacionales sin recibir de estas últimas ningún bien, servicio o activo a cambio como contrapartida directa. \nIncluye: \n Transferencias relacionadas con acuerdos y convenios de cooperación nacionales e internacional.\n  Cuotas de afiliación o membresías a organismos o asociaciones nacionales e  internacionales. "]
["0302020101",10,"03","02","02","01","01","",null,"",null,"MEMBRESIAS, AFILIACIONES Y CUOTAS DE SOSTENIMIENTO","Comprende las transferencias corrientes que las IES debe realizar a una organización nacional o internacional para poder pertenecer a la misma. Las membresías o cuotas de afiliación se consideran transferencias corrientes cuando no estén relacionados con la financiación,ni concedan derechos sobre los activos de la organización."]
["0303",4,"03","03","","","","",null,"",null,"A ENTIDADES DEL GOBIERNO","Comprende las transferencias que las IES hacen a una unidad del gobierno general o a un esquema asociativo de gobierno, sin recibir de estos ningún bien, servicio o activo a cambio como contrapartida directa."]
["030302",6,"03","03","02","","","",null,"",null,"A ENTIDADES TERRITORIALES DISTINTAS AL SISTEMA GENERAL DE PARTICIPACIONES","Comprende las transferencias corrientes que las IES realizan a una entidad territorial pero que no se desarrollan dentro del Sistema General de Participaciones (SGP). Constituyen entidades territoriales los departamentos, distritos, municipios o territorios indígenas (Const., 1991, Art. 286)."]
["0303020101",10,"03","03","02","01","01",null,null,null,null,"TRANSFERENCIAS DE UNIVERSIDADES A ENTIDADES TERRITORIALES","Corresponde a  transferencias que realizan las universidades a entidades territoriales (municipios o departamentos) con el fin de aportar en el desarrollo de actividades de docencia, investigación o extensión,  asi mismo, por ejemplo,  la distribución de utilidades, o la financiación de proyectos, contrapartidas.","\n"]
["030304",6,"03","03","04","","","",null,"",null,"A OTRAS ENTIDADES DEL GOBIERNO GENERAL"]
["0303040101",10,"03","03","04","01","01",null,null,null,null,"TRANSFERENCIAS ENTRE INSTITUCIONES DE EDUCACIÓN SUPERIOR","Corresponde a las transferencias entre universidades en el desarrollo de compromisos para el desarrollo de actividades de docencia, investigacion, extension, EJM: Premio Otto de Greiff, distribución de excedentes, contrapartidas."]
["0304",4,"03","04","","","","",null,"",null,"PRESTACIONES SOCIALES ","Comprende las transferencias que las IES hacen a los hogares o sus empleados (o a los supervivientes o dependientes de los empleados con derecho a estos pagos), con el fin de cubrir las necesidades que surgen de los riesgos sociales, y sin recibir de estos ningún bien, servicio o activo a cambio como contrapartida directa. Se entienden como riesgos sociales los eventos o circunstancias adversas que pueden afectar el bienestar de los hogares, imponiendo una demanda adicional de recursos o reduciendo sus ingresos, como por ejemplo la enfermedad, la invalidez, la discapacidad, los accidentes o enfermedades ocupacionales, la vejez, la sobrevivencia, la maternidad y el desempleo (Fondo Monetario Internacional, 2014, pág. 16). "]
["030402",6,"03","04","02","","","",null,"",null,"PRESTACIONES SOCIALES RELACIONADAS CON EL EMPLEO","Comprende las transferencias corrientes que las IES  hacen directamente a sus empleados (o a los supervivientes o dependientes de los empleados con derecho a estos pagos) para cubrir necesidades derivadas de riesgos sociales. El pago de las prestaciones sociales relacionadas con el empleo se hace con los recursos de las IES, sin la intervención de una empresa de seguros o un fondo de pensiones autónomo o no autónomo. ","fondo pensional"]
["0304020101",10,"03","04","02","01","01","",null,"",null,"MESADAS PENSIONALES (DE PENSIONES)","Corresponde al pago de la asignación que recibe periódicamente un pensionado por los servicios que fueron prestados a las  IES, en concordancia con lo establecido por la ley, luego de haber cumplido los requisitos mínimos para acceder a un pago mensual bajo la figura de pensión."]
["0304020201",10,"03","04","02","02","01","",null,"",null,"CUOTAS PARTES PENSIONALES (DE PENSIONES)","Corresponde al pago de la concurrencia en las mesadas pensionales reconocidas por otras entidades, en proporción al tiempo laborado o cotizado por el pensionado en la IES."]
["0304020301",10,"03","04","02","03","01","",null,"",null,"BONOS PENSIONALES (DE PENSIONES)","Son gastos destinados al pago de los bonos pensionales de los servidores píblicos que estuvieron afiliados a una Caja de Previsión Social y se trasladaron al Régimen de Prima Media con Prestación Definida administrado por Colpensiones o al Régimen de Ahorro Individual con Solidaridad administrados por las administradoras de fondos privados de pensiones – AFP."]
["03040212",8,"03","04","02","12",null,"",null,"",null,"INCAPACIDADES Y LICENCIAS DE MATERNIDAD Y PATERNIDAD (NO DE PENSIONES)","Corresponde a las erogaciones para atender el pago que realiza la IES  por concepto de incapacidades , licencias de maternidad y paternidad de sus empleados, según lo establecido en la normatividad vigente."]
["0304021201",10,"03","04","02","12","01",null,null,null,null,"INCAPACIDADES (NO DE PENSIONES)","Corresponde a las erogaciones para atender el pago que realiza la IES  por concepto de incapacidades de sus empleados, según lo establecido en la normatividad vigente.","Para el gasto que reconoce unisalud o entidades de salud que pertenecen a las universidad a partir del tercer dia de incapacidad. "]
["0304021202",10,"03","04","02","12","02",null,null,null,null,"LICENCIAS DE MATERNIDAD Y PATERNIDAD (NO DE PENSIONES)","Corresponde a las erogaciones para atender el pago que realiza la IES  por concepto de licencias de maternidad y paternidad de sus empleados, según lo establecido en la normatividad vigente."]
["0304021401",10,"03","04","02","14","01","",null,"",null,"AUXILIOS FUNERARIOS","Corresponde al apoyo económico que otorgan las IES directamente a sus empleados o a sus dependientes, con el fin de sufragar los gastos relacionados con el fallecimiento."]
["0304020601",10,"03","04","02","06","01","",null,"",null,"BIENESTAR SOCIAL DEL PENSIONADO (NO DE PENSIONES)","Corresponde a los recursos que se transfieren con el fin de garantizar los programas de bienestar del pensionado.","Aplica UNIVALLE Ejm: Aporte a la asociación de pensionados para fiesta de fin de año."]
["0304020701",10,"03","04","02","07","01","",null,"",null,"AUXILIO SINDICAL (NO DE PENSIONES)","Corresponde  a la transferencia de recursos a los asociaciones sindicales de las IES, en el marco de las negociaciones para el desarrollo de actividades propias de cada asociación."]
["0304020801",10,"03","04","02","08","01","",null,"",null,"AUXILIO DE INCAPACIDAD","Corresponde al pago del auxilio de incapacidad que se realiza a favor del empleado  con el fin de garantizar el 100% de su asignación durante el periodo de incapacidad, gasto que se ejecuta siempre y cuando este soportado en normatividad vigente.  ","\nUTP: Acuerdo sindical  que otorga bono de salud"]
["0304020901",10,"03","04","02","09","01",null,null,null,null,"AUXILIO EDUCATIVO","Corresponde al pago del auxilio educativo que se realiza a favor del empleado o sus dependientes con derecho a este,  definido por la normativa de la Institución de Educación Superior.","\nUTP: Convención colectiva pago fijo por estudios de bachillerato."]
["0308",4,"03","08","","","","",null,"",null,"BECAS Y OTROS BENEFICIOS DE EDUCACIÓN ","Comprende las transferencias que las IES hacen directamente a los hogares por concepto de becas y otros beneficios de educación, que no están relacionados con riesgos sociales, y que no generan la entrega ningún bien, servicio o activo a cambio como contrapartida directa. "]
["030801",6,"03","08","01","","","",null,"",null,"BECAS Y OTROS BENEFICIOS DE EDUCACIÓN "]
["0308010101",10,"03","08","01","01","01",null,null,null,null," BENEFICIOS EDUCATIVOS A LA COMUNIDAD UNIVERSITARIA","Corresponde  al gasto relacionado con el otorgamiento de las becas  que realizan las IES  a favor de los miembros de la comunidad universitaria de acuerdo con la normatividad vigente de cada institución. Esta cuenta excluye el pago de incentivos o estímulos de sostenimiento que se otorgan adicionales al pago de la matrícula, estos gastos se clasifican en la cuenta 03-12-01-001-01  APOYOS SOCIOECONOMICOS A COMUNIDAD UNIVERSITARIA"]
["0309",4,"03","09","","","","",null,"",null,"A PRODUCTORES DE MERCADO QUE DISTRIBUYEN DIRECTAMENTE A LOS HOGARES","Comprende las transferencias que las IES hacen a los hogares a través de un productor; sin recibir de los primeros ningún bien, servicio o activo a cambio como contrapartida directa. En este tipo de transferencias las IES adquieren bienes y servicios con productores de mercado, y estos últimos los distribuyen directamente a los hogares para su consumo final. ","LEER EN EL MANUAL DE ESTADISTICA DE FINANZAS PUBLICAS EL CONCEPTO DE (HOGARES) PARA SER EXPLICADO EN EL MANUAL DEL CATALOGO SUE. "]
["030901",6,"03","09","01",null,null,null,null,null,null,"A PRODUCTORES DE MERCADO QUE DISTRIBUYEN DIRECTAMENTE A LOS HOGARES."]
["0309010101",10,"03","09","01","01","01",null,null,null,null,"BONO DE BENEFICIOS A COMUNIDAD UNIVERSITARIA ","Corresponde a las transferencias que realizan las IES a un productor de mercado con el fin de garantizar la entrega de bienes y servicios de consumo final a la comunidad universitaria.","\n EJM: Bonos, tarjetas canjeables,tarjetas de regalo, bonos sodexo/big pass/almacenes de cadena  a personal administrativo y/o docente. "]
["0310",4,"03","10","","","","",null,"",null,"SENTENCIAS Y CONCILIACIONES","Comprende las transferencias corrientes que las IES deben hacer como efecto del acatamiento de un fallo judicial, de un mandamiento ejecutivo, de créditos judicialmente reconocidos o de una conciliación ante autoridad competente, en  los que se ordene resarcir un derecho de terceros. "]
["031001",6,"03","10","01","","","",null,"",null,"FALLOS NACIONALES","Comprende las transferencias corrientes que las IES deben hacer  como efecto del acatamiento de un fallo judicial, de un mandamiento ejecutivo, de créditos judicialmente reconocidos, o de una conciliación ante una autoridad competente."]
["0310010101",10,"03","10","01","01","01","",null,"",null,"SENTENCIAS","Comprende las transferencias corrientes que las IES deben hacer en acatamiento de una decisión judicial que pone fin a un pleito civil o a una causa criminal, resolviendo respectivamente los derechos de cada litigante y la condena o absolución del procesado (OSORIO, 2000). "]
["0310010102",10,"03","10","01","01","02","",null,"",null,"CONCILIACIONES","Comprende las transferencias corrientes que las IES deben hacer por una conciliación. Una conciliación es un mecanismo de solución de conflictos a través del cual, dos o más personas gestionan por sí mismas la solución de sus diferencias, con la ayuda de un tercero neutral y calificado, denominado conciliador.  "]
["0312",4,"03","12","","","","",null,"",null,"A LOS HOGARES DIFERENTES DE PRESTACIONES SOCIALES "]
[{"$f":"CONCATENATE(C709,D709,E709,F709,G709,H709,I709,J709,K709)","v":"031201"},{"$f":"LEN(A709)","v":6},"03",12,"01",null,null,null,null,null,null,"A HOGARES DIFERENTES DE PRESTACIONES SOCIALES"]
["0312010101",10,"03",12,"01","01","01",null,null,null,null,"APOYOS SOCIOECONOMICOS A ESTUDIANTES","Corresponde a los recursos economicos otorgados directamente a los estudiantes con con el fin de garantizar su permanencia academica y la participación en actividades que promueven la formacion integral."," EJM: Apoyo al transporte, apoyo a la alimentación y alojamiento, participación en eventos academicos,   culturales y deportivos, salidas de campo, gastos de marcha, entre otros."]
["0313",{"$f":"LEN(A711)","v":4},"03",13,"","","","",null,"",null,"TRANSFERENCIAS INTERNAS","Corresponde al gasto ejecutado por las distintas dependencias de las IES para atender los servicios que se prestan entre proyectos de una misma empresa o entre proyectos de diferentes empresas del sistema financiero de la Universidad con o sin contraprestación.","\n"]
["031301",6,"03",13,"01","","","",null,"",null,"TRANSFERENCIAS INTERNAS"]
["03130101",8,"03","13","01","01","","",null,"",null,"TRANSFERENCIAS INTERNAS"]
["0313010101",10,"03",13,"01","01","01","",null,"",null,"TRANSFERENCIAS INTERNAS"]
["04",2,"04","","","","","",null,"","","TRANSFERENCIA DE CAPITAL","Comprende las transacciones que realiza las IES  a otra unidad para la adquisición de un bien o el pago de un pasivo, sin recibir de esta última ningún bien, servicio o activo a cambio como contrapartida directa. A diferencia de las transferencias corrientes, estas implican el traspaso de la propiedad de un activo (distinto del efectivo y de las existencias80) de una unidad a otra, la obligación de adquirir o de disponer de un activo por una o ambas partes, o la obligación de pagar un pasivo por parte del receptor (Fondo Monetario Internacional, 2014, pág. 46). \nNE2: Si no es posible determinar con certeza si la transferencia es corriente o de capital debe clasificarse en la cuenta 03 Transferencias corrientes","Condicionado a la adquisición de un activo por parte del tercero para su uso y goce."]
["0404",4,"04","04","","","","",null,"","","PARA LA ADQUISICIÓN DE ACTIVOS NO FINANCIEROS"]
["0404010101",10,"04","04","01","01","01","",null,"","","PARA LA ADQUISICIÓN DE ACTIVOS NO FINANCIEROS"]
["05",2,"05","","","","","",null,"","","GASTOS DE COMERCIALIZACIÓN Y PRODUCCIÓN","Son los bienes y servicios que se adquieren  para realizar la labor misional en el marco de las actividades de investigación y extensión. \n\nNo aplica para los programas de pregrado y posgrado independientemente de su fuente de financiación. Estos gastos se registran en la cuenta 02- ADQUISICION DE BIENES Y SERVICIOS.  (Diferente a la adquisición de activos).","  EJEMPLO UNAL: tienda universitaria, centros agrarios. "]
["0501",4,"05","01","","","","",null,"","","GASTOS DE COMERCIALIZACIÓN Y PRODUCCIÓN","Comprende los gastos asociados a la adquisición de insumos necesarios para la producción y comercialización de los bienes y servicios que provee la IES. "]
["050101",6,"05","01","01","","","",null,"","","MATERIALES Y SUMINISTROS","Comprende todos los bienes que se adquieren con la intención de usarlos como insumos en   un proceso productivo o de comercialización (Fondo Monetario Internacional, 2014, pág. 206). "]
["05010100",8,"05","01","01","00","","",null,"","","AGRICULTURA, SILVICULTURA Y PRODUCTOS DE LA PESCA"]
["0501010001",10,"05","01","01","00","01","",null,"","","PRODUCTOS DE LA AGRICULTURA Y LA HORTICULTURA"]
["050101000101",12,"05","01","01","00","01","01",null,"","","CEREALES"]
["050101000102",12,"05","01","01","00","01","02",null,"","","HORTALIZAS"]
["050101000103",12,"05","01","01","00","01","03",null,"","","FRUTAS Y NUECES"]
["050101000104",12,"05","01","01","00","01","04",null,"","","SEMILLAS Y FRUTOS OLEAGINOSOS"]
["050101000105",12,"05","01","01","00","01","05",null,"","","RAÍCES Y TUBÉRCULOS COMESTIBLES RICOS EN ALMIDÓN O INULINA"]
["050101000106",12,"05","01","01","00","01","06",null,"","","PLANTAS AROMÁTICAS, BEBESTIBLES Y ESPECIAS"]
["050101000107",12,"05","01","01","00","01","07",null,"","","LEGUMBRES, SECAS"]
["050101000108",12,"05","01","01","00","01","08",null,"","","PLANTAS UTILIZADAS EN LA FABRICACIÓN DE AZÚCAR"]
["050101000109",12,"05","01","01","00","01","09",null,"","","PRODUCTOS DE FORRAJE, FIBRAS, PLANTAS VIVAS, FLORES Y CAPULLOS DE FLORES, TABACO EN RAMA Y CAUCHO NATURAL"]
["0501010002",10,"05","01","01","00","02","",null,"","","ANIMALES VIVOS Y PRODUCTOS ANIMALES (EXCEPTO LA CARNE)"]
["050101000201",12,"05","01","01","00","02","01",null,"","","ANIMALES VIVOS"]
["0501010002011",13,"05","01","01","00","02","01",1,"","","BOVINOS VIVOS"]
["0501010002012",13,"05","01","01","00","02","01",2,"","","OTROS RUMIANTES"]
["0501010002013",13,"05","01","01","00","02","01",3,"","","CABALLOS Y OTROS ÉQUIDOS"]
["0501010002014",13,"05","01","01","00","02","01",4,"","","GANADO PORCINO"]
["0501010002015",13,"05","01","01","00","02","01",5,"","","AVES DE CORRAL"]
["0501010002019",13,"05","01","01","00","02","01",9,"","","OTROS ANIMALES VIVOS"]
["050101000202",12,"05","01","01","00","02","02",null,"","","LECHE CRUDA"]
["050101000203",12,"05","01","01","00","02","03",null,"","","HUEVOS DE GALLINA O DE OTRAS AVES, CON CÁSCARA, FRESCOS"]
["050101000204",12,"05","01","01","00","02","04",null,"","","MATERIALES REPRODUCTIVOS DE ANIMALES"]
["050101000209",12,"05","01","01","00","02","09",null,"","","OTROS PRODUCTOS ANIMALES"]
["0501010003",10,"05","01","01","00","03","",null,"","","PRODUCTOS DE LA SILVICULTURA Y DE LA EXPLOTACIÓN FORESTAL"]
["050101000301",12,"05","01","01","00","03","01",null,"","","MADERA EN BRUTO"]
["050101000302",12,"05","01","01","00","03","02",null,"","","PRODUCTOS FORESTALES DIFERENTES A LA MADERA","0321 Gomas naturales y resinas, gomo-resinas y oleorresinas\n03211 Balata, gutapercha, guayule, chicle y gomas naturales similares, en formas primarias o en placas, hojas o tiras\n03219 Goma laca, resinas, bálsamos, gomas naturales y otras resinas n.c.p."]
["0501010004",10,"05","01","01","00","04","",null,"","","PESCADO Y OTROS PRODUCTOS DE LA PESCA"]
["05010101",8,"05","01","01","01","","",null,"","","MINERALES; ELECTRICIDAD, GAS Y AGUA"]
["0501010101",10,"05","01","01","01","01","",null,"","","CARBÓN DE HULLA, LIGNITO Y TURBA"]
["0501010102",10,"05","01","01","01","02","",null,"","","PETRÓLEO CRUDO Y GAS NATURAL"]
["0501010103",10,"05","01","01","01","03","",null,"","","MINERALES Y CONCENTRADOS DE URANIO Y TORIO"]
["0501010104",10,"05","01","01","01","04","",null,"","","MINERALES METÁLICOS"]
["0501010105",10,"05","01","01","01","05","",null,"","","PIEDRA, ARENA Y ARCILLA"]
["0501010106",10,"05","01","01","01","06","",null,"","","OTROS MINERALES"]
["050101010601",12,"05","01","01","01","06","01",null,"","","MINERALES PARA LA INDUSTRIA QUÍMICA, ABONOS MINERALES"]
["050101010602",12,"05","01","01","01","06","02",null,"","","CLORURO DE SODIO PURO Y SUS SALES, AGUA DE MAR"]
["050101010603",12,"05","01","01","01","06","03",null,"","","PIEDRAS PRECIOSAS Y SEMIPRECIOSAS; PIEDRA PÓMEZ, PIEDRA ESMERIL; ABRASIVOS NATURALES; OTROS MINERALES"]
["0501010107",10,"05","01","01","01","07","",null,"","","ELECTRICIDAD, GAS DE CIUDAD, VAPOR Y AGUA CALIENTE"]
["050101010701",12,"05","01","01","01","07","01",null,"","","ENERGÍA ELÉCTRICA"]
["050101010702",12,"05","01","01","01","07","02",null,"","","GAS DE CARBÓN, GAS DE AGUA, GAS POBRE Y OTROS GASES SIMILARES (EXCEPTO LOS GASES DE PETRÓLEO Y OTROS HIDROCARBUROS GASEOSOS)"]
["050101010703",12,"05","01","01","01","07","03",null,"","","VAPOR Y AGUA CALIENTE"]
["050101010704",12,"05","01","01","01","07","04",null,"","","NIEVE"]
["0501010108",10,"05","01","01","01","08","",null,"","","AGUA NATURAL"]
["05010102",8,"05","01","01","02","","",null,"","","PRODUCTOS ALIMENTICIOS, BEBIDAS Y TABACO; TEXTILES, PRENDAS DE VESTIR Y PRODUCTOS DE CUERO"]
["0501010201",10,"05","01","01","02","01","",null,"","","CARNE, PESCADO, FRUTAS, HORTALIZAS, ACEITES Y GRASAS"]
["050101020101",12,"05","01","01","02","01","01",null,"","","CARNE Y PRODUCTOS CÁRNICOS"]
["050101020102",12,"05","01","01","02","01","02",null,"","","PREPARACIONES Y CONSERVAS DE PESCADO, CRUSTÁCEOS, MOLUSCOS Y DEMÁS INVERTEBRADOS ACUÁTICOS"]
["050101020103",12,"05","01","01","02","01","03",null,"","","PREPARACIONES Y CONSERVAS DE HORTALIZAS, LEGUMBRES, TUBÉRCULOS Y PAPAS"]
["050101020104",12,"05","01","01","02","01","04",null,"","","PREPARACIONES Y CONSERVAS DE FRUTAS Y NUECES"]
["050101020105",12,"05","01","01","02","01","05",null,"","","ACEITES Y GRASAS ANIMALES Y VEGETALES "]
["050101020106",12,"05","01","01","02","01","06",null,"","","BORRA DE ALGODÓN"]
["050101020107",12,"05","01","01","02","01","07",null,"","","TORTAS Y DEMÁS RESIDUOS DE LA EXTRACCIÓN DE GRASAS O ACEITES VEGETALES; HARINA Y POLVO DE SEMILLAS O DE FRUTOS OLEAGINOSOS (EXCEPTO LAS DE MOSTAZA); CERAS VEGETALES (EXCEPTO LOS TRIGLICÉRIDOS); DEGRÁS, RESIDUOS DEL TRATAMIENTO DE GRASAS Y CERAS ANIMALES O VEGETALES"]
[{"$f":"CONCATENATE(C773,D773,E773,F773,G773,H773,I773,J773,K773)","v":"0501010202"},10,"05","01","01","02","02","",null,"","","PRODUCTOS LÁCTEOS Y OVOPRODUCTOS"]
["0501010203",10,"05","01","01","02","03","",null,"","","PRODUCTOS DE MOLINERÍA, ALMIDONES Y PRODUCTOS DERIVADOS DEL ALMIDÓN; OTROS PRODUCTOS ALIMENTICIOS"]
["050101020301",{"$f":"LEN(A775)","v":12},"05","01","01","02","03","01",null,"","","PRODUCTOS DE MOLINERÍA"]
["050101020302",12,"05","01","01","02","03","02",null,"","","ALMIDONES Y PRODUCTOS DERIVADOS DEL ALMIDÓN, AZÚCARES Y JARABES DE AZÚCAR N.C.P."]
["050101020303",12,"05","01","01","02","03","03",null,"","","PREPARACIONES UTILIZADAS EN LA ALIMENTACIÓN DE ANIMALES"]
["050101020304",12,"05","01","01","02","03","04",null,"","","PRODUCTOS DE PANADERÍA"]
["050101020305",12,"05","01","01","02","03","05",null,"","","AZÚCAR"]
["050101020306",12,"05","01","01","02","03","06",null,"","","CACAO, CHOCOLATE Y CONFITERÍA"]
["050101020307",12,"05","01","01","02","03","07",null,"","","MACARRONES, FIDEOS, ALCUZCUZ Y PRODUCTOS FARINÁCEOS SIMILARES"]
["050101020308",12,"05","01","01","02","03","08",null,"","","PRODUCTOS DEL CAFÉ"]
["050101020309",12,"05","01","01","02","03","09",null,"","","OTROS PRODUCTOS ALIMENTICIOS N.C.P."]
["0501010204",10,"05","01","01","02","04","",null,"","","BEBIDAS"]
["050101020401",12,"05","01","01","02","04","01",null,"","","ALCOHOL ETÍLICO; AGUARDIENTES, LICORES Y OTRAS BEBIDAS ESPIRITUOSAS"]
["050101020402",12,"05","01","01","02","04","02",null,"","","VINOS"]
["050101020403",12,"05","01","01","02","04","03",null,"","","LICORES DE MALTA Y MALTA"]
["050101020404",12,"05","01","01","02","04","04",null,"","","BEBIDAS NO ALCOHÓLICAS; AGUAS MINERALES EMBOTELLADAS"]
["0501010205",10,"05","01","01","02","05","",null,"","","PRODUCTOS DE TABACO"]
["0501010206",10,"05","01","01","02","06","",null,"","","HILADOS E HILOS; TEJIDOS DE FIBRAS TEXTILES INCLUSO AFELPADOS"]
["0501010207",10,"05","01","01","02","07","",null,"","","ARTÍCULOS TEXTILES (EXCEPTO PRENDAS DE VESTIR)"]
["0501010208",10,"05","01","01","02","08","",null,"","","TEJIDO DE PUNTO O GANCHILLO; PRENDAS DE VESTIR"]
["050101020801",12,"05","01","01","02","08","01",null,"","","TEJIDOS DE PUNTO O GANCHILLO"]
["050101020802",12,"05","01","01","02","08","02",null,"","","PRENDAS DE VESTIR (EXCEPTO PRENDAS DE PIEL)"]
["050101020803",12,"05","01","01","02","08","03",null,"","","PIELES FINAS CURTIDAS O ADOBADAS Y PIELES ARTIFICIALES; ARTÍCULOS SIMILARES (EXCEPTO SOMBREROS Y DEMÁS TOCADOS)"]
["0501010209",10,"05","01","01","02","09","",null,"","","CUERO Y PRODUCTOS DE CUERO; CALZADO"]
["050101020901",12,"05","01","01","02","09","01",null,"","","CUERO CURTIDO O ADOBADO; CUERO REGENERADO"]
["050101020902",12,"05","01","01","02","09","02",null,"","","MALETAS, BOLSOS DE MANO Y ARTÍCULOS SIMILARES; ARTÍCULOS DE TALABARTERÍA Y GUARNICIONERÍA, OTROS ARTÍCULOS DE CUERO"]
["050101020903",12,"05","01","01","02","09","03",null,"","","CALZADO CON SUELA Y PARTE SUPERIOR ELABORADOS DE CAUCHO O PLÁSTICO, O CON LA PARTE SUPERIOR DE CUERO O MATERIALES TEXTILES, DIFERENTES DE ZAPATOS DEPORTIVOS, CALZADO QUE INCORPORA PUNTERA PROTECTORA DE METAL Y CALZADO ESPECIAL MISCELÁNEO"]
["050101020904",12,"05","01","01","02","09","04",null,"","","CALZADO DEPORTIVO (EXCEPTO BOTAS DE PATINAR)"]
["050101020905",12,"05","01","01","02","09","05",null,"","","OTROS TIPOS DE CALZADO (EXCEPTO CALZADO DE ASBESTO, CALZADO ORTOPÉDICO Y BOTAS DE ESQUIAR)"]
["050101020906",12,"05","01","01","02","09","06",null,"","","PARTES DE CALZADO; PLANTILLAS REMOVIBLES, TALONERAS Y ARTÍCULOS SIMILARES; POLAINAS CORTAS Y LARGAS, Y ARTÍCULOS SIMILARES Y SUS PARTES"]
["05010103",8,"05","01","01","03","","",null,"","","OTROS BIENES TRANSPORTABLES (EXCEPTO PRODUCTOS METÁLICOS, MAQUINARIA Y EQUIPO)"]
["0501010301",10,"05","01","01","03","01","",null,"","","PRODUCTOS DE MADERA, CORCHO, CESTERÍA Y ESPARTERÍA"]
["0501010302",10,"05","01","01","03","02","",null,"","","PASTA O PULPA, PAPEL Y PRODUCTOS DE PAPEL; IMPRESOS Y ARTÍCULOS RELACIONADOS"]
["050101030201",12,"05","01","01","03","02","01",null,"","","PASTA DE PAPEL, PAPEL Y CARTÓN"]
["050101030202",12,"05","01","01","03","02","02",null,"","","LIBROS IMPRESOS "]
["050101030203",12,"05","01","01","03","02","03",null,"","","DIARIOS, REVISTAS Y PUBLICACIONES PERIÓDICAS, PUBLICADOS POR LO MENOS CUATRO VECES POR SEMANA"]
["050101030204",12,"05","01","01","03","02","04",null,"","","DIARIOS, REVISTAS Y PUBLICACIONES PERIÓDICAS, PUBLICADOS MENOS DE CUATRO VECES POR SEMANA"]
["050101030205",12,"05","01","01","03","02","05",null,"","","MAPAS IMPRESOS; MÚSICA IMPRESA O EN MANUSCRITO; TARJETAS POSTALES, TARJETAS DE FELICITACIÓN, FOTOGRAFÍAS Y PLANOS"]
["050101030206",12,"05","01","01","03","02","06",null,"","","SELLOS, CHEQUERAS, BILLETES DE BANCO, TÍTULOS DE ACCIONES, CATÁLOGOS Y FOLLETOS, MATERIAL PARA ANUNCIOS PUBLICITARIOS Y OTROS MATERIALES IMPRESOS "]
["050101030207",12,"05","01","01","03","02","07",null,"","","LIBROS DE REGISTROS, LIBROS DE CONTABILIDAD, CUADERNILLOS DE NOTAS, BLOQUES PARA CARTAS, AGENDAS Y ARTÍCULOS SIMILARES, SECANTES, ENCUADERNADORES, CLASIFICADORES PARA ARCHIVOS, FORMULARIOS Y OTROS ARTÍCULOS DE ESCRITORIO, DE PAPEL O CARTÓN"]
["050101030208",12,"05","01","01","03","02","08",null,"","","TIPOS DE IMPRENTA, PLANCHAS O CILINDROS, PREPARADOS PARA LAS ARTES GRÁFICAS, PIEDRAS LITOGRÁFICAS IMPRESAS U OTROS ELEMENTOS DE IMPRESIÓN"]
["0501010303",10,"05","01","01","03","03","",null,"","","PRODUCTOS DE HORNOS DE COQUE; PRODUCTOS DE REFINACIÓN DE PETRÓLEO Y COMBUSTIBLE NUCLEAR"]
["050101030301",12,"05","01","01","03","03","01",null,"","","CARBÓN COQUE Y SEMICOQUE, CARBÓN DE LIGNITO O CARBÓN DE HULLA; CARBÓN DE RETORTA"]
["050101030302",12,"05","01","01","03","03","02",null,"","","ALQUITRÁN DE CARBÓN, DE CARBÓN LIGNITO, HULLA Y OTRAS TORTAS MINERALES"]
["050101030303",12,"05","01","01","03","03","03",null,"","","ACEITES DE PETRÓLEO O ACEITES OBTENIDOS DE MINERALES BITUMINOSOS (EXCEPTO LOS ACEITES CRUDOS); PREPARADOS N.C.P., QUE CONTENGAN POR LO MENOS EL 70% DE SU PESO EN ACEITES DE ESOS TIPOS Y CUYOS COMPONENTES BÁSICOS SEAN ESOS ACEITES",null,"Compra de combustibles"]
["050101030304",12,"05","01","01","03","03","04",null,"","","GAS DE PETRÓLEO Y OTROS HIDROCARBUROS GASEOSOS (EXCEPTO GAS NATURAL)"]
["050101030305",12,"05","01","01","03","03","05",null,"","","VASELINA, CERA DE PARAFINA, CERA DE PETRÓLEO DE MICROCRISTALINA, CERA CRUDA, OZOCERITA, CERA DE LIGNITO, CERA DE TURBA, OTRAS CERAS MINERALES Y PRODUCTOS SIMILARES, COQUE DE PETRÓLEO, BETÚN DE PETRÓLEO Y OTROS RESIDUOS DE LOS ACEITES DE PETRÓLEO O DE ACEITES OBTENIDOS DE MINERALES BITUMINOSOS"]
["050101030306",12,"05","01","01","03","03","06",null,"","","ELEMENTOS RADIACTIVOS, ISÓTOPOS Y COMPUESTOS RADIACTIVOS; ALEACIONES, DISPERSIONES, PRODUCTOS CERÁMICOS Y MEZCLAS QUE CONTENGAN ESTOS ELEMENTOS, ISÓTOPOS O COMPUESTOS RADIACTIVOS; RESIDUOS RADIACTIVOS"]
["050101030307",12,"05","01","01","03","03","07",null,"","","ELEMENTOS COMBUSTIBLES (CARTUCHOS) PARA REACTORES NUCLEARES O DE REACTORES NUCLEARES"]
["0501010304",10,"05","01","01","03","04","",null,"","","QUÍMICOS BÁSICOS",null,"Reactivos y quimicos para los laboratorios"]
["050101030401",12,"05","01","01","03","04","01",null,"","","QUÍMICOS ORGÁNICOS BÁSICOS "]
["050101030402",12,"05","01","01","03","04","02",null,"","","PRODUCTOS QUÍMICOS INORGÁNICOS BÁSICOS N.C.P."]
["050101030403",12,"05","01","01","03","04","03",null,"","","EXTRACTOS TINTÓREOS Y CURTIENTES; TANINOS Y SUS DERIVADOS; SUSTANCIAS COLORANTES N.C.P."]
["050101030404",12,"05","01","01","03","04","04",null,"","","PRODUCTOS MINERALES NATURALES ACTIVADOS; NEGRO ANIMAL; ACEITE DE RESINA; ACEITES TERPÉNICOS PRODUCIDOS EN EL TRATAMIENTO DE MADERAS DE ÁRBOLES CONÍFEROS; DIPENTENO Y Ρ-CIMENO EN BRUTO; ACEITE DE PINO; COLOFONIA Y ÁCIDOS RESÍNICOS, ESENCIAS Y ACEITES DE COLOFONIA; GOMAS FUNDIDAS; ALQUITRÁN DE MADERA; ACEITES DE ALQUITRÁN DE MADERA; CREOSOTA DE MADERA; NAFTA DE MADERA; PEZ VEGETAL; PEZ DE CERVECERÍA"]
["050101030405",12,"05","01","01","03","04","05",null,"","","PRODUCTOS QUÍMICOS BÁSICOS DIVERSOS"]
["050101030406",12,"05","01","01","03","04","06",null,"","","ABONOS Y PLAGUICIDAS"]
["050101030407",12,"05","01","01","03","04","07",null,"","","PLÁSTICOS EN FORMAS PRIMARIAS"]
["050101030408",12,"05","01","01","03","04","08",null,"","","CAUCHO SINTÉTICO Y FACTICIO DERIVADO DEL PETRÓLEO, MEZCLAS DE ESTOS CAUCHOS CON CAUCHO NATURAL Y GOMAS NATURALES SIMILARES, EN FORMAS PRIMARIAS O EN PLANCHAS, HOJAS O TIRAS"]
["0501010305",10,"05","01","01","03","05","",null,"","","OTROS PRODUCTOS QUÍMICOS; FIBRAS ARTIFICIALES (O FIBRAS INDUSTRIALES HECHAS POR EL HOMBRE)"]
["050101030501",12,"05","01","01","03","05","01",null,"","","PINTURAS Y BARNICES Y PRODUCTOS RELACIONADOS; COLORES PARA LA PINTURA ARTÍSTICA; TINTAS"]
["050101030502",12,"05","01","01","03","05","02",null,"","","PRODUCTOS FARMACÉUTICOS",null,"Medicamentos"]
["050101030503",12,"05","01","01","03","05","03",null,"","","JABÓN, PREPARADOS PARA LIMPIEZA, PERFUMES Y PREPARADOS DE TOCADOR"]
["050101030504",12,"05","01","01","03","05","04",null,"","","PRODUCTOS QUÍMICOS N.C.P."]
["050101030505",12,"05","01","01","03","05","05",null,"","","FIBRAS TEXTILES MANUFACTURADAS"]
[{"$f":"CONCATENATE(C837,D837,E837,F837,G837,H837,I837,J837,K837)","v":"0501010306"},10,"05","01","01","03","06","",null,"","","PRODUCTOS DE CAUCHO Y PLÁSTICO"]
["050101030601",12,"05","01","01","03","06","01",null,"","","LLANTAS DE CAUCHO Y NEUMÁTICOS (CÁMARAS DE AIRE)"]
["050101030602",{"$f":"LEN(A839)","v":12},"05","01","01","03","06","02",null,"","","OTROS PRODUCTOS DE CAUCHO"]
["050101030603",12,"05","01","01","03","06","03",null,"","","SEMIMANUFACTURAS DE PLÁSTICO"]
["050101030604",12,"05","01","01","03","06","04",null,"","","PRODUCTOS DE EMPAQUE Y ENVASADO, DE PLÁSTICO"]
["050101030609",12,"05","01","01","03","06","09",null,"","","OTROS PRODUCTOS PLÁSTICOS"]
["0501010307",10,"05","01","01","03","07","",null,"","","VIDRIO Y PRODUCTOS DE VIDRIO Y OTROS PRODUCTOS NO METÁLICOS N.C.P."]
["050101030701",12,"05","01","01","03","07","01",null,"","","VIDRIO Y PRODUCTOS DE VIDRIO"]
["050101030702",12,"05","01","01","03","07","02",null,"","","ARTÍCULOS DE CERÁMICA NO ESTRUCTURAL"]
["050101030703",12,"05","01","01","03","07","03",null,"","","PRODUCTOS REFRACTARIOS Y PRODUCTOS ESTRUCTURALES NO REFRACTARIOS DE ARCILLA"]
["050101030704",12,"05","01","01","03","07","04",null,"","","YESO, CAL Y CEMENTO"]
["050101030705",12,"05","01","01","03","07","05",null,"","","ARTÍCULOS DE CONCRETO, CEMENTO Y YESO"]
["050101030706",12,"05","01","01","03","07","06",null,"","","PIEDRA DE CONSTRUCCIÓN O DE TALLA LABRADAS, Y SUS MANUFACTURAS (EXCEPTO SIN LABRAR, QUE SE CLASIFICAN EN EL GRUPO 151)"]
["050101030709",12,"05","01","01","03","07","09",null,"","","OTROS PRODUCTOS MINERALES NO METÁLICOS N.C.P."]
["0501010308",10,"05","01","01","03","08","",null,"","","MUEBLES; OTROS BIENES TRANSPORTABLES N.C.P."]
["050101030801",12,"05","01","01","03","08","01",null,"","","MUEBLES"]
["0501010308011",13,"05","01","01","03","08","01",1,"","","ASIENTOS"]
["0501010308012",13,"05","01","01","03","08","01",2,"","","MUEBLES, DEL TIPO UTILIZADO EN OFICINAS"]
["0501010308013",13,"05","01","01","03","08","01",3,"","","MUEBLES DE MADERA, DEL TIPO UTILIZADO EN LA COCINA"]
["0501010308014",13,"05","01","01","03","08","01",4,"","","OTROS MUEBLES N.C.P."]
["0501010308015",13,"05","01","01","03","08","01",5,"","","SOMIERES, COLCHONES CON MUELLES, RELLENOS O GUARNECIDOS INTERIORMENTE CON CUALQUIER MATERIAL, DE CAUCHO O PLÁSTICOS CELULARES, RECUBIERTOS O NO"]
["0501010308016",13,"05","01","01","03","08","01",6,"","","PARTES Y PIEZAS DE MUEBLES"]
["050101030802",12,"05","01","01","03","08","02",null,"","","JOYAS Y ARTÍCULOS CONEXOS"]
["050101030803",12,"05","01","01","03","08","03",null,"","","INSTRUMENTOS MUSICALES"]
["050101030804",12,"05","01","01","03","08","04",null,"","","ARTÍCULOS DE DEPORTE"]
["050101030805",12,"05","01","01","03","08","05",null,"","","JUEGOS Y JUGUETES"]
["050101030806",12,"05","01","01","03","08","06",null,"","","TIOVIVOS (CARRUSELES), COLUMPIOS, CASETAS DE TIRO Y DEMÁS ATRACCIONES DE FERIA"]
["050101030807",12,"05","01","01","03","08","07",null,"","","CONSTRUCCIONES PREFABRICADAS"]
["050101030809",12,"05","01","01","03","08","09",null,"","","OTROS ARTÍCULOS MANUFACTURADOS N.C.P."]
["0501010309",10,"05","01","01","03","09","",null,"","","DESPERDICIOS; DESECHOS Y RESIDUOS"]
["05010104",8,"05","01","01","04","","",null,"","","PRODUCTOS METÁLICOS Y PAQUETES DE SOFTWARE"]
["0501010401",10,"05","01","01","04","01","",null,"","","METALES BÁSICOS"]
["0501010402",10,"05","01","01","04","02","",null,"","","PRODUCTOS METÁLICOS ELABORADOS (EXCEPTO MAQUINARIA Y EQUIPO)"]
["0501010403",10,"05","01","01","04","03","",null,"","","MAQUINARIA PARA USO GENERAL"]
["050101040301",12,"05","01","01","04","03","01",null,"","","MOTORES Y TURBINAS Y SUS PARTES"]
["050101040302",12,"05","01","01","04","03","02",null,"","","BOMBAS, COMPRESORES, MOTORES DE FUERZA HIDRÁULICA Y MOTORES DE POTENCIA NEUMÁTICA Y VÁLVULAS Y SUS PARTES Y PIEZAS"]
["050101040303",12,"05","01","01","04","03","03",null,"","","COJINETES, ENGRANAJES, RUEDAS DE FRICCIÓN Y ELEMENTOS DE TRANSMISIÓN Y SUS PARTES Y PIEZAS"]
["050101040304",12,"05","01","01","04","03","04",null,"","","HORNOS Y QUEMADORES PARA ALIMENTACIÓN DE HOGARES Y SUS PARTES Y PIEZAS"]
["050101040305",12,"05","01","01","04","03","05",null,"","","EQUIPO DE ELEVACIÓN Y MANIPULACIÓN Y SUS PARTES Y PIEZAS"]
["050101040309",12,"05","01","01","04","03","09",null,"","","OTRAS MÁQUINAS PARA USOS GENERALES Y SUS PARTES Y PIEZAS"]
["0501010404",10,"05","01","01","04","04","",null,"","","MAQUINARIA PARA USOS ESPECIALES"]
["050101040401",12,"05","01","01","04","04","01",null,"","","MAQUINARIA AGROPECUARIA O SILVÍCOLA Y SUS PARTES Y PIEZAS"]
["050101040402",12,"05","01","01","04","04","02",null,"","","MÁQUINAS HERRAMIENTAS Y SUS PARTES, PIEZAS Y ACCESORIOS"]
["050101040403",12,"05","01","01","04","04","03",null,"","","MAQUINARIA PARA LA INDUSTRIA METALÚRGICA Y SUS PARTES Y PIEZAS"]
["050101040404",12,"05","01","01","04","04","04",null,"","","MAQUINARIA PARA LA MINERÍA, LA EXPLOTACIÓN DE CANTERAS Y LA CONSTRUCCIÓN Y SUS PARTES Y PIEZAS"]
["050101040405",12,"05","01","01","04","04","05",null,"","","MAQUINARIA PARA LA ELABORACIÓN DE ALIMENTOS, BEBIDAS Y TABACO, Y SUS PARTES Y PIEZAS"]
["050101040406",12,"05","01","01","04","04","06",null,"","","MAQUINARIA PARA LA FABRICACIÓN DE TEXTILES, PRENDAS DE VESTIR Y ARTÍCULOS DE CUERO, Y SUS PARTES Y PIEZAS"]
["050101040407",12,"05","01","01","04","04","07",null,"","","ARMAS Y MUNICIONES Y SUS PARTES Y PIEZAS"]
["050101040408",12,"05","01","01","04","04","08",null,"","","APARATOS DE USO DOMÉSTICO Y SUS PARTES Y PIEZAS"]
["050101040409",12,"05","01","01","04","04","09",null,"","","OTRA MAQUINARIA PARA USOS ESPECIALES Y SUS PARTES Y PIEZAS"]
["0501010405",10,"05","01","01","04","05","",null,"","","MAQUINARIA DE OFICINA, CONTABILIDAD E INFORMÁTICA",null,"Computadores, teclados, discos duros, escaner, impresoras"]
["050101040501",12,"05","01","01","04","05","01",null,"","","MÁQUINAS PARA OFICINA Y CONTABILIDAD, Y SUS PARTES Y ACCESORIOS"]
["050101040502",12,"05","01","01","04","05","02",null,"","","MAQUINARIA DE INFORMÁTICA Y SUS PARTES, PIEZAS Y ACCESORIOS"]
["0501010406",10,"05","01","01","04","06","",null,"","","MAQUINARIA Y APARATOS ELÉCTRICOS"]
["050101040601",12,"05","01","01","04","06","01",null,"","","MOTORES, GENERADORES Y TRANSFORMADORES ELÉCTRICOS Y SUS PARTES Y PIEZAS"]
["050101040602",12,"05","01","01","04","06","02",null,"","","APARATOS DE CONTROL ELÉCTRICO Y DISTRIBUCIÓN DE ELECTRICIDAD Y SUS PARTES Y PIEZAS"]
["050101040603",12,"05","01","01","04","06","03",null,"","","HILOS Y CABLES AISLADOS; CABLE DE FIBRA ÓPTICA"]
["050101040604",12,"05","01","01","04","06","04",null,"","","ACUMULADORES, PILAS Y BATERÍAS PRIMARIAS Y SUS PARTES Y PIEZAS"]
["050101040605",12,"05","01","01","04","06","05",null,"","","LÁMPARAS ELÉCTRICAS DE INCANDESCENCIA O DESCARGA; LÁMPARAS DE ARCO, EQUIPO PARA ALUMBRADO ELÉCTRICO; SUS PARTES Y PIEZAS"]
["050101040609",12,"05","01","01","04","06","09",null,"","","OTRO EQUIPO ELÉCTRICO Y SUS PARTES Y PIEZAS"]
["0501010407",10,"05","01","01","04","07","",null,"","","EQUIPO Y APARATOS DE RADIO, TELEVISIÓN Y COMUNICACIONES","47213 Cámaras de televisión\n47214 Cámaras videograbadoras\n47215 Cámaras digitales\n4722 Teléfonos, incluyendo teléfonos para redes celulares o para otras redes inalámbricas, otros aparatos para\nla transmisión o recepción de voz, imágenes u otros datos, incluyendo aparatos para comunicación de\nredes alámbricas o inalámbricas (tanto en redes de áreas locales como en una red amplia).\n47221 Teléfonos de línea \u001fja con auriculares inalámbricos\n473 Radiorreceptores y receptores de televisión; aparatos para la grabación y reproducción de sonido y\nvideo; micrófonos, altavoces, ampli\u001dcadores, etc.\n47321 Aparatos para la grabación y reproducción de sonido\n475 Discos, cintas, dispositivos de almacenamiento en estado sólido no volátiles y otros medios, no\ngrabados\nEsta subclase excluye:\n• Los discos duros. Se incluyen en la subclase 45271, «Unidades de almacenamiento de medio \u001ejo».\n• Los medios magnéticos grabados:\n– Audio, video o texto. Se incluyen en el grupo 476, «Grabaciones de audio, video y otros discos, cintas y otros medios\nfísicos».\n– Paquetes de so\u001cware. Se incluyen en el grupo 478, «Paquetes de so\u001cware».\n"]
["050101040701",12,"05","01","01","04","07","01",null,"","","VÁLVULAS Y TUBOS ELECTRÓNICOS; COMPONENTES ELECTRÓNICOS; SUS PARTES Y PIEZAS"]
["050101040702",12,"05","01","01","04","07","02",null,"","","APARATOS TRANSMISORES DE TELEVISIÓN Y RADIO; TELEVISIÓN, VIDEO Y CÁMARAS DIGITALES; TELÉFONOS"]
["050101040703",12,"05","01","01","04","07","03",null,"","","RADIORRECEPTORES Y RECEPTORES DE TELEVISIÓN; APARATOS PARA LA GRABACIÓN Y REPRODUCCIÓN DE SONIDO Y VIDEO; MICRÓFONOS, ALTAVOCES, AMPLIFICADORES, ETC."]
[{"$f":"CONCATENATE(C901,D901,E901,F901,G901,H901,I901,J901,K901)","v":"050101040704"},12,"05","01","01","04","07","04",null,"","","PARTES Y PIEZAS DE LOS PRODUCTOS DE LAS CLASES 4721 A 4733 Y 4822"]
["050101040705",12,"05","01","01","04","07","05",null,"","","DISCOS, CINTAS, DISPOSITIVOS DE ALMACENAMIENTO EN ESTADO SÓLIDO NO VOLÁTILES Y OTROS MEDIOS, NO GRABADOS"]
["050101040706",{"$f":"LEN(A903)","v":12},"05","01","01","04","07","06",null,"","","GRABACIONES DE AUDIO, VIDEO Y OTROS DISCOS, CINTAS Y OTROS MEDIOS FÍSICOS"]
["050101040708",12,"05","01","01","04","07","08",null,"","","PAQUETES DE SOFTWARE "]
["050101040709",12,"05","01","01","04","07","09",null,"","","TARJETAS CON BANDAS MAGNÉTICAS O PLAQUETAS (CHIP)"]
["0501010408",10,"05","01","01","04","08","",null,"","","APARATOS MÉDICOS, INSTRUMENTOS ÓPTICOS Y DE PRECISIÓN, RELOJES"]
["050101040801",12,"05","01","01","04","08","01",null,"","","APARATOS MÉDICOS Y QUIRÚRGICOS Y APARATOS ORTÉSICOS Y PROTÉSICOS"]
["050101040802",12,"05","01","01","04","08","02",null,"","","INSTRUMENTOS Y APARATOS DE MEDICIÓN, VERIFICACIÓN, ANÁLISIS, DE NAVEGACIÓN Y PARA OTROS FINES (EXCEPTO INSTRUMENTOS ÓPTICOS); INSTRUMENTOS DE CONTROL DE PROCESOS INDUSTRIALES, SUS PARTES, PIEZAS Y ACCESORIOS"]
["050101040803",12,"05","01","01","04","08","03",null,"","","INSTRUMENTOS ÓPTICOS Y EQUIPO FOTOGRÁFICO; PARTES, PIEZAS Y ACCESORIOS"]
["050101040804",12,"05","01","01","04","08","04",null,"","","RELOJES Y SUS PARTES Y PIEZAS"]
["0501010409",10,"05","01","01","04","09","",null,"","","EQUIPO DE TRANSPORTE"]
["050101040901",12,"05","01","01","04","09","01",null,"","","VEHÍCULOS AUTOMOTORES, REMOLQUES Y SEMIRREMOLQUES; Y SUS PARTES, PIEZAS Y ACCESORIOS"]
["050101040902",12,"05","01","01","04","09","02",null,"","","CARROCERÍAS (INCLUSO CABINAS) PARA VEHÍCULOS AUTOMOTORES; REMOLQUES Y SEMIRREMOLQUES; Y SUS PARTES, PIEZAS Y ACCESORIOS"]
["050101040903",12,"05","01","01","04","09","03",null,"","","BUQUES"]
["050101040904",12,"05","01","01","04","09","04",null,"","","EMBARCACIONES PARA DEPORTES Y RECREO"]
["050101040905",12,"05","01","01","04","09","05",null,"","","LOCOMOTORAS Y MATERIAL RODANTE DE FERROCARRIL Y TRANVÍA, Y SUS PARTES Y PIEZAS"]
["050101040906",12,"05","01","01","04","09","06",null,"","","AERONAVES Y NAVES ESPACIALES, Y SUS PARTES Y PIEZAS"]
["050101040909",12,"05","01","01","04","09","09",null,"","","OTRO EQUIPO DE TRANSPORTE, Y SUS PARTES Y PIEZAS"]
["0501010409091",13,"05","01","01","04","09","09",1,"","","MOTOCICLETAS Y SIDECARES (VEHÍCULOS LATERALES A LAS MOTOCICLETAS)"]
["0501010409092",13,"05","01","01","04","09","09",2,"","","BICICLETAS Y SILLONES DE RUEDAS PARA DISCAPACITADOS"]
["0501010409093",13,"05","01","01","04","09","09",3,"","","VEHÍCULOS N.C.P. SIN PROPULSIÓN MECÁNICA"]
["0501010409094",13,"05","01","01","04","09","09",4,"","","PARTES Y PIEZAS PARA LOS PRODUCTOS DE LAS CLASES 4991 Y 4992"]
["050102",6,"05","01","02","","","",null,"","","ADQUISICIÓN DE SERVICIOS"]
["05010205",8,"05","01","02","05","","",null,"","","SERVICIOS DE LA CONSTRUCCIÓN"]
["0501020504",10,"05","01","02","05","04","",null,"","","SERVICIOS DE CONSTRUCCIÓN"]
["050102050401",12,"05","01","02","05","04","01",null,"","","SERVICIOS GENERALES DE CONSTRUCCIÓN DE EDIFICACIONES"]
["0501020504011",13,"05","01","02","05","04","01",1,"","","SERVICIOS GENERALES DE CONSTRUCCIÓN DE EDIFICACIONES RESIDENCIALES"]
["0501020504012",{"$f":"LEN(A928)","v":13},"05","01","02","05","04","01",2,"","","SERVICIOS GENERALES DE CONSTRUCCIÓN DE EDIFICACIONES NO RESIDENCIALES"]
["050102050402",12,"05","01","02","05","04","02",null,"","","SERVICIOS GENERALES DE CONSTRUCCIÓN DE OBRAS DE INGENIERÍA CIVIL"]
["0501020504021",13,"05","01","02","05","04","02",1,"","","SERVICIOS GENERALES DE CONSTRUCCIÓN DE CARRETERAS (EXCEPTO CARRETERAS ELEVADAS), CALLES, VÍAS FÉRREAS Y PISTAS DE ATERRIZAJE"]
["0501020504022",13,"05","01","02","05","04","02",2,"","","SERVICIOS GENERALES DE CONSTRUCCIÓN DE PUENTES, CARRETERAS ELEVADAS Y TÚNELES"]
["0501020504023",13,"05","01","02","05","04","02",3,"","","SERVICIOS GENERALES DE CONSTRUCCIÓN DE PUERTOS, CANALES, PRESAS, SISTEMAS DE RIEGO Y OTRAS OBRAS HIDRÁULICAS"]
["0501020504024",13,"05","01","02","05","04","02",4,"","","SERVICIOS GENERALES DE CONSTRUCCIÓN DE TUBERÍAS PARA LA CONDUCCIÓN DE GAS A LARGA DISTANCIA, LÍNEAS DE COMUNICACIÓN Y CABLES DE PODER"]
["0501020504025",13,"05","01","02","05","04","02",5,"","","SERVICIOS GENERALES DE CONSTRUCCIÓN DE TUBERÍAS Y CABLES LOCALES, Y OBRAS CONEXAS"]
["0501020504026",13,"05","01","02","05","04","02",6,"","","SERVICIOS GENERALES DE CONSTRUCCIÓN EN MINAS Y PLANTAS INDUSTRIALES"]
["0501020504027",13,"05","01","02","05","04","02",7,"","","SERVICIOS GENERALES DE CONSTRUCCIONES DEPORTIVAS AL AIRE LIBRE"]
["0501020504029",13,"05","01","02","05","04","02",9,"","","SERVICIOS GENERALES DE CONSTRUCCIÓN DE OTRAS OBRAS DE INGENIERÍA CIVIL"]
["050102050403",12,"05","01","02","05","04","03",null,"","","SERVICIOS DE PREPARACIÓN DEL TERRENO"]
["050102050404",12,"05","01","02","05","04","04",null,"","","MONTAJE Y ERECCIÓN DE CONSTRUCCIONES PREFABRICADAS"]
["050102050405",12,"05","01","02","05","04","05",null,"","","SERVICIOS ESPECIALES DE CONSTRUCCIÓN "]
["050102050406",12,"05","01","02","05","04","06",null,"","","SERVICIOS DE INSTALACIONES"]
["050102050407",12,"05","01","02","05","04","07",null,"","","SERVICIOS DE TERMINACIÓN Y ACABADOS DE EDIFICIOS "]
["05010206",8,"05","01","02","06","","",null,"","","SERVICIOS DE VENTA Y DE DISTRIBUCIÓN; ALOJAMIENTO; SERVICIOS DE SUMINISTRO DE COMIDAS Y BEBIDAS; SERVICIOS DE TRANSPORTE; Y SERVICIOS DE DISTRIBUCIÓN DE ELECTRICIDAD, GAS Y AGUA"]
["0501020601",10,"05","01","02","06","01","",null,"","","SERVICIOS DE VENTA AL POR MAYOR"]
["050102060101",12,"05","01","02","06","01","01",null,"","","SERVICIOS DE VENTA AL POR MAYOR, EXCEPTO LOS PRESTADOS A CAMBIO DE UNA RETRIBUCIÓN O POR CONTRATA"]
["0501020601011",13,"05","01","02","06","01","01",1,"","","SERVICIOS DE VENTA AL POR MAYOR DE PRODUCTOS AGROPECUARIOS, UTILIZADOS PRINCIPALMENTE COMO MATERIAS PRIMAS, Y DE ANIMALES VIVOS"]
["0501020601012",13,"05","01","02","06","01","01",2,"","","SERVICIOS DE VENTA AL POR MAYOR DE ALIMENTOS, BEBIDAS Y TABACO"]
["0501020601013",13,"05","01","02","06","01","01",3,"","","SERVICIOS DE VENTA AL POR MAYOR DE ARTÍCULOS TEXTILES, PRENDAS DE VESTIR Y CALZADO"]
["0501020601014",13,"05","01","02","06","01","01",4,"","","SERVICIOS DE VENTA AL POR MAYOR DE ELECTRODOMÉSTICOS, ARTÍCULOS Y EQUIPOS DOMÉSTICOS"]
["0501020601015",13,"05","01","02","06","01","01",5,"","","SERVICIOS DE VENTA AL POR MAYOR DE PRODUCTOS DIVERSOS DE CONSUMO "]
["0501020601016",13,"05","01","02","06","01","01",6,"","","SERVICIOS DE VENTA AL POR MAYOR DE MATERIALES DE CONSTRUCCIÓN Y FERRETERÍA"]
["0501020601017",13,"05","01","02","06","01","01",7,"","","SERVICIOS DE VENTA AL POR MAYOR DE PRODUCTOS QUÍMICOS Y FARMACÉUTICOS"]
["0501020601018",13,"05","01","02","06","01","01",8,"","","SERVICIOS DE VENTA AL POR MAYOR DE MAQUINARIA, EQUIPO Y SUMINISTROS"]
["0501020601019",13,"05","01","02","06","01","01",9,"","","SERVICIOS DE VENTA AL POR MAYOR DE OTROS PRODUCTOS"]
["050102060102",12,"05","01","02","06","01","02",null,"","","SERVICIOS DE VENTA AL POR MAYOR PRESTADOS A COMISIÓN O POR CONTRATA"]
["0501020601021",13,"05","01","02","06","01","02",1,"","","SERVICIOS DE VENTA AL POR MAYOR PRESTADOS A COMISIÓN O POR CONTRATA DE PRODUCTOS AGROPECUARIOS, UTILIZADOS PRINCIPALMENTE COMO MATERIAS PRIMAS, Y DE ANIMALES VIVOS"]
["0501020601022",13,"05","01","02","06","01","02",2,"","","SERVICIOS DE VENTA AL POR MAYOR PRESTADOS A COMISIÓN O POR CONTRATA DE ALIMENTOS, BEBIDAS Y TABACO"]
["0501020601023",13,"05","01","02","06","01","02",3,"","","SERVICIOS DE VENTA AL POR MAYOR PRESTADOS A COMISIÓN O POR CONTRATA DE TEXTILES, PRENDAS DE VESTIR Y CALZADO"]
["0501020601024",13,"05","01","02","06","01","02",4,"","","SERVICIOS DE VENTA AL POR MAYOR PRESTADOS A COMISIÓN O POR CONTRATA DE ELECTRODOMÉSTICOS, ARTÍCULOS Y EQUIPOS DOMÉSTICOS"]
["0501020601025",13,"05","01","02","06","01","02",5,"","","SERVICIOS DE VENTA AL POR MAYOR PRESTADOS A COMISIÓN O POR CONTRATA DE PRODUCTOS DIVERSOS DE CONSUMO"]
["0501020601026",13,"05","01","02","06","01","02",6,"","","SERVICIOS DE VENTA AL POR MAYOR PRESTADOS A COMISIÓN O POR CONTRATA DE MATERIALES DE CONSTRUCCIÓN Y FERRETERÍA"]
["0501020601027",13,"05","01","02","06","01","02",7,"","","SERVICIOS DE VENTA AL POR MAYOR PRESTADOS A COMISIÓN O POR CONTRATA DE PRODUCTOS QUÍMICOS Y FARMACÉUTICOS"]
["0501020601028",13,"05","01","02","06","01","02",8,"","","SERVICIOS DE VENTA AL POR MAYOR PRESTADOS A COMISIÓN O POR CONTRATA DE MAQUINARIA, EQUIPO Y SUMINISTROS"]
["0501020601029",13,"05","01","02","06","01","02",9,"","","SERVICIOS DE VENTA AL POR MAYOR PRESTADOS A COMISIÓN O POR CONTRATA DE OTROS PRODUCTOS"]
[{"$f":"CONCATENATE(C965,D965,E965,F965,G965,H965,I965,J965,K965)","v":"0501020602"},10,"05","01","02","06","02","",null,"","","SERVICIOS DE VENTA AL POR MENOR"]
["050102060201",12,"05","01","02","06","02","01",null,"","","SERVICIOS DE VENTA AL POR MENOR EN ESTABLECIMIENTOS NO ESPECIALIZADOS"]
["0501020602011",{"$f":"LEN(A967)","v":13},"05","01","02","06","02","01",1,"","","SERVICIOS DE VENTA AL POR MENOR DE PRODUCTOS AGROPECUARIOS UTILIZADOS PRINCIPALMENTE COMO MATERIAS PRIMAS, Y DE ANIMALES VIVOS, EN ESTABLECIMIENTOS NO ESPECIALIZADOS\n"]
["0501020602012",13,"05","01","02","06","02","01",2,"","","SERVICIOS DE VENTA AL POR MENOR, DE ALIMENTOS, BEBIDAS Y TABACO, EN ESTABLECIMIENTOS NO ESPECIALIZADOS "]
["0501020602013",13,"05","01","02","06","02","01",3,"","","SERVICIOS DE VENTA AL POR MENOR, DE ARTÍCULOS TEXTILES, PRENDAS DE VESTIR Y CALZADO, EN ESTABLECIMIENTOS NO ESPECIALIZADOS "]
["0501020602014",13,"05","01","02","06","02","01",4,"","","SERVICIOS DE VENTA AL POR MENOR DE ELECTRODOMÉSTICOS, ARTÍCULOS Y EQUIPOS DOMÉSTICOS, EN ESTABLECIMIENTOS NO ESPECIALIZADOS "]
["0501020602015",13,"05","01","02","06","02","01",5,"","","SERVICIOS DE VENTA AL POR MENOR DE PRODUCTOS DIVERSOS DE CONSUMO, EN ESTABLECIMIENTOS NO ESPECIALIZADOS "]
["0501020602016",13,"05","01","02","06","02","01",6,"","","SERVICIOS DE VENTA AL POR MENOR DE MATERIALES DE CONSTRUCCIÓN Y FERRETERÍA, EN ESTABLECIMIENTOS NO ESPECIALIZADOS "]
["0501020602017",13,"05","01","02","06","02","01",7,"","","SERVICIOS DE VENTA AL POR MENOR DE PRODUCTOS QUÍMICOS Y FARMACÉUTICOS, EN ESTABLECIMIENTOS NO ESPECIALIZADOS "]
["0501020602018",13,"05","01","02","06","02","01",8,"","","SERVICIOS DE VENTA AL POR MENOR DE MAQUINARIA, EQUIPO Y SUMINISTROS, EN ESTABLECIMIENTOS NO ESPECIALIZADOS "]
["0501020602019",13,"05","01","02","06","02","01",9,"","","SERVICIOS DE VENTA AL POR MENOR DE OTROS PRODUCTOS, EN ESTABLECIMIENTOS NO ESPECIALIZADOS "]
["050102060202",12,"05","01","02","06","02","02",null,"","","SERVICIOS DE VENTA AL POR MENOR EN ESTABLECIMIENTOS ESPECIALIZADOS"]
["0501020602021",13,"05","01","02","06","02","02",1,"","","SERVICIOS DE VENTA AL POR MENOR DE PRODUCTOS AGROPECUARIOS , UTILIZADOS PRINCIPALMENTE COMO MATERIAS PRIMAS, Y DE ANIMALES VIVOS EN ESTABLECIMIENTOS ESPECIALIZADOS\n "]
["0501020602022",13,"05","01","02","06","02","02",2,"","","SERVICIOS DE VENTA AL POR MENOR DE ALIMENTOS, BEBIDAS Y TABACO EN ESTABLECIMIENTOS ESPECIALIZADOS "]
["0501020602023",13,"05","01","02","06","02","02",3,"","","SERVICIOS DE VENTA AL POR MENOR DE ARTÍCULOS TEXTILES, PRENDAS DE VESTIR Y CALZADO EN ESTABLECIMIENTOS ESPECIALIZADOS "]
["0501020602024",13,"05","01","02","06","02","02",4,"","","SERVICIOS DE VENTA AL POR MENOR DE ELECTRODOMÉSTICOS, ARTÍCULOS Y EQUIPO DOMÉSTICOS EN ESTABLECIMIENTOS ESPECIALIZADOS "]
["0501020602025",13,"05","01","02","06","02","02",5,"","","SERVICIOS DE VENTA AL POR MENOR DE PRODUCTOS DIVERSOS DE CONSUMO EN ESTABLECIMIENTOS ESPECIALIZADOS "]
["0501020602026",13,"05","01","02","06","02","02",6,"","","SERVICIOS DE VENTA AL POR MENOR DE MATERIALES DE CONSTRUCCIÓN Y FERRETERÍA EN ESTABLECIMIENTOS ESPECIALIZADOS "]
["0501020602027",13,"05","01","02","06","02","02",7,"","","SERVICIOS DE VENTA AL POR MENOR DE PRODUCTOS QUÍMICOS Y FARMACÉUTICOS EN ESTABLECIMIENTOS ESPECIALIZADOS "]
["0501020602028",13,"05","01","02","06","02","02",8,"","","SERVICIOS DE VENTA AL POR MENOR DE MAQUINARIA, EQUIPO Y SUMINISTROS EN ESTABLECIMIENTOS ESPECIALIZADOS "]
["0501020602029",13,"05","01","02","06","02","02",9,"","","SERVICIOS DE VENTA AL POR MENOR DE OTROS PRODUCTOS N.C.P. EN\nESTABLECIMIENTOS ESPECIALIZADOS \n"]
["050102060203",12,"05","01","02","06","02","03",null,"","","SERVICIOS DE VENTA AL POR MENOR POR CORREO O INTERNET"]
["0501020602031",13,"05","01","02","06","02","03",1,"","","SERVICIOS DE VENTA AL POR MENOR DE PRODUCTOS AGROPECUARIOS, UTILIZADOS PRINCIPALMENTE COMO MATERIAS PRIMAS, Y DE ANIMALES VIVOS POR CORREO O INTERNET \n"]
["0501020602032",13,"05","01","02","06","02","03",2,"","","SERVICIOS DE VENTA AL POR MENOR DE ALIMENTOS, BEBIDAS Y TABACO POR INTERNET "]
["0501020602033",13,"05","01","02","06","02","03",3,"","","SERVICIOS DE VENTA AL POR MENOR DE ARTÍCULOS TEXTILES, PRENDAS DE VESTIR Y CALZADO POR CORREO O INTERNET "]
["0501020602034",13,"05","01","02","06","02","03",4,"","","SERVICIOS DE VENTA AL POR MENOR DE ELECTRODOMÉSTICOS, ARTÍCULOS Y EQUIPOS DOMÉSTICOS POR CORREO O INTERNET "]
["0501020602035",13,"05","01","02","06","02","03",5,"","","SERVICIOS DE VENTA AL POR MENOR DE PRODUCTOS DIVERSOS DE CONSUMO POR CORREO O INTERNET "]
["0501020602036",13,"05","01","02","06","02","03",6,"","","SERVICIOS DE VENTA AL POR MENOR DE MATERIALES DE CONSTRUCCIÓN Y FERRETERÍA POR CORREO O INTERNET "]
["0501020602037",13,"05","01","02","06","02","03",7,"","","SERVICIOS DE VENTA AL POR MENOR DE PRODUCTOS QUÍMICOS Y FARMACÉUTICOS POR CORREO O INTERNET "]
["0501020602038",13,"05","01","02","06","02","03",8,"","","SERVICIOS DE VENTA AL POR MENOR DE MAQUINARIA, EQUIPO Y SUMINISTROS POR CORREO O INTERNET "]
["0501020602039",13,"05","01","02","06","02","03",9,"","","SERVICIOS DE VENTA AL POR MENOR DE OTROS PRODUCTOS POR CORREO O INTERNET "]
["050102060204",12,"05","01","02","06","02","04",null,"","","OTROS SERVICIOS DE VENTA AL POR MENOR NO REALIZADOS EN ESTABLECIMIENTOS"]
["0501020602041",13,"05","01","02","06","02","04",1,"","","OTROS SERVICIOS DE VENTA AL POR MENOR DE PRODUCTOS AGROPECUARIOS, UTILIZADOS PRINCIPALMENTE COMO MATERIAS PRIMAS, Y DE ANIMALES VIVOS NO REALIZADOS EN ESTABLECIMIENTOS \n"]
["0501020602042",13,"05","01","02","06","02","04",2,"","","OTROS SERVICIOS DE VENTA AL POR MENOR DE ALIMENTOS, BEBIDAS Y TABACO NO REALIZADOS EN ESTABLECIMIENTOS "]
["0501020602043",13,"05","01","02","06","02","04",3,"","","OTROS SERVICIOS DE VENTA AL POR MENOR DE ARTÍCULOS TEXTILES, PRENDAS DE VESTIR Y CALZADO NO REALIZADOS EN ESTABLECIMIENTOS "]
["0501020602044",13,"05","01","02","06","02","04",4,"","","OTROS SERVICIOS DE VENTA AL POR MENOR DE ELECTRODOMÉSTICOS, ARTÍCULOS Y EQUIPOS DOMÉSTICOS NO REALIZADOS EN ESTABLECIMIENTOS "]
["0501020602045",13,"05","01","02","06","02","04",5,"","","OTROS SERVICIOS DE VENTA AL POR MENOR DE PRODUCTOS DIVERSOS DE CONSUMO NO REALIZADOS EN ESTABLECIMIENTOS "]
["0501020602046",13,"05","01","02","06","02","04",6,"","","OTROS SERVICIOS DE VENTA AL POR MENOR DE MATERIALES DE CONSTRUCCIÓN Y FERRETERÍA NO REALIZADOS EN ESTABLECIMIENTOS "]
["0501020602047",13,"05","01","02","06","02","04",7,"","","OTROS SERVICIOS DE VENTA AL POR MENOR DE PRODUCTOS QUÍMICOS Y FARMACÉUTICOS NO REALIZADOS EN ESTABLECIMIENTOS "]
["0501020602048",13,"05","01","02","06","02","04",8,"","","OTROS SERVICIOS DE VENTA AL POR MENOR DE MAQUINARIA, EQUIPO Y SUMINISTROS NO REALIZADOS EN ESTABLECIMIENTOS "]
["0501020602049",13,"05","01","02","06","02","04",9,"","","OTROS SERVICIOS DE VENTA AL POR MENOR DE OTROS PRODUCTOS NO REALIZADOS EN ESTABLECIMIENTOS "]
["050102060205",12,"05","01","02","06","02","05",null,"","","SERVICIOS DE VENTA AL POR MENOR PRESTADOS A COMISIÓN O POR CONTRATA"]
["0501020602051",13,"05","01","02","06","02","05",1,"","","SERVICIOS DE VENTA AL POR MENOR DE PRODUCTOS AGROPECUARIOS, UTILIZADOS PRINCIPALMENTE COMO MATERIAS PRIMAS, Y DE ANIMALES VIVOS, PRESTADOS A COMISIÓN O POR CONTRATA \n"]
["0501020602052",13,"05","01","02","06","02","05",2,"","","SERVICIOS DE VENTA AL POR MENOR DE ALIMENTOS, BEBIDAS Y TABACO, PRESTADOS A COMISIÓN O POR CONTRATA "]
["0501020602053",13,"05","01","02","06","02","05",3,"","","SERVICIOS DE VENTA AL POR MENOR DE ARTÍCULOS TEXTILES, PRENDAS DE VESTIR Y CALZADO, PRESTADOS A COMISIÓN O POR CONTRATA"]
["0501020602054",13,"05","01","02","06","02","05",4,"","","SERVICIOS DE VENTA AL POR MENOR DE ELECTRODOMÉSTICOS, ARTÍCULOS Y EQUIPO DOMÉSTICOS, PRESTADOS A COMISIÓN O POR CONTRATA "]
["0501020602055",13,"05","01","02","06","02","05",5,"","","SERVICIOS DE VENTA AL POR MENOR DE PRODUCTOS DIVERSOS DE CONSUMO, PRESTADOS A COMISIÓN O POR CONTRATA "]
["0501020602056",13,"05","01","02","06","02","05",6,"","","SERVICIOS DE VENTA AL POR MENOR DE MATERIALES DE CONSTRUCCIÓN Y FERRETERÍA, PRESTADOS A COMISIÓN O POR CONTRATA "]
["0501020602057",13,"05","01","02","06","02","05",7,"","","SERVICIOS DE VENTA AL POR MENOR DE PRODUCTOS QUÍMICOS Y FARMACÉUTICOS, PRESTADOS A COMISIÓN O POR CONTRATA "]
["0501020602058",13,"05","01","02","06","02","05",8,"","","SERVICIOS DE VENTA AL POR MENOR DE MAQUINARIA, EQUIPO Y SUMINISTROS, PRESTADOS A COMISIÓN O POR CONTRATA "]
["0501020602059",13,"05","01","02","06","02","05",9,"","","SERVICIOS DE VENTA AL POR MENOR DE OTROS PRODUCTOS, PRESTADOS A COMISIÓN O POR CONTRATA "]
["0501020603",10,"05","01","02","06","03","",null,"","","ALOJAMIENTO; SERVICIOS DE SUMINISTROS DE COMIDAS Y BEBIDAS"]
["050102060301",12,"05","01","02","06","03","01",null,"","","SERVICIOS DE ALOJAMIENTO PARA ESTANCIAS CORTAS"]
["050102060302",12,"05","01","02","06","03","02",null,"","","OTROS SERVICIOS DE ALOJAMIENTO"]
["050102060303",12,"05","01","02","06","03","03",null,"","","SERVICIOS DE SUMINISTRO DE COMIDAS"]
["050102060304",12,"05","01","02","06","03","04",null,"","","SERVICIOS DE SUMINISTRO DE BEBIDAS PARA SU CONSUMO DENTRO DEL ESTABLECIMIENTO"]
["0501020604",10,"05","01","02","06","04","",null,"","","SERVICIOS DE TRANSPORTE DE PASAJEROS"]
["0501020605",10,"05","01","02","06","05","",null,"","","SERVICIOS DE TRANSPORTE DE CARGA"]
["050102060501",12,"05","01","02","06","05","01",null,"","","SERVICIOS DE TRANSPORTE DE CARGA POR VÍA TERRESTRE"]
["050102060502",12,"05","01","02","06","05","02",null,"","","SERVICIOS DE TRANSPORTE DE CARGA POR VÍA ACUÁTICA "]
["050102060503",12,"05","01","02","06","05","03",null,"","","SERVICIOS DE TRANSPORTE DE CARGA POR VÍA AÉREA O ESPACIAL"]
["0501020606",10,"05","01","02","06","06","",null,"","","SERVICIOS DE ALQUILER DE VEHÍCULOS DE TRANSPORTE CON OPERARIO"]
["0501020607",10,"05","01","02","06","07","",null,"","","SERVICIOS DE APOYO AL TRANSPORTE"]
["050102060701",12,"05","01","02","06","07","01",null,"","","SERVICIOS DE MANIPULACIÓN DE CARGA"]
[{"$f":"CONCATENATE(C1029,D1029,E1029,F1029,G1029,H1029,I1029,J1029,K1029)","v":"050102060702"},12,"05","01","02","06","07","02",null,"","","SERVICIOS DE ALMACENAMIENTO Y DEPÓSITO"]
["050102060703",12,"05","01","02","06","07","03",null,"","","SERVICIOS DE APOYO AL TRANSPORTE POR VÍA FÉRREA"]
["050102060704",{"$f":"LEN(A1031)","v":12},"05","01","02","06","07","04",null,"","","SERVICIOS DE APOYO AL TRANSPORTE POR CARRETERA"]
["050102060705",12,"05","01","02","06","07","05",null,"","","SERVICIOS DE APOYO AL TRANSPORTE POR VÍA ACUÁTICA"]
["050102060706",12,"05","01","02","06","07","06",null,"","","SERVICIOS DE APOYO AL TRANSPORTE AÉREO"]
["050102060709",12,"05","01","02","06","07","09",null,"","","OTROS SERVICIOS DE APOYO AL TRANSPORTE"]
["0501020608",10,"05","01","02","06","08","",null,"","","SERVICIOS POSTALES Y DE MENSAJERÍA"]
["0501020609",10,"05","01","02","06","09","",null,"","","SERVICIOS DE DISTRIBUCIÓN DE ELECTRICIDAD, GAS Y AGUA (POR CUENTA PROPIA)"]
["050102060901",12,"05","01","02","06","09","01",null,"","","SERVICIOS DE DISTRIBUCIÓN DE ELECTRICIDAD, Y SERVICIOS DE DISTRIBUCIÓN DE GAS (POR CUENTA PROPIA)"]
["050102060902",12,"05","01","02","06","09","02",null,"","","SERVICIOS DE DISTRIBUCIÓN DE AGUA (POR CUENTA PROPIA)"]
["05010207",8,"05","01","02","07","","",null,"","","SERVICIOS FINANCIEROS Y SERVICIOS CONEXOS, SERVICIOS INMOBILIARIOS Y SERVICIOS DE LEASING",null,"Se incluyen los registro de gravamen a los movimientos financieros que no son mayor valor del gasto"]
["0501020701",10,"05","01","02","07","01","",null,"","","SERVICIOS FINANCIEROS Y SERVICIOS CONEXOS"]
["050102070101",12,"05","01","02","07","01","01",null,"","","SERVICIOS FINANCIEROS, EXCEPTO DE LA BANCA DE INVERSIÓN, SERVICIOS DE SEGUROS Y SERVICIOS DE PENSIONES"]
["0501020701011",13,"05","01","02","07","01","01",1,"","","SERVICIOS FINANCIEROS, EXCEPTO DE LA BANCA DE INVERSIÓN, SERVICIOS DE SEGUROS Y SERVICIOS DE PENSIONES"]
["0501020701012",13,"05","01","02","07","01","01",2,"","","SERVICIOS DE DEPÓSITO"]
["0501020701013",13,"05","01","02","07","01","01",3,"","","SERVICIOS DE CONCESIÓN DE CRÉDITO"]
["0501020701014",13,"05","01","02","07","01","01",4,"","","SERVICIOS DE LEASING (ARRENDAMIENTO FINANCIERO) "]
["0501020701019",13,"05","01","02","07","01","01",9,"","","OTROS SERVICIOS FINANCIEROS, EXCEPTO LOS SERVICIOS DE LA BANCA DE INVERSIÓN, SERVICIOS DE SEGUROS Y PENSIONES"]
["050102070102",12,"05","01","02","07","01","02",null,"","","SERVICIOS DE LA BANCA DE INVERSIÓN"]
["050102070103",12,"05","01","02","07","01","03",null,"","","SERVICIOS DE SEGUROS Y PENSIONES (CON EXCLUSIÓN DE SERVICIOS DE REASEGURO), EXCEPTO LOS SERVICIOS DE SEGUROS SOCIALES"]
["0501020701031",13,"05","01","02","07","01","03",1,"","","SERVICIOS DE SEGUROS VIDA (CON EXCLUSIÓN DE LOS SERVICIOS DE REASEGURO)"]
["0501020701032",13,"05","01","02","07","01","03",2,"","","SERVICIOS DE SEGUROS SOCIALES DE PENSIONES"]
["0501020701033",13,"05","01","02","07","01","03",3,"","","SERVICIOS DE SEGUROS SOCIALES DE SALUD Y RIESGOS LABORALES ",null,"Diferente a la planta de personal permanente y temporal . EJM: Pago arl a contratistas, pasantes universitarios y servicios estudiantiles ."]
["0501020701034",13,"05","01","02","07","01","03",4,"","","SERVICIOS DE SEGUROS DE SALUD Y DE ACCIDENTES"]
["0501020701035",13,"05","01","02","07","01","03",5,"","","OTROS SERVICIOS DE SEGUROS DISTINTOS A LOS SEGUROS DE VIDA (EXCEPTO LOS SERVICIOS DE REASEGURO)"]
["050102070103501",15,"05","01","02","07","01","03",5,"01","","SERVICIOS DE SEGUROS DE VEHÍCULOS AUTOMOTORES"]
["050102070103502",15,"05","01","02","07","01","03",5,"02","","SERVICIOS DE SEGUROS DE TRANSPORTE MARÍTIMO, DE AVIACIÓN Y OTROS MEDIOS DE TRANSPORTE"]
["050102070103503",15,"05","01","02","07","01","03",5,"03","","SERVICIOS DE SEGUROS PARA TRANSPORTE DE MERCANCÍAS (FLETES) "]
["050102070103504",15,"05","01","02","07","01","03",5,"04","","SERVICIOS DE SEGUROS CONTRA INCENDIO, TERREMOTO O SUSTRACCIÓN"]
["050102070103505",15,"05","01","02","07","01","03",5,"05","","SERVICIOS DE SEGUROS GENERALES DE RESPONSABILIDAD CIVIL "]
["050102070103506",15,"05","01","02","07","01","03",5,"06","","SERVICIOS DE SEGURO DE CUMPLIMIENTO"]
["050102070103507",15,"05","01","02","07","01","03",5,"07","","SERVICIOS DE SEGURO OBLIGATORIO DE ACCIDENTES DE TRÁNSITO (SOAT)"]
["050102070103508",15,"05","01","02","07","01","03",5,"08","","SERVICIOS DE SEGUROS DE VIAJE"]
["050102070103509",15,"05","01","02","07","01","03",5,"09","","OTROS SERVICIOS DE SEGUROS DISTINTOS DE LOS SEGUROS DE VIDA N.C.P."]
["0501020701036",13,"05","01","02","07","01","03",6,"","","SERVICIOS DE LAS SOCIEDADES DE CAPITALIZACIÓN"]
["050102070104",12,"05","01","02","07","01","04",null,"","","SERVICIOS DE REASEGURO"]
["050102070105",12,"05","01","02","07","01","05",null,"","","SERVICIOS AUXILIARES A LOS SERVICIOS FINANCIEROS DISTINTOS DE LOS SEGUROS Y LAS PENSIONES"]
["0501020701051",13,"05","01","02","07","01","05",1,"","","SERVICIOS RELACIONADOS CON LA BANCA DE INVERSIÓN"]
["0501020701052",13,"05","01","02","07","01","05",2,"","","SERVICIOS DE CORRETAJE RELACIONADOS CON LOS PRODUCTOS DE VALORES"]
["0501020701053",13,"05","01","02","07","01","05",3,"","","SERVICIOS DE ADMINISTRACIÓN DE CARTERAS, EXCEPTO LOS FONDOS DE PENSIONES Y CESANTÍAS"]
["0501020701054",13,"05","01","02","07","01","05",4,"","","SERVICIOS FIDUCIARIOS Y DE CUSTODIA"]
["0501020701055",13,"05","01","02","07","01","05",5,"","","SERVICIOS RELACIONADOS CON LA ADMINISTRACIÓN DE LOS MERCADOS FINANCIEROS"]
["0501020701059",13,"05","01","02","07","01","05",9,"","","OTROS SERVICIOS AUXILIARES A LOS SERVICIOS FINANCIEROS"]
["050102070106",12,"05","01","02","07","01","06",null,"","","SERVICIOS AUXILIARES DE SEGUROS, PENSIONES Y CESANTÍAS"]
["0501020701061",13,"05","01","02","07","01","06",1,"","","SERVICIOS DE CORRETAJE Y AGENCIAS DE SEGUROS"]
["0501020701062",13,"05","01","02","07","01","06",2,"","","SERVICIOS DE TASACIÓN DE LAS RECLAMACIONES AL SEGURO"]
["0501020701063",13,"05","01","02","07","01","06",3,"","","SERVICIOS ACTUARIALES"]
["0501020701064",13,"05","01","02","07","01","06",4,"","","SERVICIOS DE ADMINISTRACIÓN DE FONDOS DE PENSIONES Y CESANTÍAS"]
["0501020701069",13,"05","01","02","07","01","06",9,"","","OTROS SERVICIOS AUXILIARES DE SEGUROS, PENSIONES Y CESANTÍAS"]
["050102070107",12,"05","01","02","07","01","07",null,"","","SERVICIOS DE MANTENIMIENTO DE ACTIVOS FINANCIEROS"]
["0501020702",10,"05","01","02","07","02","",null,"","","SERVICIOS INMOBILIARIOS "]
["050102070201",12,"05","01","02","07","02","01",null,"","","SERVICIOS INMOBILIARIOS RELATIVOS A BIENES RAÍCES PROPIOS O ARRENDADOS"]
["0501020702011",13,"05","01","02","07","02","01",1,"","","SERVICIOS DE ALQUILER O ARRENDAMIENTO CON O SIN OPCIÓN DE COMPRA RELATIVOS A BIENES INMUEBLES PROPIOS O ARRENDADOS"]
["0501020702012",13,"05","01","02","07","02","01",2,"","","VENTA DE BIENES INMUEBLES "]
["0501020702013",13,"05","01","02","07","02","01",3,"","","SERVICIOS COMERCIALES RELACIONADOS CON TERRENOS DESOCUPADOS Y SUBDIVIDIDOS"]
["050102070202",12,"05","01","02","07","02","02",null,"","","SERVICIOS INMOBILIARIOS A COMISIÓN O POR CONTRATO"]
["0501020702021",13,"05","01","02","07","02","02",1,"","","SERVICIOS DE ADMINISTRACIÓN DE BIENES INMUEBLES A COMISIÓN O POR CONTRATO"]
["0501020702022",13,"05","01","02","07","02","02",2,"","","SERVICIO DE ARRENDAMIENTO DE BIENES INMUEBLES A COMISIÓN O POR CONTRATA "]
["0501020702023",13,"05","01","02","07","02","02",3,"","","SERVICIO DE VENTA DE BIENES INMUEBLES A COMISIÓN O POR CONTRATA"]
["0501020702024",13,"05","01","02","07","02","02",4,"","","SERVICIOS DE VENTA DE TERRENOS A COMISIÓN O POR CONTRATO"]
["0501020702025",13,"05","01","02","07","02","02",5,"","","VALUACIONES INMOBILIARIAS A COMISIÓN O POR CONTRATO"]
["0501020703",10,"05","01","02","07","03","",null,"","","SERVICIOS DE ARRENDAMIENTO O ALQUILER SIN OPERARIO"]
["050102070301",12,"05","01","02","07","03","01",null,"","","SERVICIOS DE ARRENDAMIENTO O ALQUILER DE MAQUINARIA Y EQUIPO SIN OPERARIO"]
["050102070302",12,"05","01","02","07","03","02",null,"","","SERVICIOS DE ARRENDAMIENTO SIN OPCIÓN DE COMPRA DE OTROS BIENES"]
[{"$f":"CONCATENATE(C1093,D1093,E1093,F1093,G1093,H1093,I1093,J1093,K1093)","v":"050102070303"},12,"05","01","02","07","03","03",null,"","","DERECHOS DE USO DE PRODUCTOS DE PROPIEDAD INTELECTUAL Y OTROS PRODUCTOS SIMILARES "]
["0501020703031",13,"05","01","02","07","03","03",1,"","","DERECHOS DE USO DE PROGRAMAS INFORMÁTICOS Y BASES DE DATOS"]
["0501020703032",{"$f":"LEN(A1095)","v":13},"05","01","02","07","03","03",2,"","","DERECHOS DE USO DE OBRAS ORIGINALES LITERARIAS, ARTÍSTICAS Y DE ENTRETENIMIENTO"]
["0501020703033",13,"05","01","02","07","03","03",3,"","","DERECHOS DE USO DE PRODUCTOS DE INVESTIGACIÓN Y DESARROLLO"]
["0501020703034",13,"05","01","02","07","03","03",4,"","","DERECHOS DE USO DE MARCAS Y FRANQUICIAS"]
["0501020703035",13,"05","01","02","07","03","03",5,"","","DERECHOS DE USO DE EVALUACIÓN Y EXPLORACIÓN MINERA"]
["0501020703039",13,"05","01","02","07","03","03",9,"","","DERECHOS DE USO DE OTROS PRODUCTOS DE PROPIEDAD INTELECTUAL "]
["05010208",8,"05","01","02","08","","",null,"","","SERVICIOS PRESTADOS A LAS EMPRESAS Y SERVICIOS DE PRODUCCIÓN "]
["0501020801",10,"05","01","02","08","01","",null,"","","SERVICIOS DE INVESTIGACIÓN Y DESARROLLO"]
["050102080101",12,"05","01","02","08","01","01",null,"","","SERVICIOS DE INVESTIGACIÓN Y DESARROLLO EXPERIMENTAL EN CIENCIAS NATURALES E INGENIERÍA"]
["050102080102",12,"05","01","02","08","01","02",null,"","","SERVICIOS DE INVESTIGACIÓN Y DESARROLLO EXPERIMENTAL EN CIENCIAS SOCIALES Y HUMANIDADES"]
["050102080103",12,"05","01","02","08","01","03",null,"","","SERVICIOS INTERDISCIPLINARIOS DE INVESTIGACIÓN Y DESARROLLO EXPERIMENTAL"]
["050102080104",12,"05","01","02","08","01","04",null,"","","CREACIONES ORIGINALES RELACIONADAS CON LA INVESTIGACIÓN Y DESARROLLO"]
["0501020802",10,"05","01","02","08","02","",null,"","","SERVICIOS JURÍDICOS Y CONTABLES"]
["050102080201",12,"05","01","02","08","02","01",null,"","","SERVICIOS JURÍDICOS"]
["050102080202",12,"05","01","02","08","02","02",null,"","","SERVICIOS DE CONTABILIDAD, AUDITORÍA Y TENEDURÍA DE LIBROS"]
["050102080203",12,"05","01","02","08","02","03",null,"","","SERVICIOS DE PREPARACIÓN Y ASESORAMIENTO TRIBUTARIO"]
["050102080204",12,"05","01","02","08","02","04",null,"","","SERVICIOS RELACIONADOS CON CASOS DE INSOLVENCIA Y LIQUIDACIÓN"]
["0501020803",10,"05","01","02","08","03","",null,"","","OTROS SERVICIOS PROFESIONALES, CIENTÍFICOS Y TÉCNICOS"]
["050102080301",12,"05","01","02","08","03","01",null,"","","SERVICIOS DE CONSULTORÍA EN ADMINISTRACIÓN Y SERVICIOS DE GESTIÓN; SERVICIOS DE TECNOLOGÍA DE LA INFORMACIÓN"]
["0501020803011",13,"05","01","02","08","03","01",1,"","","SERVICIOS DE CONSULTORÍA EN ADMINISTRACIÓN Y SERVICIOS DE GESTIÓN"]
["0501020803012",13,"05","01","02","08","03","01",2,"","","SERVICIOS DE CONSULTORÍA PRESTADOS A LAS EMPRESAS "]
["0501020803013",13,"05","01","02","08","03","01",3,"","","SERVICIOS DE TECNOLOGÍA DE LA INFORMACIÓN (TI) DE CONSULTORÍA Y DE APOYO "]
["0501020803014",13,"05","01","02","08","03","01",4,"","","SERVICIOS DE DISEÑO Y DESARROLLO DE LA TECNOLOGÍA DE LA INFORMACIÓN (TI) "]
["0501020803015",13,"05","01","02","08","03","01",5,"","","SERVICIOS DE SUMINISTRO DE INFRAESTRUCTURA DE HOSTING Y DE TECNOLOGÍA DE LA INFORMACIÓN (TI)"]
["0501020803016",13,"05","01","02","08","03","01",6,"","","SERVICIOS DE GESTIÓN DE RED E INFRAESTRUCTURA DE TI "]
["0501020803019",13,"05","01","02","08","03","01",9,"","","OTROS SERVICIOS DE GESTIÓN, EXCEPTO LOS SERVICIOS DE ADMINISTRACIÓN DE PROYECTOS DE CONSTRUCCIÓN"]
["050102080302",12,"05","01","02","08","03","02",null,"","","SERVICIOS DE ARQUITECTURA, SERVICIOS DE PLANEACIÓN URBANA Y ORDENACIÓN DEL TERRITORIO; SERVICIOS DE ARQUITECTURA PAISAJISTA "]
["050102080303",12,"05","01","02","08","03","03",null,"","","SERVICIOS DE INGENIERÍA "]
["050102080304",12,"05","01","02","08","03","04",null,"","","SERVICIOS CIENTÍFICOS Y OTROS SERVICIOS TÉCNICOS "]
["0501020803041",13,"05","01","02","08","03","04",1,"","","SERVICIOS DE PROSPECCIÓN GEOLÓGICA, GEOFÍSICA Y OTROS"]
["0501020803042",13,"05","01","02","08","03","04",2,"","","SERVICIOS DE TOPOGRAFÍA DE SUPERFICIE Y CARTOGRAFÍA"]
["0501020803043",13,"05","01","02","08","03","04",3,"","","PRONÓSTICO DEL TIEMPO Y SERVICIOS METEOROLÓGICOS "]
["0501020803044",13,"05","01","02","08","03","04",4,"","","SERVICIOS DE ENSAYO Y ANÁLISIS TÉCNICOS"]
["050102080305",12,"05","01","02","08","03","05",null,"","","SERVICIOS VETERINARIOS"]
["050102080306",12,"05","01","02","08","03","06",null,"","","SERVICIOS DE PUBLICIDAD Y EL SUMINISTRO DE ESPACIO O TIEMPO PUBLICITARIOS"]
["050102080307",12,"05","01","02","08","03","07",null,"","","SERVICIOS DE INVESTIGACIÓN DE MERCADOS Y DE ENCUESTAS DE OPINIÓN PÚBLICA"]
["050102080308",12,"05","01","02","08","03","08",null,"","","SERVICIOS FOTOGRÁFICOS Y SERVICIOS DE REVELADO FOTOGRÁFICO"]
["050102080309",12,"05","01","02","08","03","09",null,"","","OTROS SERVICIOS PROFESIONALES Y TÉCNICOS N.C.P."]
["0501020804",10,"05","01","02","08","04","",null,"","","SERVICIOS DE TELECOMUNICACIONES, TRANSMISIÓN Y SUMINISTRO DE INFORMACIÓN"]
["050102080401",12,"05","01","02","08","04","01",null,"","","SERVICIOS DE TELEFONÍA Y OTRAS TELECOMUNICACIONES"]
["050102080402",12,"05","01","02","08","04","02",null,"","","SERVICIOS DE TELECOMUNICACIONES A TRAVÉS DE INTERNET"]
["050102080403",12,"05","01","02","08","04","03",null,"","","SERVICIOS DE CONTENIDOS EN LÍNEA (ON-LINE)"]
["050102080404",12,"05","01","02","08","04","04",null,"","","SERVICIOS DE AGENCIAS DE NOTICIAS"]
["050102080405",12,"05","01","02","08","04","05",null,"","","SERVICIOS DE BIBLIOTECAS Y ARCHIVOS"]
["050102080406",12,"05","01","02","08","04","06",null,"","","SERVICIOS DE PROGRAMACIÓN, DISTRIBUCIÓN Y TRANSMISIÓN DE PROGRAMAS"]
["0501020805",10,"05","01","02","08","05","",null,"","","SERVICIOS DE SOPORTE"]
["050102080501",12,"05","01","02","08","05","01",null,"","","SERVICIOS DE EMPLEO"]
["050102080502",12,"05","01","02","08","05","02",null,"","","SERVICIOS DE INVESTIGACIÓN Y SEGURIDAD"]
["050102080503",12,"05","01","02","08","05","03",null,"","","SERVICIOS DE LIMPIEZA"]
["050102080504",12,"05","01","02","08","05","04",null,"","","SERVICIOS DE EMPAQUE"]
["050102080505",12,"05","01","02","08","05","05",null,"","","SERVICIOS DE ORGANIZACIÓN DE VIAJES, OPERADORES TURÍSTICOS Y SERVICIOS CONEXOS"]
["050102080509",12,"05","01","02","08","05","09",null,"","","OTROS SERVICIOS AUXILIARES"]
["0501020805091",13,"05","01","02","08","05","09",1,"","","SERVICIOS DE INFORMACIÓN CREDITICIA"]
["0501020805092",13,"05","01","02","08","05","09",2,"","","SERVICIOS DE AGENCIAS DE COBRANZA"]
["0501020805093",13,"05","01","02","08","05","09",3,"","","SERVICIOS AUXILIARES POR TELÉFONO"]
["0501020805094",13,"05","01","02","08","05","09",4,"","","SERVICIOS ADMINISTRATIVOS COMBINADOS DE OFICINA"]
["0501020805095",13,"05","01","02","08","05","09",5,"","","SERVICIOS AUXILIARES ESPECIALIZADOS DE OFICINA"]
["0501020805096",13,"05","01","02","08","05","09",6,"","","SERVICIOS DE ORGANIZACIÓN Y ASISTENCIA DE CONVENCIONES Y FERIAS"]
["0501020805097",13,"05","01","02","08","05","09",7,"","","SERVICIOS DE MANTENIMIENTO Y CUIDADO DEL PAISAJE"]
["0501020805099",13,"05","01","02","08","05","09",9,"","","OTROS SERVICIOS DE APOYO Y DE INFORMACIÓN N.C.P."]
["0501020806",10,"05","01","02","08","06","",null,"","","SERVICIOS DE APOYO A LA AGRICULTURA, LA CAZA, LA SILVICULTURA, LA PESCA, LA MINERÍA Y LOS SERVICIOS PÚBLICOS"]
["050102080601",12,"05","01","02","08","06","01",null,"","","SERVICIOS DE APOYO A LA AGRICULTURA, LA CAZA, LA SILVICULTURA Y LA PESCA "]
["050102080602",12,"05","01","02","08","06","02",null,"","","SERVICIOS DE APOYO A LA MINERÍA"]
[{"$f":"CONCATENATE(C1157,D1157,E1157,F1157,G1157,H1157,I1157,J1157,K1157)","v":"050102080603"},12,"05","01","02","08","06","03",null,"","","SERVICIOS DE APOYO A LA DISTRIBUCIÓN DE ELECTRICIDAD, GAS Y AGUA"]
["0501020807",10,"05","01","02","08","07","",null,"","","SERVICIOS DE MANTENIMIENTO, REPARACIÓN E INSTALACIÓN (EXCEPTO SERVICIOS DE CONSTRUCCIÓN)"]
["050102080701",{"$f":"LEN(A1159)","v":12},"05","01","02","08","07","01",null,"","","SERVICIOS DE MANTENIMIENTO Y REPARACIÓN DE PRODUCTOS METÁLICOS ELABORADOS, MAQUINARIA Y EQUIPO"]
["0501020807011",13,"05","01","02","08","07","01",1,"","","SERVICIOS DE MANTENIMIENTO Y REPARACIÓN DE PRODUCTOS METÁLICOS ELABORADOS, EXCEPTO MAQUINARIA Y EQUIPO"]
["0501020807012",13,"05","01","02","08","07","01",2,"","","SERVICIOS DE MANTENIMIENTO Y REPARACIÓN DE MAQUINARIA DE OFICINA Y CONTABILIDAD"]
["0501020807013",13,"05","01","02","08","07","01",3,"","","SERVICIOS DE MANTENIMIENTO Y REPARACIÓN DE COMPUTADORES Y EQUIPO PERIFÉRICO"]
["0501020807014",13,"05","01","02","08","07","01",4,"","","SERVICIOS DE MANTENIMIENTO Y REPARACIÓN DE MAQUINARIA Y EQUIPO DE TRANSPORTE"]
["0501020807015",13,"05","01","02","08","07","01",5,"","","SERVICIOS DE MANTENIMIENTO Y REPARACIÓN DE OTRA MAQUINARIA Y OTRO EQUIPO"]
["050102080702",12,"05","01","02","08","07","02",null,"","","SERVICIOS DE REPARACIÓN DE OTROS BIENES"]
["0501020807021",13,"05","01","02","08","07","02",1,"","","SERVICIOS DE REPARACIÓN DE CALZADO Y ARTÍCULOS DE CUERO"]
["0501020807022",13,"05","01","02","08","07","02",2,"","","SERVICIOS DE REPARACIÓN DE RELOJES Y JOYAS"]
["0501020807023",13,"05","01","02","08","07","02",3,"","","SERVICIOS DE REPARACIÓN DE PRENDAS DE VESTIR Y TEXTILES PARA EL HOGAR"]
["0501020807024",13,"05","01","02","08","07","02",4,"","","SERVICIOS DE REPARACIÓN DE MUEBLES"]
["0501020807029",13,"05","01","02","08","07","02",9,"","","SERVICIOS DE MANTENIMIENTO Y REPARACIÓN DE OTROS BIENES N.C.P."]
["050102080703",12,"05","01","02","08","07","03",null,"","","SERVICIOS DE INSTALACIÓN (DISTINTOS DE LOS SERVICIOS DE CONSTRUCCIÓN)"]
["0501020807031",13,"05","01","02","08","07","03",1,"","","SERVICIOS DE INSTALACIÓN DE PRODUCTOS METÁLICOS ELABORADOS, EXCEPTO MAQUINARIA Y EQUIPO"]
["0501020807032",13,"05","01","02","08","07","03",2,"","","SERVICIOS DE INSTALACIÓN DE MAQUINARIA Y EQUIPO PARA EL SECTOR INDUSTRIAL"]
["0501020807033",13,"05","01","02","08","07","03",3,"","","SERVICIOS DE INSTALACIÓN DE MAQUINARIA DE OFICINA, CONTABILIDAD Y COMPUTADORES"]
["0501020807034",13,"05","01","02","08","07","03",4,"","","SERVICIOS DE INSTALACIÓN DE EQUIPOS Y APARATOS DE RADIO, TELEVISIÓN Y COMUNICACIONES"]
["0501020807035",13,"05","01","02","08","07","03",5,"","","SERVICIOS DE INSTALACIÓN DE MAQUINARIA Y EQUIPO MÉDICO PROFESIONAL, E INSTRUMENTOS DE PRECISIÓN Y ÓPTICOS"]
["0501020807036",13,"05","01","02","08","07","03",6,"","","SERVICIOS DE INSTALACIÓN DE MAQUINARIA Y APARATOS ELÉCTRICOS N.C.P."]
["0501020807039",13,"05","01","02","08","07","03",9,"","","SERVICIOS DE INSTALACIÓN DE OTROS BIENES N.C.P."]
["0501020808",10,"05","01","02","08","08","",null,"","","SERVICIOS DE FABRICACIÓN DE INSUMOS FÍSICOS QUE SON PROPIEDAD DE OTROS"]
["050102080801",12,"05","01","02","08","08","01",null,"","","SERVICIOS DE FABRICACIÓN DE ALIMENTOS, BEBIDAS Y TABACO"]
["050102080802",12,"05","01","02","08","08","02",null,"","","SERVICIOS DE FABRICACIÓN DE TEXTILES, CONFECCIONES Y PRODUCTOS DE CUERO"]
["050102080803",12,"05","01","02","08","08","03",null,"","","SERVICIOS DE FABRICACIÓN DE LA MADERA Y EL PAPEL"]
["050102080804",12,"05","01","02","08","08","04",null,"","","SERVICIOS DE FABRICACIÓN DE PRODUCTOS DE LA REFINACIÓN DEL PETRÓLEO, PRODUCTOS QUÍMICOS Y FARMACÉUTICOS"]
["050102080805",12,"05","01","02","08","08","05",null,"","","SERVICIOS DE FABRICACIÓN DE PRODUCTOS DE CAUCHO, PLÁSTICO Y OTROS PRODUCTOS MINERALES NO METÁLICOS"]
["050102080806",12,"05","01","02","08","08","06",null,"","","SERVICIOS DE FABRICACIÓN DE PRODUCTOS METALÚRGICOS BÁSICOS"]
["050102080807",12,"05","01","02","08","08","07",null,"","","SERVICIOS DE FABRICACIÓN DE PRODUCTOS METÁLICOS ELABORADOS, MAQUINARIA Y EQUIPO"]
["050102080808",12,"05","01","02","08","08","08",null,"","","SERVICIOS DE FABRICACIÓN DE EQUIPO DE TRANSPORTE"]
["050102080809",12,"05","01","02","08","08","09",null,"","","OTROS SERVICIOS DE FABRICACIÓN"]
["0501020809",10,"05","01","02","08","09","",null,"","","OTROS SERVICIOS DE FABRICACIÓN; SERVICIOS DE EDICIÓN, IMPRESIÓN Y REPRODUCCIÓN; SERVICIOS DE RECUPERACIÓN DE MATERIALES "]
["050102080901",12,"05","01","02","08","09","01",null,"","","SERVICIOS DE EDICIÓN, IMPRESIÓN Y REPRODUCCIÓN "]
["050102080902",12,"05","01","02","08","09","02",null,"","","SERVICIOS DE MOLDEADO, ESTAMPADO, EXTRUSIÓN Y FABRICACIÓN DE PRODUCTOS SIMILARES DE PLÁSTICO"]
["050102080903",12,"05","01","02","08","09","03",null,"","","SERVICIOS DE FUNDICIÓN, FORJA, ESTAMPADO Y FABRICACIÓN DE PRODUCTOS SIMILARES DE METALES"]
["050102080904",12,"05","01","02","08","09","04",null,"","","SERVICIOS DE RECUPERACIÓN DE MATERIALES, A COMISIÓN O POR CONTRATO"]
["05010209",8,"05","01","02","09","","",null,"","","SERVICIOS PARA LA COMUNIDAD, SOCIALES Y PERSONALES"]
["0501020902",10,"05","01","02","09","02","",null,"","","SERVICIOS DE EDUCACIÓN"]
["050102090201",12,"05","01","02","09","02","01",null,"","","SERVICIOS DE EDUCACIÓN DE LA PRIMERA INFANCIA Y PREESCOLAR"]
["050102090202",12,"05","01","02","09","02","02",null,"","","SERVICIOS DE ENSEÑANZA PRIMARIA"]
["050102090203",12,"05","01","02","09","02","03",null,"","","SERVICIOS DE EDUCACIÓN SECUNDARIA"]
["050102090204",12,"05","01","02","09","02","04",null,"","","SERVICIOS DE EDUCACIÓN POSTSECUNDARIA NO TERCIARIA "]
["050102090205",12,"05","01","02","09","02","05",null,"","","SERVICIOS DE EDUCACIÓN SUPERIOR (TERCIARIA) "]
["050102090209",12,"05","01","02","09","02","09",null,"","","OTROS TIPOS DE EDUCACIÓN Y SERVICIOS DE APOYO EDUCATIVO"]
["0501020903",10,"05","01","02","09","03","",null,"","","SERVICIOS PARA EL CUIDADO DE LA SALUD HUMANA Y SERVICIOS SOCIALES"]
["050102090301",12,"05","01","02","09","03","01",null,"","","SERVICIOS DE SALUD HUMANA"]
["050102090302",12,"05","01","02","09","03","02",null,"","","SERVICIOS DE ATENCIÓN RESIDENCIAL PARA PERSONAS MAYORES Y CON DISCAPACIDAD"]
["050102090303",12,"05","01","02","09","03","03",null,"","","OTROS SERVICIOS SOCIALES CON ALOJAMIENTO"]
["050102090304",12,"05","01","02","09","03","04",null,"","","SERVICIOS SOCIALES SIN ALOJAMIENTO PARA PERSONAS MAYORES Y CON DISCAPACIDAD"]
["050102090305",12,"05","01","02","09","03","05",null,"","","OTROS SERVICIOS SOCIALES SIN ALOJAMIENTO "]
["0501020904",10,"05","01","02","09","04","",null,"","","SERVICIOS DE ALCANTARILLADO, RECOLECCIÓN, TRATAMIENTO Y DISPOSICIÓN DE DESECHOS Y OTROS SERVICIOS DE SANEAMIENTO AMBIENTAL"]
["050102090401",12,"05","01","02","09","04","01",null,"","","SERVICIOS DE ALCANTARILLADO, SERVICIOS DE LIMPIEZA, TRATAMIENTO DE AGUAS RESIDUALES Y TANQUES SÉPTICOS"]
["050102090402",12,"05","01","02","09","04","02",null,"","","SERVICIOS DE RECOLECCIÓN DE DESECHOS"]
["050102090403",12,"05","01","02","09","04","03",null,"","","SERVICIOS DE TRATAMIENTO Y DISPOSICIÓN DE DESECHOS"]
["050102090404",12,"05","01","02","09","04","04",null,"","","SERVICIOS DE DESCONTAMINACIÓN"]
["050102090405",12,"05","01","02","09","04","05",null,"","","SERVICIOS DE SANEAMIENTO Y SIMILARES"]
["050102090409",12,"05","01","02","09","04","09",null,"","","OTROS SERVICIOS DE PROTECCIÓN DEL MEDIO AMBIENTE N.C.P."]
["0501020906",10,"05","01","02","09","06","",null,"","","SERVICIOS DE ESPARCIMIENTO, CULTURALES Y DEPORTIVOS"]
["050102090601",12,"05","01","02","09","06","01",null,"","","SERVICIOS AUDIOVISUALES Y SERVICIOS CONEXOS "]
["050102090602",12,"05","01","02","09","06","02",null,"","","SERVICIOS DE PROMOCIÓN Y PRESENTACIÓN DE ARTES ESCÉNICAS Y EVENTOS DE ENTRETENIMIENTO EN VIVO"]
["050102090603",12,"05","01","02","09","06","03",null,"","","SERVICIOS RELACIONADOS CON ACTORES Y OTROS ARTISTAS"]
["050102090604",12,"05","01","02","09","06","04",null,"","","SERVICIOS DE PRESERVACIÓN Y MUSEOS"]
["050102090605",12,"05","01","02","09","06","05",null,"","","SERVICIOS DEPORTIVOS Y DEPORTES RECREATIVOS"]
[{"$f":"CONCATENATE(C1221,D1221,E1221,F1221,G1221,H1221,I1221,J1221,K1221)","v":"050102090606"},12,"05","01","02","09","06","06",null,"","","SERVICIOS DE ATLETAS Y SERVICIOS DE AUXILIARES CONEXOS"]
["050102090609",12,"05","01","02","09","06","09",null,"","","OTROS SERVICIOS DE ESPARCIMIENTO Y DIVERSIÓN"]
["0501020907",{"$f":"LEN(A1223)","v":10},"05","01","02","09","07","",null,"","","OTROS SERVICIOS"]
["050102090701",12,"05","01","02","09","07","01",null,"","","SERVICIOS DE LAVADO, LIMPIEZA Y TEÑIDO"]
["050102090702",12,"05","01","02","09","07","02",null,"","","SERVICIOS DE TRATAMIENTOS DE BELLEZA Y DE BIENESTAR FÍSICO"]
["050102090703",12,"05","01","02","09","07","03",null,"","","SERVICIOS FUNERARIOS, DE CREMACIÓN Y DE SEPULTURA"]
["050102090709",12,"05","01","02","09","07","09",null,"","","OTROS SERVICIOS DIVERSOS N.C.P."]
["0501020909",10,"05","01","02","09","09","",null,"","","SERVICIOS PRESTADOS POR ORGANIZACIONES Y ORGANISMOS EXTRATERRITORIALES"]
["06",2,"06","","","","","",null,"","","ADQUISICIÓN DE ACTIVOS FINANCIEROS","Comprende los recursos destinados a la adquisición de derechos financieros, los cuales brindan a su propietario el derecho a recibir fondos u otros recursos de otra unidad (Fondo Monetario Internacional, 2014, pág. 193"]
["0601",4,"06","01","","","","",null,"","","CONCESIÓN DE PRÉSTAMOS","Comprende los recursos financieros concedidos por las IES a terceros en calidad de préstamo. Entiéndase como préstamo, todo instrumento financiero que se crea cuando un acreedor entrega fondos directamente a un deudor y recibe un documento no negociable como evidencia del activo (Fondo Monetario Internacional, 2014, pág. 218). La concesión de préstamos genera una obligación de reintegro y el pago unos intereses por parte del deudor"]
["060104",6,"06","01","04","","","",null,"","","A PERSONAS NATURALES","Comprende los recursos financieros concedidos por las IES a un tercero, en   calidad de préstamo, para solventar necesidades de financiamiento de este. "]
["0601040101",10,"06","01","04","01","01","",null,"","","PRESTAMOS A COMUNIDAD UNIVERSITARIA","Comprende los recursos financieros concedidos por las IES a miembros de la comunidad universitaria, en   calidad de préstamo, para solventar necesidades de financiamiento de este.  Incluye: Préstamos a empleados, prestamos a estudiantes.","Ejm: UDEA, DEL VALLE bienestar tiene un fondo de empleados."]
["0602",4,"06","02","","","","",null,"","","ADQUISICIÓN DE ACCIONES ","Comprende los recursos destinados a la adquisición de acciones. Las acciones son todos los instrumentos y registros que reconocen derechos sobre el valor residual de una empresa, una vez se hayan satisfecho los derechos de todos los acreedores (Fondo Monetario Internacional, 2014, pág. 197).","Revisar la naturaleza de la empresa para poder clasificarla"]
["0602010101",10,"06","02","01","01","01","",null,"","","DE EMPRESAS  PÚBLICAS FINANCIERAS "]
["0602020101",10,"06","02","02","01","01","",null,"","","DE EMPRESAS  PÚBLICAS NO FINANCIERAS "]
["0602030101",10,"06","02","03","01","01","",null,"","","DE EMPRESAS PRIVADAS FINANCIERAS"]
["0602040101",10,"06","02","04","01","01","",null,"","","DE EMPRESAS PRIVADAS NO FINANCIERAS"]
["07",2,"07","","","","","",null,"","","DISMINUCIÓN DE PASIVOS","Son los gastos asociados a una obligación de pago adquirida por las IES, pero que está sustentada en el recaudo previo de los recursos. Los gastos por disminución de pasivos se caracterizan por no afectar el patrimonio de la unidad institucional\nNE: La disminución de pasivos no debe confundirse con el pago de obligaciones generadas a través de instrumentos de deuda. "]
["0701",4,"07","01","","","","",null,"","","CESANTÍAS","Comprende el gasto por el pago de las cesantías que están obligados a reconocer los empleadores a sus empleados, con el fin de cubrir o prever las necesidades que se originen al momento de que este quede cesante. Las cesantías se causan por regla general, al momento de la terminación del contrato de trabajo; y de manera excepcional, como simple anticipo para pagar, adquirir, construir o liberar gravámenes de bienes raíces destinados a la vivienda del trabajador o para financiar o pagar matrículas y demás conceptos de educación del trabajador, cónyuge, compañero permanente e hijos (FNA). ","Aplica siempre  y cuando la universidad administre las cesantias del empleado ,y hagan pago directamente al trabajador, EJM: Caso UTP y UIS."]
["0701010101",10,"07","01","01","01","01",null,null,null,null,"CESANTÍAS DEFINITIVAS","Corresponde al pago por concepto cesantías retroactivas que le hace el empleador al trabajador una vez finalice la relación laboral y cobija a los trabajadores del sector público vinculados antes del 30 de diciembre de 1996. Para las entidades que hacen parte del Presupuesto General de la Nación, tratándose de cesantías retroactivas, el pago deberá atenderlo la entidad en la que trabajador preste o prestó el servicio en forma personal; el pago se deberá hacer directamente al beneficiario de las mismas (Artículo 99 Ley 50 de 1990/ Art. 249 de la Código Sustantivo de Trabajo/ Decreto 1252 de 2000. Decreto 1176 de 1991/ Ley 344 de 1996). "]
["0701020101",10,"07","01","02","01","01",null,null,null,null,"CESANTÍAS PARCIALES"," Corresponde al pago parcial por concepto cesantías retroactivas que le hace el empleador al trabajador para los fines determinados en la ley; cobija a los trabajadores del sector público vinculados antes del 31 de diciembre de 1996. "]
["08",2,"08","","","","","",null,"","","GASTOS POR TRIBUTOS, MULTAS, SANCIONES E INTERESES DE MORA","Comprende el gasto por tributos, multas, sanciones e intereses de mora, que por mandato legal deben atender las IES . Entiéndase por tributos, las prestaciones pecuniarias establecidas por una autoridad estatal, en ejercicio de su poder de imperio, para el cumplimiento de sus fines.  \nLos tributos se distinguen entre impuestos, tasas y contribuciones según la intensidad del poder de coacción y el deber de contribución implícito en cada modalidad (Corte Constitucional, Sentencia C134/2009). "]
["0801",4,"08","01","","","","",null,"","","IMPUESTOS ","Son los gastos asociados a pagos obligatorios que deben realizar  las IES a la Nación, Municipio o Departamento, sin que exista una retribución particular por parte de los mismos, en   función de su condición de contribuyente o sujeto pasivo de un impuesto nacional o territorial (Corte Constitucional, Sentencia C-545/94). "]
["080102",6,"08","01","02","","","",null,"","","IMPUESTOS TERRITORIALES","Son los gastos asociados a pagos obligatorios que deben realizar las IES a un municipio, departamento o distrito, sin que exista una retribución particular por parte de los mismos, en función de su condición de contribuyente o sujeto pasivo de un impuesto de orden territorial."]
["0801020101",10,"08","01","02","01","01","",null,"","","IMPUESTO PREDIAL Y SOBRETASA AMBIENTAL"]
["0801020201",10,"08","01","02","02","01","",null,"","","IMPUESTO DE DELINEACIÓN URBANA"]
["0801020301",10,"08","01","02","03","01","",null,"","","IMPUESTO DE REGISTRO"]
["0801020401",10,"08","01","02","04","01",null,null,null,null,"IMPUESTO SOBRE VEHÍCULOS AUTOMOTORES"]
["0802",4,"08","02","","","","",null,"","","ESTAMPILLAS","Comprende el gasto por estampillas. de acuerdo con la Sentencia C-768 de 2010 de la Corte Constitucional, las estampillas pertenecen a una especie de tasas parafiscales, dado que cumplen con las siguientes características:\n Constituyen un gravamen cuyo pago obligatorio deben realizar los usuarios de algunas\noperaciones o actividades que se realizan frente a organismos de carácter público;\n Son de carácter excepcional en cuanto al sujeto pasivo del tributo;\n Los recursos se revierten en beneficio de un sector específico; y\n Están destinados a sufragar gastos en que incurran las entidades que desarrollan o prestan\nun servicio público, como función propia del Estado."]
["0803",4,"08","03","","","","",null,"","","TASAS Y DERECHOS ADMINISTRATIVOS","Comprende la retribución económica por la prestación directa y efectiva de un servicio público individualizado y específico (tasa); o al pago de un bien o servicio ofrecido por el Estado en cumplimiento de su función regulatoria (derecho administrativo). \nPor su parte, la creación de una tasa debe venir acompañada por la identificación, en   la propia ley, del servicio a la que la misma corresponde y por cuya utilización serán gravados los contribuyentes.","(para entidades del gobierno, o que por ley la empresa esta autorizada ) EJM: pago de patentes, pago de certificaciones ambientales, licencias de construcción, acreditación ONAC, autenticaciones, certifcado de camara de comercio."]
["0803010101",10,"08","03","01","01","01","",null,"","","TASAS Y DERECHOS ADMINISTRATIVOS","Comprende la retribución económica por la prestación directa y efectiva de un servicio público individualizado y específico (tasa); o al pago de un bien o servicio ofrecido por el Estado en cumplimiento de su función regulatoria (derecho administrativo). \nPor su parte, la creación de una tasa debe venir acompañada por la identificación, en   la propia ley, del servicio a la que la misma corresponde y por cuya utilización serán gravados los contribuyentes.","(para entidades del gobierno, o que por ley la empresa esta autorizada ) EJM: pago de patentes, pago de certificaciones ambientales, licencias de construcción, acreditación ONAC, autenticaciones, certificado de camara de comercio, confecamaras, permiso por tenencia y porte de armas"]
["0804",4,"08","04","","","","",null,"","","CONTRIBUCIONES","Comprende el gasto por cargas fiscales que recaen sobre el patrimonio particular, sustentadas en   la potestad tributaria del Estado. La jurisprudencia diferencia entre contribuciones parafiscales y contribuciones especiales; las primeras son los pagos que deben realizar los usuarios de algunos organismos públicos, mixtos o privados, para asegurar el financiamiento de estas entidades de manera autónoma, mientras que las segundas corresponden al pago por una inversión que beneficia a un grupo de personas (Corte Constitucional, Sentencia C-545/1994). "]
["0804010101",10,"08","04","01","01","01","",null,"","","CUOTA DE FISCALIZACIÓN Y AUDITAJE","Son los gastos asociados a la tarifa de control fiscal que cobra el Ministerio de Hacienda y Crédito Público (MHCP)  a los organismos y entidades fiscalizadas, con el fin de asegurar el financiamiento de manera autónoma de la CGR. La tarifa de esta contribución es equivalente a la de aplicar el factor que resulte de la fórmula de dividir el presupuesto de funcionamiento de la Contraloría sobre la sumatoria del valor de los presupuestos de los organismos y entidades vigiladas, al valor de los presupuestos de cada organismo o entidad vigilada (Ley 106 de 1993, Art. 4). "]
["0804020101",10,"08","04","02","01","01",null,null,null,null,"CONTRIBUCIÓN - SUPERINTENDENCIA DE VIGILANCIA ","Son los gastos asociados al pago de la contribución  que exige la Superintendencia de Vigilancia a\nlas entidades vigiladas que ejerzan o presten las actividades y los servicios sometidos a su control, inspección y vigilancia."]
["0804030101",10,"08","04","03","01","01",null,null,null,null,"CONTRIBUCIÓN - SUPERINTENDENCIA NACIONAL DE SALUD","Son los gastos asociados al pago de la contribución que exige la Superintendencia Nacional de Salud  a\nlas entidades vigiladas que ejerzan o presten las actividades y los servicios sometidos a su control, inspección y vigilancia."]
["0805",4,"08","05","","","","",null,"","","MULTAS, SANCIONES E INTERESES DE MORA","Comprende el gasto por penalidades pecuniarias que se derivan del poder punitivo del Estado, y que se establecen por el incumplimiento de leyes o normas administrativas, con el fin de prevenir un comportamiento considerado indeseable (Corte Constitucional, Sentencia C-134/2009).  \nEsta cuenta incluye también el gasto por intereses de mora generados como resarcimiento tarifado o\nindemnización a los perjuicios que padece el acreedor por no tener consigo el dinero en la oportunidad\ndebida (Corte Constitucional, Sentencia C-604/2012)."]
["080501",6,"08","05","01","","","",null,"","","MULTAS Y SANCIONES","Comprende el gasto por penalidades pecuniarias que se derivan del poder punitivo del Estado, y que se establecen con el fin de prevenir un comportamiento considerado indeseable (Corte Constitucional, Sentencia C-134/2009"]
["0805010101",10,"08","05","01","01","01","",null,"","","SANCIONES CONTRACTUALES","Comprende el gasto por penalidades pecuniarias que se imputan como consecuencia de acciones u omisiones relacionadas con una obligación contractual adquirida por las IES (Ley 80 de 1993, Artículo 58). "]
["0805010201",10,"08","05","01","02","01","",null,"","","SANCIONES ADMINISTRATIVAS","Comprende el gasto por penalidades pecuniarias derivadas de la potestad sancionatoria de la\nAdministración como medio necesario para cumplir las finalidades que le son propias o para alcanzar\nlos objetivos que ella se ha trazado en el ejercicio de sus funciones. la potestad sancionatoria habilita\na la administración para imponer a sus propios funcionarios y a los particulares el acatamiento de una\ndisciplina cuya observancia propende indudablemente a la realización de sus cometidos; y a su vez,\nconstituye un complemento de la potestad de mando, pues contribuye a asegurar el cumplimiento de\nlas decisiones administrativas (Corte Constitucional, sentencia C-616 de 2002)."]
["080502",6,"08","05","02",null,"","",null,"","","INTERESES DE MORA","Son los gastos asociados al retraso en que incurre la IES dentro de los plazos establecidos para el pago de una obligación. Los intereses de mora representan el resarcimiento tarifado o indemnización de los perjuicios que padece el acreedor por no tener consigo el dinero en   la oportunidad debida (Corte Constitucional, Sentencia C-604/2012)"]
["0805020101",10,"08","05","02","01","01","",null,"","","INTERESES DE MORA"]
["09",2,"09","","","","","",null,"","","SERVICIO DE LA DEUDA PÚBLICA EXTERNA","Comprende el gasto por amortizaciones del principal, los intereses, las comisiones, y todo tipo de gastos derivados de las operaciones de crédito público que realizan las IES con agentes residentes fuera del país."]
["0901",4,"09","01","","","","",null,"","","PRINCIPAL","Comprende el gasto por amortizaciones de los recursos de crédito adquiridos con agentes residentes fuera del país. El principal representa el valor económico suministrado originalmente y su pago genera una redención o extinción gradual de la obligación contratada (Fondo Monetario Internacional, 2014, pág. 4). "]
["090102",6,"09","01","02","","","",null,"","","PRÉSTAMOS","Comprende el gasto por amortizaciones de la deuda pública externa contraída por medio de un préstamo. Entiéndase como préstamo, todo instrumento financiero que se crea cuando un acreedor entrega fondos directamente a un deudor y recibe un documento no negociable como evidencia del activo (Fondo Monetario Internacional, 2014, pág. 218). "]
["0901020101",10,"09","01","02","01","01","",null,"","","BANCA COMERCIAL","Comprende el gasto por amortizaciones de los recursos de crédito adquiridos mediante contrato de empréstito con bancos comerciales residentes fuera del país. Un banco comercial es un intermediario financiero que capta recursos de quienes tienen dinero disponible para colocarlos en manos de quienes lo necesitan (Banco de la República, s.f.)."]
["0901020201",10,"09","01","02","02","01","",null,"","","BANCA DE FOMENTO ","Comprende el gasto por amortizaciones de los recursos de crédito adquiridos mediante contrato de empréstito con bancos de fomento externos. Una entidad de fomento es una institución que capta recursos de los mercados externos e internos para promover sectores específicos de la economía, a través de la elaboración y ejecución de proyectos de inversión en bienes de capital, y la prestación de servicios de asistencia técnica necesarios para el desarrollo de los mismos (Contaduría General de la Nación, 2010, pág. 20)."]
["0901020301",10,"09","01","02","03","01","",null,"","","ORGANISMOS MULTILATERALES","Comprende el gasto por amortizaciones de los recursos de crédito adquiridos mediante contratos de empréstito con organismos multilaterales. Un organismo multilateral es creado con el objetivo de apoyar el desarrollo y crecimiento económico de los países menos desarrollados mediante la consecución y la movilización de recursos en condiciones favorables, así como la asistencia técnica en la preparación, ejecución y evaluación de programas y proyectos. (Departamento Nacional de Planeación, 2013, pág. 12)"]
["0902",4,"09","02","","","","",null,"","","INTERESES","Comprende el gasto por intereses que se reconocen sobre los recursos de crédito adquiridos con residentes fuera del país. Entiéndase interés como el gasto en que incurre una unidad por el uso del principal pendiente de reembolso (Fondo Monetario Internacional, 2014, pág. 140). "]
["090202",6,"09","02","02","","","",null,"","","PRÉSTAMOS","Comprende el gasto por los intereses que se reconocen sobre la deuda pública externa contraída por medio de un préstamo. Entiéndase como préstamo, todo instrumento financiero que se crea cuando un acreedor entrega fondos directamente a un deudor y recibe un documento no negociable como evidencia del activo (Fondo Monetario Internacional, 2014, pág. 218). "]
["0902020101",10,"09","02","02","01","01","",null,"","","BANCA COMERCIAL"]
["0902020201",10,"09","02","02","02","01","",null,"","","BANCA DE FOMENTO "]
["0902020301",10,"09","02","02","03","01","",null,"","","ORGANISMOS MULTILATERALES"]
["0903",4,"09","03","","","","",null,"","","COMISIONES Y OTROS GASTOS","Comprende el gasto por los servicios prestados por los agentes financieros en su labor de intermediación, y los demás gastos inherentes al desarrollo de las operaciones de crédito público con agentes residentes en   el exterior.E: Estos pagos corresponden económicamente a la adquisición de servicios, por lo tanto, se separan de los pagos de intereses de acuerdo con el MEFP 2014. "]
["090302",6,"09","03","02","","","",null,"","","PRÉSTAMOS","Comprende el gasto por comisiones y otros gastos que genera la deuda pública externa contraída por medio de un préstamo. Entiéndase como préstamo, todo instrumento financiero que se crea cuando un acreedor entrega fondos directamente a un deudor y recibe un documento no negociable como evidencia del activo (Fondo Monetario Internacional, 2014, pág. 218).   "]
["09030201",8,"09","03","02","01","","",null,"","","BANCA COMERCIAL"]
["09030202",8,"09","03","02","02","","",null,"","","BANCA DE FOMENTO "]
["09030203",8,"09","03","02","03","","",null,"","","ORGANISMOS MULTILATERALES"]
["10",2,"10","","","","","",null,"","","SERVICIO DE LA DEUDA PÚBLICA INTERNA","Comprende el gasto por amortizaciones del principal, los intereses, las comisiones, y todo tipo de gastos derivados de las operaciones de crédito público que realizan las IES con agentes residentes en el territorio colombiano. \n"]
["1001",4,"10","01","","","","",null,"","","PRINCIPAL","Comprende el gasto por amortizaciones de los recursos de crédito adquiridos con agentes residentes en   el territorio colombiano. El principal representa el valor económico suministrado originalmente por el acreedor, y su pago genera una redención o extinción gradual de la obligación contratada (Fondo Monetario Internacional, 2013, pág. 4). "]
["100102",6,"10","01","02","","","",null,"","","PRÉSTAMOS","Comprende el gasto por amortizaciones de la deuda pública interna contraída por medio de un préstamo. Entiéndase como préstamo, todo instrumento financiero que se crea cuando un acreedor entrega fondos directamente a un deudor y recibe un documento no negociable como evidencia del activo (Fondo Monetario Internacional, 2014, pág. 218). "]
["1001020101",10,"10","01","02","01","01","",null,"","","NACIÓN ","Comprende el gasto por amortizaciones de los préstamos adquiridos con la Nación. "]
["10010202",8,"10","01","02","02",null,"",null,"","","ENTIDADES FINANCIERAS","Comprende el gasto por amortizaciones de los préstamos adquiridos con entidades financieras residentes en   el territorio colombiano. Una entidad financiera es un intermediario que recibe fondos en   forma de depósito de unidades que poseen excedentes de liquidez, utilizándolos posteriormente para operaciones de préstamo a otras unidades con necesidades de financiación, o para inversiones propias (Superintendencia Financiera de Colombia, 2017). "]
["1001020201",10,"10","01","02","02","01","",null,"","","BANCA COMERCIAL","Comprende el gasto por amortizaciones de los recursos de crédito adquiridos mediante préstamos con bancos comerciales residentes en el territorio colombiano. Un banco comercial es un intermediario financiero que capta recursos de quienes tienen dinero disponible para colocarlos en   manos de quienes lo necesitan (Banco de la República, s.f.)."]
["1001020202",10,"10","01","02","02","02","",null,"","","BANCA DE FOMENTO","Comprende el gasto por amortizaciones de los recursos de crédito adquiridos mediante préstamos con bancos de fomento internos. Una entidad de fomento es una institución que capta recursos de los mercados externos e internos para promover sectores específicos de la economía, a través de la elaboración y ejecución de proyectos de inversión en   bienes de capital, y la prestación de servicios de asistencia técnica necesarios para el desarrollo de los mismos (Contaduría General de la Nación, 2010, pág. 20). "]
[{"$f":"CONCATENATE(C1285,D1285,E1285,F1285,G1285,H1285,I1285,J1285,K1285)","v":"1002"},4,"10","02","","","","",null,"","","INTERESES","Comprende el gasto por intereses que se reconocen sobre los recursos de crédito interno. Entiéndase interés como el gasto en   que incurre una unidad por el uso del principal pendiente de reembolso (Fondo Monetario Internacional, 2014, pág. 140). \nSegún las disposiciones contractuales, los intereses pueden definirse como porcentaje del monto pendiente, una suma de dinero fijada de antemano, una suma variable de dinero que depende de un indicador definido, o una combinación de estos métodos (Fondo Monetario Internacional, 2013, pág. "]
["100202",6,"10","02","02","","","",null,"","","PRÉSTAMOS","Comprende el gasto por intereses que se reconocen sobre la deuda pública interna contraída por medio de un préstamo. Entiéndase como préstamo, todo instrumento financiero que se crea cuando un acreedor entrega fondos directamente a un deudor y recibe un documento no negociable como evidencia del activo (Fondo Monetario Internacional, 2014, pág. 218). "]
["1002020101",{"$f":"LEN(A1287)","v":10},"10","02","02","01","01","",null,"","","NACIÓN "]
["10020202",8,"10","02","02","02","","",null,"","","ENTIDADES FINANCIERAS","Comprende el gasto por intereses que se reconocen sobre los préstamos adquiridos con entidades financieras residentes en   el territorio colombiano. Una entidad financiera es un intermediario que recibe fondos en   forma de depósito de unidades que poseen excedentes de liquidez, utilizándolos posteriormente para operaciones de préstamo a otras unidades con necesidades de financiación, o para inversiones propias (Superintendencia Financiera de Colombia, 2017). "]
["1002020201",10,"10","02","02","02","01","",null,"","","BANCA COMERCIAL","Comprende el gasto por intereses que se reconocen sobre los recursos de crédito adquiridos mediante préstamos con bancos comerciales residentes en el territorio colombiano. Un banco comercial es un intermediario financiero que capta recursos de quienes tienen dinero disponible para colocarlos en   manos de quienes lo necesitan (Banco de la República, s.f.).  \nEl "]
["1002020202",10,"10","02","02","02","02","",null,"","","BANCA DE FOMENTO","Comprende el gasto por intereses que se reconocen sobre los recursos de crédito adquiridos mediante préstamos con bancos de fomento internos. Una entidad de fomento es una institución que capta recursos de los mercados externos e internos para promover sectores específicos de la economía, a través de la elaboración y ejecución de proyectos de inversión en bienes de capital, y la prestación de servicios de asistencia técnica necesarios para el desarrollo de los mismos (Contaduría General de la Nación, 2010, pág. 20). "]
["1003",4,"10","03","","","","",null,"","","COMISIONES Y OTROS GASTOS","Comprende el gasto por servicios prestados por agentes financieros en su labor de intermediación, y los demás gastos inherentes al desarrollo de las operaciones de crédito público con agentes residentes en el territorio colombiano. "]
["100302",6,"10","03","02","","","",null,"","","PRÉSTAMOS","Comprende el gasto por comisiones y otros gastos que genera la deuda pública interna contraída por medio de un préstamo. Entiéndase como préstamo, todo instrumento financiero que se crea cuando un acreedor entrega fondos directamente a un deudor y recibe un documento no negociable como evidencia del activo (Fondo Monetario Internacional, 2014, pág. 218). "]
["10030201",8,"10","03","02","01","","",null,"","","ENTIDADES FINANCIERAS","Comprende el gasto por comisiones y otros gastos que generan los préstamos adquiridos con entidades financieras residentes en   el territorio colombiano. Una entidad financiera es un intermediario que recibe fondos en   forma de depósito de unidades que poseen excedentes de liquidez, utilizándolos posteriormente para operaciones de préstamo a otras unidades con necesidades de financiación, o para inversiones propias (Superintendencia Financiera de Colombia, 2017). "]
["1003020101",10,"10","03","02","01","01","",null,"","","BANCA COMERCIAL","Comprende el gasto por comisiones y otros gastos que se generan por la obtención de recursos de crédito mediante préstamos con bancos comerciales residentes en el territorio colombiano. Un banco comercial es un intermediario financiero que capta recursos de quienes tienen dinero disponible para colocarlos en manos de quienes lo necesitan (Banco de la República, s.f.).  \n10"]
["1003020102",10,"10","03","02","01","02","",null,"","","BANCA DE FOMENTO","Comprende el gasto por comisiones y otros gastos que se generan por la obtención de recursos de crédito mediante préstamos con bancos de fomento internos. Una entidad de fomento es una institución que capta recursos de los mercados externos e internos para promover sectores específicos de la economía, a través de la elaboración y ejecución de proyectos de inversión en bienes de capital, y la prestación de servicios de asistencia técnica necesarios para el desarrollo de los mismos (Contaduría General de la Nación, 2010, pág. 20). "]
[""]

{"sheet":"BYSAUXILIARES","index":6,"n_rows":60,"n_cols":7,"rows_kept":60,"cut":false,"hidden":false,"merged":[[6,6,7,6],[8,6,9,6],[10,6,11,6],[12,6,13,6],[40,6,41,6],[54,1,55,1],[54,5,55,5],[54,6,55,6],[54,4,55,4],[46,1,47,1],[46,4,47,4],[46,5,47,5],[36,4,37,4],[36,5,37,5],[36,6,37,6],[36,1,37,1],[44,1,45,1],[44,5,45,5],[38,1,39,1],[38,5,39,5],[40,1,41,1],[40,5,41,5],[34,1,35,1],[34,4,35,4],[42,6,43,6],[44,6,45,6],[40,4,41,4],[42,4,43,4],[56,1,57,1],[56,5,57,5],[56,6,57,6],[56,4,57,4],[48,6,49,6],[48,4,49,4],[50,4,51,4],[52,4,53,4],[52,5,53,5],[52,6,53,6],[48,1,53,1],[48,5,49,5],[58,1,59,1],[24,4,25,4],[24,5,25,5],[24,1,25,1],[26,4,27,4],[26,1,27,1],[26,5,27,5],[20,6,21,6],[20,1,21,1],[20,5,21,5],[20,4,21,4],[22,4,23,4],[22,5,23,5],[22,1,23,1],[42,1,43,1],[42,5,43,5],[38,4,39,4],[28,1,29,1],[28,4,29,4],[28,5,29,5],[30,1,31,1],[30,5,31,5],[30,4,31,4],[44,4,45,4],[34,5,35,5],[34,6,35,6],[18,1,19,1],[30,6,31,6],[28,6,29,6],[32,5,33,5],[32,6,33,6],[12,5,13,5],[16,4,17,4],[16,1,17,1],[16,5,17,5],[22,6,23,6],[24,6,25,6],[26,6,27,6],[32,4,33,4],[0,1,0,6],[1,1,1,6],[32,1,33,1],[3,6,5,6],[3,1,5,1],[6,1,7,1],[6,4,7,4],[6,5,7,5],[8,1,9,1],[8,4,9,4],[14,4,15,4],[14,1,15,1],[14,5,15,5],[14,6,15,6],[8,5,9,5],[10,5,11,5],[10,4,11,4],[10,1,11,1],[12,1,13,1],[12,4,13,4],[16,6,17,6],[18,4,19,4],[18,5,19,5],[18,6,19,6]]}
[]
[null,"BIENES Y SERVICIOS AUXILIARES"]
[null,"OBJETO DEL GASTO","CÓDIGO CCP ","CUENTA","NOMBRE DE LA CUENTA (subordinal)","MAXIMO NIVEL DE DESAGREGACIÓN","OBSERVACIONES "]
[null,"Licencia de office","02-01-01-06-02","ADQUISICIÓN DE BIENES  Y SERVICIOS/ACTIVOS NO FINANCIEROS","PRODUCTOS DE LA PROPIEDAD INTELECTUAL","Programas de informática y bases de datos","Para clasificar la adquisición de licencias de office hay que tener en cuenta las políticas contables de la entidad para de esta forma determinar si dicha adquisición corresponde o no a un activo, en caso de serlo deberá utilizarse la cuenta 02-01-01 Activos fijos. Así mismo, hay que tener en cuenta si la licencia de office que se adquiere se debe renovar anualmente, en cuyo caso deberá ser clasificada como un gasto en la cuenta 02-02-01 Materiales y suministros."]
[null,null,"02-02-01-04-07","ADQUISICIÓN DE BIENES  Y SERVICIOS","EQUIPO Y APARATOS DE RADIO, TELEVISIÓN Y COMUNICACIONES","Paquetes de software"]
[null,null,"05-01-01-04-07","GASTOS DE COMERCIALIZACIÓN Y PRODUCCIÓN","EQUIPO Y APARATOS DE RADIO, TELEVISIÓN Y COMUNICACIONES","Paquetes de software"]
[null,"Realización de eventos","02-02-02-08-05","ADQUISICIÓN DE BIENES  Y SERVICIOS","SERVICIOS DE SOPORTE","Servicios de organización y asistencia de convenciones y ferias","-"]
[null,null,"05-01-02-08-05","GASTOS DE COMERCIALIZACIÓN Y PRODUCCIÓN"]
[null,"Capacitaciones a funcionarios","02-02-02-09-02","ADQUISICIÓN DE BIENES  Y SERVICIOS","SERVICIOS DE EDUCACIÓN","Otros tipos de educación y servicios de apoyo educativo","-"]
[null,null,"05-01-02-09-02","GASTOS DE COMERCIALIZACIÓN Y PRODUCCIÓN"]
[null,"Entrega de paquetes de turismo","02-02-02-08-05","ADQUISICIÓN DE BIENES  Y SERVICIOS","SERVICIOS DE SOPORTE","Servicios de organización de viajes, operadores turísticos y servicios conexos","-"]
[null,null,"05-01-02-08-05","GASTOS DE COMERCIALIZACIÓN Y PRODUCCIÓN"]
[null,"Alquiler de espacios de recreación tipo clubes deportivos","02-02-02-09-06","ADQUISICIÓN DE BIENES  Y SERVICIOS","SERVICIOS DE ESPARCIMIENTO, CULTURALES Y DEPORTIVOS","Servicios deportivos y deportes recreativos","-"]
[null,null,"05-01-02-09-06","GASTOS DE COMERCIALIZACIÓN Y PRODUCCIÓN"]
[null,"Servicios logísticos","02-02-02-08-05","ADQUISICIÓN DE BIENES  Y SERVICIOS","SERVICIOS DE SOPORTE","Servicios de organización y asistencia de convenciones y ferias","Esta cuenta incluye los servicios de: alquiler de locación para la realización del evento, suministro de alimentos y bebidas, servicio de transporte de asistentes, servicio de acomodación, servicios de suministro de equipos audiovisuales, servicio de traducción de documentos, entre otros."]
[null,null,"05-01-02-08-05","GASTOS DE COMERCIALIZACIÓN Y PRODUCCIÓN"]
[null,"Servicio de aseo","02-02-02-08-05","ADQUISICIÓN DE BIENES  Y SERVICIOS","SERVICIOS DE SOPORTE","Servicios de limpieza","En cuanto a los insumos para la prestación del servicio, sólo se tendrá que hacer la distinción presupuestal en los casos en que existan contratos diferentes para el servicio y los suministros. En cuyo caso, para realizar la clasificación de los suministros, por favor, revisar \"Instrumento - Lista de suministros Colombia Compra Eficiente\" en la hoja Aseo y cafetería."]
[null,null,"05-01-02-08-05","GASTOS DE COMERCIALIZACIÓN Y PRODUCCIÓN"]
[null,"Servicio de cafetería","02-02-02-06-03","ADQUISICIÓN DE BIENES  Y SERVICIOS","ALOJAMIENTO; SERVICIOS DE SUMINISTROS DE COMIDAS Y BEBIDAS","Servicios de suministros de comidas","En cuanto a los insumos utilizados para el suministro de comidas, sólo se tendrá que hacer distinción presupuestal en los casos en que existan contratos diferentes para el servicio y los suministros. En cuyo caso, para realizar la clasificación de los suministros, por favor, revisar \"Instrumento - Lista de suministros Colombia Compra Eficiente\" en la hoja de Aseo y Cafetería."]
[null,null,"05-01-02-06-03","GASTOS DE COMERCIALIZACIÓN Y PRODUCCIÓN"]
[null,"Mantenimiento de inmuebles","02-02-02-05-04","ADQUISICIÓN DE BIENES  Y SERVICIOS","SERVICIOS DE CONSTRUCCIÓN","Servicio de terminación y acabado de edificios ","Esta cuenta comprende actividades menores tales como: pintura, carpintería, servicios de estuco y enyesado, instalación de vidrios y ventanas de vidrio, revestimiento de paredes y empapelado, entre otros. En el caso en que los arreglos sean mayores y aumenten el valor del activo, se tendrá que identificar el tipo de construcción al que se le realizan estos arreglos en una de las opciones que contiene la cuenta 02-01-01-001 Edificaciones y estructuras, para su respectiva clasificación a máximo nivel.  "]
[null,null,"05-01-02-05-04","GASTOS DE COMERCIALIZACIÓN Y PRODUCCIÓN"]
[null,"Impresión de documentos, Fotocopia de carné de funcionarios","02-02-02-08-09","ADQUISICIÓN DE BIENES  Y SERVICIOS","OTROS SERVICIOS DE FABRICACIÓN; SERVICIOS DE EDICIÓN, IMPRESIÓN Y REPRODUCCIÓN; SERVICIOS DE RECUPERACIÓN DE MATERIALES ","Servicios de edición, impresión y reproducción ","-"]
[null,null,"05-01-02-08-09","GASTOS DE COMERCIALIZACIÓN Y PRODUCCIÓN"]
[null,"Servicios de seguridad y vigilancia","02-02-02-08-05","ADQUISICIÓN DE BIENES  Y SERVICIOS","SERVICIOS DE SOPORTE","Servicios de investigación y seguridad","-"]
[null,null,"05-01-02-08-05","GASTOS DE COMERCIALIZACIÓN Y PRODUCCIÓN"]
[null,"Fotocopias","02-02-02-08-05","ADQUISICIÓN DE BIENES  Y SERVICIOS","SERVICIOS DE SOPORTE","OTROS SERVICIOS AUXILIARES /Servicios auxiliares especializados de oficina ","-"]
[null,null,"05-01-02-08-05","GASTOS DE COMERCIALIZACIÓN Y PRODUCCIÓN"]
[null,"Servicio de administración de inmuebles","02-02-02-07-02","ADQUISICIÓN DE BIENES  Y SERVICIOS","SERVICIOS INMOBILIARIOS ","Servicios de administración de bienes inmuebles a comisión o por contrato","-"]
[null,null,"05-01-02-07-02","GASTOS DE COMERCIALIZACIÓN Y PRODUCCIÓN"]
[null,"Servicios de arrendamiento de bienes inmuebles","02-02-02-07-02","ADQUISICIÓN DE BIENES  Y SERVICIOS","SERVICIOS INMOBILIARIOS ","SERVICIOS INMOBILIARIOS RELATIVOS A BIENES RAÍCES PROPIOS O ARRENDADOS/Servicios de alquiler de arrendamiento con o sin opción de compra relativos a bienes inmuebles propios o arrendados","-"]
[null,null,"05-01-02-07-02","GASTOS DE COMERCIALIZACIÓN Y PRODUCCIÓN"]
[null,"Servicios de arrendamiento de bienes muebles","02-02-02-07-03","ADQUISICIÓN DE BIENES  Y SERVICIOS","SERVICIOS DE ARRENDAMIENTO O ALQUILER SIN OPERARIO","Servicios de arrendamiento o alquiler de maquinaria y equipo sin operario","Relativos a alquiler o arrendamiento de: automóviles, vehículos automotores, ferroviarios, embarcaciones, aeronaves, maquinaria agrícola, maquinaria y equipo de construcción, computadores, motores y turbinas, equipo para minería, y campos petroleros, aparatos de control y medición científica, entre otros."]
[null,null,"05-01-02-07-03","GASTOS DE COMERCIALIZACIÓN Y PRODUCCIÓN"]
[null,"Servicio de hosting o almacenamiento de datos en la nube","02-02-02-08-03","ADQUISICIÓN DE BIENES  Y SERVICIOS","OTROS SERVICIOS PROFESIONALES, CIENTÍFICOS Y TÉCNICOS","Servicio de suministro de infraestructura de hosting y de tecnología de la información (TI)","-"]
[null,null,"05-01-02-08-03","GASTOS DE COMERCIALIZACIÓN Y PRODUCCIÓN"]
[null,"Transporte de personas","02-02-02-06-04","ADQUISICIÓN DE BIENES  Y SERVICIOS","SERVICIOS DE TRANSPORTE DE PASAJEROS","Servicios de transporte de pasajeros ","-"]
[null,null,"05-01-02-06-04","GASTOS DE COMERCIALIZACIÓN Y PRODUCCIÓN"]
[null,"Mantenimiento de ascensores, Mantenimiento de extintores","02-02-02-08-07","ADQUISICIÓN DE BIENES  Y SERVICIOS","SERVICIOS DE MANTENIMIENTO, REPARACIÓN E INSTALACIÓN (EXCEPTO SERVICIOS DE CONSTRUCCIÓN)","Servicios de mantenimiento y reparación de otra maquinaria y otro equipo","-"]
[null,null,"05-01-02-08-07","GASTOS DE COMERCIALIZACIÓN Y PRODUCCIÓN"]
[null,"Mantenimiento de vehículos","02-02-02-08-07","ADQUISICIÓN DE BIENES  Y SERVICIOS","SERVICIOS DE MANTENIMIENTO, REPARACIÓN E INSTALACIÓN (EXCEPTO SERVICIOS DE CONSTRUCCIÓN)","SERVICIOS DE MANTENIMIENTO Y REPARACIÓN DE MAQUINARIA Y EQUIPO DE TRANSPORTE/Servicios de mantenimiento y reparación de vehículos automotores","-"]
[null,null,"05-01-02-08-07","GASTOS DE COMERCIALIZACIÓN Y PRODUCCIÓN"]
[null,"Gestión documental","02-02-02-08-04","ADQUISICIÓN DE BIENES  Y SERVICIOS","SERVICIOS DE TELECOMUNICACIONES, TRANSMISIÓN Y SUMINISTRO DE INFORMACIÓN","Servicios de bibliotecas y archivos","-"]
[null,null,"05-01-02-08-04","GASTOS DE COMERCIALIZACIÓN Y PRODUCCIÓN"]
[null,"Gasolina, Aceite, ACPM, Lubricantes","02-02-01-03-03","ADQUISICIÓN DE BIENES  Y SERVICIOS","PRODUCTOS DE HORNOS DE COQUE; PRODUCTOS DE REFINACIÓN DE PETRÓLEO Y COMBUSTIBLE NUCLEAR","Aceites de petróleo o aceites obtenidos de minerales bituminosos (excepto los aceites crudos); preparados n.c.p., que contengan por lo menos el 70% de su peso en aceites de esos tipos y cuyos componentes básicos sean esos aceites","-"]
[null,null,"05-01-01-03-03","GASTOS DE COMERCIALIZACIÓN Y PRODUCCIÓN"]
[null,"Suscripciones a revistas y periódicos","02-02-01-03-02","ADQUISICIÓN DE BIENES  Y SERVICIOS","PASTA O PULPA, PAPEL Y PRODUCTOS DE PAPEL; IMPRESOS Y ARTÍCULOS RELACIONADOS","Diarios, revistas y publicaciones periódicas, publicados por lo menos cuatro veces por semana","Esta cuenta se utiliza para clasificar los gastos relacionados con la suscripción a publicaciones que se reciben por lo menos 4 veces a la semana."]
[null,null,"05-01-01-03-02","GASTOS DE COMERCIALIZACIÓN Y PRODUCCIÓN",null,null,"Esta cuenta se utiliza para clasificar los gastos relacionados con la suscripción a publicaciones que se reciben menos de 4 veces a la semana. "]
[null,"Gastos judiciales","02-02-02-08-02","ADQUISICIÓN DE BIENES  Y SERVICIOS","SERVICIOS JURÍDICOS Y CONTABLES","Servicios jurídicos","Corresponde a la adquisición de servicios de un abogado."]
[null,null,"05-01-02-08-02","GASTOS DE COMERCIALIZACIÓN Y PRODUCCIÓN"]
[null,null,"02-02-02-06-04","ADQUISICIÓN DE BIENES  Y SERVICIOS","SERVICIOS DE TRANSPORTE DE PASAJEROS","Servicios de transporte de pasajeros ","Corresponde al gasto por transporte de un abogado en los casos que aplique."]
[null,null,"05-01-02-06-04","GASTOS DE COMERCIALIZACIÓN Y PRODUCCIÓN"]
[null,null,"02-02-02-08-09","ADQUISICIÓN DE BIENES  Y SERVICIOS","OTROS SERVICIOS DE FABRICACIÓN; SERVICIOS DE EDICIÓN, IMPRESIÓN Y REPRODUCCIÓN; SERVICIOS DE RECUPERACIÓN DE MATERIALES ","Servicios de edición, impresión y reproducción","Corresponde al gasto por fotocopias de archivos en los casos que aplique."]
[null,null,"05-01-02-08-09","GASTOS DE COMERCIALIZACIÓN Y PRODUCCIÓN"]
[null,"Acceso a bases de datos en línea","02-02-02-08-04","ADQUISICIÓN DE BIENES  Y SERVICIOS","SERVICIOS DE TELECOMUNICACIONES, TRANSMISIÓN Y SUMINISTRO DE INFORMACIÓN","Servicios de contenidos en línea (on line)","-"]
[null,null,"05-01-02-08-04","GASTOS DE COMERCIALIZACIÓN Y PRODUCCIÓN"]
[null,"Servicios de auditoría de gestión","02-02-02-08-03","ADQUISICIÓN DE BIENES  Y SERVICIOS","OTROS SERVICIOS PROFESIONALES, CIENTÍFICOS Y TÉCNICOS","Servicios de consultoría en administración y servicios de gestión","\n- Esta cuenta excluye los servicios de auditoría financiera que se clasifican en la cuenta 02-02-02-008-02-02 Servicios de contabilidad, auditoría y teneduría de libros. \n\n- Esta cuenta aplica en los casos en que la entidad contrate los servicios de auditoría con una entidad privada.\n\n- En caso de que la auditoría la realice una entidad pública, se deberá tener en cuenta el listado de tasas y derechos administrativos para su respectiva clasificación. "]
[null,null,"05-01-02-08-03","GASTOS DE COMERCIALIZACIÓN Y PRODUCCIÓN"]
[null,"Tokens","02-02-01-004-005-01",null,"Máquinas para oficina y contabilidad, y sus partes y accesorios",null,"Corresponde al gasto por concepto de la adquisición del dispositivo electrónico para acceder al software. "]
[null,null,"02-02-02-004-007",null,"Paquetes de software",null,"Corresponde al gasto por concepto de adquisición de certificación de autenticación digital o alquiler de software."]

{"sheet":"SOPERATIVOS","index":7,"n_rows":25,"n_cols":7,"rows_kept":25,"cut":false,"hidden":false,"merged":[[0,1,0,6],[1,1,1,6],[6,1,10,1],[11,1,20,1],[3,1,4,1],[3,5,4,5],[3,4,4,4],[6,4,7,4],[6,5,7,5],[6,6,7,6],[8,4,10,4],[11,6,12,6],[15,6,16,6],[13,6,14,6],[17,5,18,5],[17,6,18,6],[11,4,18,4],[11,5,12,5],[13,5,14,5],[15,5,16,5],[19,4,20,4],[19,5,20,5],[19,6,20,6],[23,4,24,4],[23,1,24,1],[23,5,24,5],[23,6,24,6],[21,1,22,1],[21,6,22,6]]}
[]
[null,"VÍATICOS Y DOTACIONES"]
[null,"OBJETO DEL GASTO","CÓDIGO CCP ","CUENTA","NOMBRE DE LA CUENTA (subordinal)","MAXIMO NIVEL DE DESAGREGACIÓN","OBSERVACIONES "]
[null,"Honorarios a miembros de consejos directivos","02-02-02-08-03","ADQUISICIÓN DE BIENES  Y SERVICIOS","OTROS SERVICIOS PROFESIONALES, CIENTÍFICOS Y TÉCNICOS","Servicios de consultoría en administración y servicios de gestión"]
[null,null,"05-01-02-08-03","GASTOS DE COMERCIALIZACIÓN Y PRODUCCIÓN"]
[null,"Dotación que se entrega a funcionarios","02-02-01-02-08","ADQUISICIÓN DE BIENES  Y SERVICIOS","DOTACIÓN (PRENDAS DE VESTIR Y CALZADO)","No aplica","Incluye todos los demás elementos que, de acuerdo a la función o labor del trabajador, deban ser suministrados por la Entidad al personal."]
[null,"Viáticos a funcionarios en comisión","02-02-02-06-04","ADQUISICIÓN DE BIENES  Y SERVICIOS","SERVICIOS DE TRANSPORTE DE PASAJEROS"," Servicios de transporte de pasajeros","Incluye sólo el valor de los servicios de transporte que establece la resolución de viáticos de los funcionarios en comisión."]
[null,null,"05-01-02-06-04","GASTOS DE COMERCIALIZACIÓN Y PRODUCCIÓN"]
[null,null,"01-01-01-01-11","PLANTA DE PERSONAL PERMANENTE","VIÁTICOS DE LOS FUNCIONARIOS EN COMISIÓN","Personal permanente","Sólo se registran en esta cuenta los viáticos de los funcionarios en comisión cuando se estime que los mismos van a viaticar por un término superior a 180 días (continuos o discontinuos) en el año."]
[null,null,"01-02-01-01-11","PERSONAL SUPERNUMERARIO Y PLANTA TEMPORAL",null,"Personal Temporal","Sólo se registran en esta cuenta los viáticos de los funcionarios en comisión cuando se estime que los mismos van a viaticar por un término superior a 180 días (continuos o discontinuos) en el año."]
[null,null,"02-02-02-10-01","ADQUISICIÓN DE BIENES  Y SERVICIOS",null,"Personal permanente/\nPersonal Temporal","Sólo se registran en esta cuenta los viáticos de los funcionarios en comisión cuando se estime que los mismos van a viaticar por un término inferior a 180 días (continuos o discontinuos) en el año."]
[null,"Gastos de viaje de contratistas","02-02-02-06-03","ADQUISICIÓN DE BIENES  Y SERVICIOS","ALOJAMIENTO; SERVICIOS DE SUMINISTROS DE COMIDAS Y BEBIDAS","Servicios de alojamiento para estancias cortas","Se utiliza esta cuenta cuando el alojamiento se realice en estos tipos de locaciones: hoteles y apartahoteles, hostales, alojamientos amoblados y hogares rurales sobre base diaria o semanal, moteles."]
[null,null,"05-01-02-06-03","GASTOS DE COMERCIALIZACIÓN Y PRODUCCIÓN"]
[null,null,"02-02-02-06-03","ADQUISICIÓN DE BIENES  Y SERVICIOS",null,"Otros servicios de alojamiento","Esta cuenta clasifica las estancias que tengan lugar en pensiones y casas de huéspedes."]
[null,null,"05-01-02-06-03","GASTOS DE COMERCIALIZACIÓN Y PRODUCCIÓN"]
[null,null,"02-02-02-06-03","ADQUISICIÓN DE BIENES  Y SERVICIOS",null,"Servicios de suministros de comidas","Corresponde al suministro de alimentos que se realicen en restaurantes y cafeterías, autoservicio, buffets y sus análogos."]
[null,null,"05-01-02-06-03","GASTOS DE COMERCIALIZACIÓN Y PRODUCCIÓN"]
[null,null,"02-02-02-06-03","ADQUISICIÓN DE BIENES  Y SERVICIOS",null,"Servicios de suministros de bebidas para su consumo dentro del establecimiento","Servicios de suministro de bebidas alcohólicas y no alcohólicas prestados en bares, cervecerías, clubes nocturnos e instalaciones análogas. Así como también en bares que operan en hoteles y otros lugares de alojamiento en medios de transporte como trenes y barcos."]
[null,null,"05-01-02-06-03","GASTOS DE COMERCIALIZACIÓN Y PRODUCCIÓN"]
[null,null,"02-02-02-06-04","ADQUISICIÓN DE BIENES  Y SERVICIOS","SERVICIOS DE TRANSPORTE DE PASAJEROS"," Servicios de transporte de pasajeros","Incluye sólo el valor de los servicios de transporte que establece la resolución de reconocimiento de gastos de viaje del contratista."]
[null,null,"05-01-02-06-04","GASTOS DE COMERCIALIZACIÓN Y PRODUCCIÓN"]
[null,"Licencias de maternidad e incapacidades","03-04-02-12-02","TRANSFERENCIAS CORRIENTES","LICENCIAS DE MATERNIDAD Y PATERNIDAD (NO DE PENSIONES)","Incapacidades y licencias de maternidad y paternidad (no de pensiones)","Por solicitud de la Contaduria General de la Nación, se desagregan las lncapacidades y licencias de maternidad o paternidad, ya que corresponden a un tratamiento contable diferente."]
[null,null,"03-04-02-12-01","TRANSFERENCIAS CORRIENTES","INCAPACIDADES (NO DE PENSIONES)","Incapacidades (No de pensiones)"]
[null,"Procesos de selección de empleados Concurso de meritos.","02-02-02-08-05","ADQUISICIÓN DE BIENES  Y SERVICIOS","SERVICIOS DE SOPORTE","Servicios de empleo","-"]
[null,null,"05-01-02-08-05","GASTOS DE COMERCIALIZACIÓN Y PRODUCCIÓN"]

{"sheet":"IMPUESTOS","index":8,"n_rows":19,"n_cols":6,"rows_kept":19,"cut":false,"hidden":true,"merged":[[0,1,0,5],[1,1,1,5]]}
[]
[null,"IMPUESTOS Y CONTRIBUCIONES"]
[null,"OBJETO DEL GASTO","CÓDIGO CCP ","CUENTA","NOMBRE DE LA CUENTA (subordinal)","OBSERVACIONES"]
[null,"Impuesto predial ","08-01-02-01-01","GASTOS POR TRIBUTOS, MULTAS, SANCIONES E INTERESES DE MORA","Impuesto predial ","-"]
[null,"Impuesto de delineación urbana","08-01-02-02-01","GASTOS POR TRIBUTOS, MULTAS, SANCIONES E INTERESES DE MORA","Impuesto de delineación urbana","-"]
[null,"Impuesto de registro","08-01-02-03-01","GASTOS POR TRIBUTOS, MULTAS, SANCIONES E INTERESES DE MORA","Impuesto de registro","-"]
[null,"Impuesto de vehículos","08-01-02-04-01","GASTOS POR TRIBUTOS, MULTAS, SANCIONES E INTERESES DE MORA","Impuesto sobre vehículos automotores ","-"]
[null,"Impuesto de semaforización","08-01-02-04-01","GASTOS POR TRIBUTOS, MULTAS, SANCIONES E INTERESES DE MORA","Impuesto sobre vehículos automotores ","Se incluye dentro de este impuesto ya que el cobro del impuesto de semaforización se realiza de forma conexa al impuesto sobre vehículos automotores. Además prevalece el principio de presunción de legalidad de los actos administrativos por cuanto las entidades territoriales pueden definir diferentes mecanismos para su cobro y hasta la fecha no existe fallo que defina su nulidad. "]
[null,"Cuota de fiscalización y auditaje","08-04-01-01-01","GASTOS POR TRIBUTOS, MULTAS, SANCIONES E INTERESES DE MORA","Cuota de fiscalización y auditaje","-"]
[null,"Contribución - Superintendencia de Vigilancia","08-04-02-01-01","GASTOS POR TRIBUTOS, MULTAS, SANCIONES E INTERESES DE MORA","Contribución - Superintendencia de Vigilancia","-"]
[null,"Pago de Sentencias ","03-10-01-01-01","TRANSFERENCIAS CORRIENTES","Sentencias "]
[null,"Pago de Conciliaciones ","03-10-01-01-02","TRANSFERENCIAS CORRIENTES","Conciliaciones "]
[null,"Permiso para porte de armas","08-03-01-01-01","GASTOS POR TRIBUTOS, MULTAS, SANCIONES E INTERESES DE MORA","Tasas y derechos administrativos"]
[null,"Contribución de valorización municipal","11-4-7",null,"Contribución de valorización municipal","-"]
[null,"Contribución sector eléctrico ","11-4-8",null,"Contribución sector eléctrico ","-"]
[null,"Contribución Superintendencia de Puertos y Transporte ","11-4-9",null,"Contribución Superintendencia de Puertos y Transporte ","-"]
[null,"Pago de Sentencias ","3-10-1",null,"Sentencias ","-"]
[null,"Pago de Conciliaciones ","3-10-2",null,"Conciliaciones ","-"]
[null,"Laudos arbitrales","3-10-3",null,"Laudos arbitrales","-"]

{"sheet":"PAPELERIA","index":9,"n_rows":26,"n_cols":7,"rows_kept":26,"cut":false,"hidden":false,"merged":[[6,6,7,6],[4,6,5,6],[18,6,19,6],[16,6,17,6],[12,6,13,6],[1,1,1,6],[0,1,0,6],[4,1,5,1],[4,4,5,4],[4,5,5,5],[6,1,7,1],[6,5,7,5],[6,4,7,4],[8,1,9,1],[8,5,9,5],[8,4,9,4],[10,1,11,1],[10,4,11,4],[10,6,11,6],[8,6,9,6],[20,6,21,6],[12,4,13,4],[12,1,13,1],[14,1,15,1],[14,4,15,4],[16,4,17,4],[16,1,17,1],[22,6,23,6],[24,6,25,6],[14,5,15,5],[14,6,15,6],[10,5,11,5],[12,5,13,5],[16,5,17,5],[24,4,25,4],[24,5,25,5],[18,1,19,1],[18,4,19,4],[18,5,19,5],[20,5,21,5],[22,5,23,5],[20,4,21,4],[22,4,23,4],[22,1,23,1],[24,1,25,1],[20,1,21,1]]}
[]
[null,"INSUMOS DE OFICINA"]
[]
[null,"OBJETO DEL GASTO","CÓDIGO CCP ","CUENTA","NOMBRE DE LA CUENTA (subordinal)","MAXIMO NIVEL DE DESAGREGACIÓN","OBSERVACIONES "]
[null,"Cajas, papel bond, carpetas de cartón","02-02-01-03-02","ADQUISICIÓN DE BIENES  Y SERVICIOS","PASTA O PULPA, PAPEL Y PRODUCTOS DE PAPEL; IMPRESOS Y ARTÍCULOS RELACIONADOS","Pasta de papel, papel y cartón","-"]
[null,null,"05-01-01-03-02","GASTOS DE COMERCIALIZACIÓN Y PRODUCCIÓN"]
[null,"Block papel ","02-02-01-03-02","ADQUISICIÓN DE BIENES  Y SERVICIOS","PASTA O PULPA, PAPEL Y PRODUCTOS DE PAPEL; IMPRESOS Y ARTÍCULOS RELACIONADOS","Libros de registros, libros de contabilidad, cuadernillos de notas, bloques para cartas, agendas y artículos similares, secantes, encuadernadores, clasificadores para archivos, formularios y otros artículos de escritorio, de papel o cartón","-"]
[null,null,"05-01-01-03-02","GASTOS DE COMERCIALIZACIÓN Y PRODUCCIÓN"]
[null,"Carpetas plásticas,Ganchos legajadores plásticos","02-02-01-03-02","ADQUISICIÓN DE BIENES  Y SERVICIOS","PASTA O PULPA, PAPEL Y PRODUCTOS DE PAPEL; IMPRESOS Y ARTÍCULOS RELACIONADOS","Otros productos plásticos","-"]
[null,null,"05-01-01-03-02","GASTOS DE COMERCIALIZACIÓN Y PRODUCCIÓN"]
[null,"Ganchos metálicos","02-02-01-04-02","ADQUISICIÓN DE BIENES  Y SERVICIOS","PRODUCTOS METÁLICOS ELABORADOS (EXCEPTO MAQUINARIA Y EQUIPO)","No aplica","-"]
[null,null,"05-01-01-04-02","GASTOS DE COMERCIALIZACIÓN Y PRODUCCIÓN"]
[null,"Libretas,Libro de actas","02-02-01-03-02","ADQUISICIÓN DE BIENES  Y SERVICIOS","PASTA O PULPA, PAPEL Y PRODUCTOS DE PAPEL; IMPRESOS Y ARTÍCULOS RELACIONADOS","Libros de registros, libros de contabilidad, cuadernillos de notas, bloques para cartas, agendas y artículos similares, secantes, encuadernadores, clasificadores para archivos, formularios y otros artículos de escritorio, de papel o cartón","-"]
[null,null,"05-01-01-03-02","GASTOS DE COMERCIALIZACIÓN Y PRODUCCIÓN"]
[null,"Papel kraft, Sobre manila, Sobre de correspondencia,AZ","02-02-01-03-02","ADQUISICIÓN DE BIENES  Y SERVICIOS","PASTA O PULPA, PAPEL Y PRODUCTOS DE PAPEL; IMPRESOS Y ARTÍCULOS RELACIONADOS","Pasta de papel, papel y cartón","-"]
[null,null,"05-01-01-03-02","GASTOS DE COMERCIALIZACIÓN Y PRODUCCIÓN"]
[null,"Esfero, lápiz","02-02-01-03-08","ADQUISICIÓN DE BIENES  Y SERVICIOS","MUEBLES; OTROS BIENES TRANSPORTABLES N.C.P.","Otros artículos manufacturados n.c.p.","-"]
[null,null,"05-01-01-03-08","GASTOS DE COMERCIALIZACIÓN Y PRODUCCIÓN"]
[null,"Tajalápiz para mesa, Engrapadoras para oficina, Perforadora, Sacaganchos","02-02-01-04-05","ADQUISICIÓN DE BIENES  Y SERVICIOS","MAQUINARIA DE OFICINA, CONTABILIDAD E INFORMÁTICA","Máquinas para oficina y contabilidad, y sus partes y accesorios","-"]
[null,null,"05-01-01-04-05","GASTOS DE COMERCIALIZACIÓN Y PRODUCCIÓN"]
[null,"Fotocopiadora","02-02-01-04-04","ADQUISICIÓN DE BIENES  Y SERVICIOS","MAQUINARIA PARA USOS ESPECIALES","Otra maquinaria para usos especiales y sus partes y piezas","Cuando la Fotocopiadora de acuerdo con las políticas contables de la entidad sea un activo, esta debe clasificarse en la cuenta 02-01-01-04-04-09 MAQUINARIA Y EQUIPO . Es caso contrario, debe clasificarse en las cuentas presentadas 02-02-01-04-04 o 05-01-01-04-04"]
[null,null,"05-01-01-04-04","GASTOS DE COMERCIALIZACIÓN Y PRODUCCIÓN"]
[null,"Impresora","02-02-01-04-04","ADQUISICIÓN DE BIENES  Y SERVICIOS","MAQUINARIA PARA USOS ESPECIALES","Otra maquinaria para usos especiales y sus partes y piezas","Cuando la Impresora de acuerdo con las políticas contables de la entidad sea un activo, esta debe clasificarse en la cuenta 02-01-01-04-04-09 MAQUINARIA Y EQUIPO . Es caso contrario, debe clasificarse en las cuentas presentadas 02-02-01-04-04 o 05-01-01-04-04"]
[null,null,"05-01-01-04-04","GASTOS DE COMERCIALIZACIÓN Y PRODUCCIÓN"]
[null,"Fax","02-02-01-04-04","ADQUISICIÓN DE BIENES  Y SERVICIOS","MAQUINARIA PARA USOS ESPECIALES","Otra maquinaria para usos especiales y sus partes y piezas","Cuando el Fax  de acuerdo con las políticas contables de la entidad sea un activo, esta debe clasificarse en la cuenta 02-01-01-04-04-09 MAQUINARIA Y EQUIPO . Es caso contrario, debe clasificarse en las cuentas presentadas 02-02-01-04-04 o 05-01-01-04-04"]
[null,null,"05-01-01-04-04","GASTOS DE COMERCIALIZACIÓN Y PRODUCCIÓN"]